Council Name,Date,TransNo,Amount � (Excl VAT),Supplier name,Supplier Category,Expense Area,Expense Type,Expense Code,Unclaimed VAT
Royal Borough of Kingston,28/02/2023,70041632,"45,000.00",31TEN CONSULTING LIMITED,TEMP STAFF & CONSULTANCY,Corporate & Communities,Consultancy Services,A56007,0
Royal Borough of Kingston,28/02/2023,70041961,"10,000.00",31TEN CONSULTING LIMITED,TEMP STAFF & CONSULTANCY,Capital Programme,External Fees and Consultants,C20000,0
Royal Borough of Kingston,28/02/2023,70041630,"10,950.00",4 MENTAL HEALTH LTD,TRAINING,Adult Social Care & Health,Other Private Contractors - Third Party,A56080,0
Royal Borough of Kingston,28/02/2023,70041867,573.00,777 Demolition & Haulage Company Limited,REFUSE COLLECTION / DISPOSAL,Corporate & Communities,Other Cleaning And Waste-Related Third Party Payment,A56064,0
Royal Borough of Kingston,10/02/2022,70042276,595.00,ALAN GREENWOOD AND SONS,LEGAL & PROFESSIONAL SERVICES,Adult Social Care & Health,Professional Fees,A44066,0
Royal Borough of Kingston,09/03/2023,90213452,"7,035.98",ABACUS PRE-SCHOOL,ACADEMIC INSTNS - OTHER,Schools,PVI Providers,A60014,0
Royal Borough of Kingston,09/03/2023,90213561,"3,380.40",ABACUS PRE-SCHOOL,ACADEMIC INSTNS - OTHER,Schools,2 Yr Old Place Funding,A60000,0
Royal Borough of Kingston,01/03/2023,90216721,"3,842.10",ABBEY 14LIMITED,SOCIAL SERVICES RESIDENTIAL,Adult Social Care & Health,Independent Placements,A56006,0
Royal Borough of Kingston,21/03/2023,90215175,"38,316.15",ABBEYFIELD,SOCIAL SERVICES RESIDENTIAL,Adult Social Care & Health,Personal Budget - Third Party,A61019,0
Royal Borough of Kingston,01/03/2023,90216559,"3,865.08",ABBEYFIELD,SOCIAL SERVICES RESIDENTIAL,Adult Social Care & Health,Independent Placements,A56006,0
Royal Borough of Kingston,01/03/2023,90216560,"3,865.08",ABBEYFIELD,SOCIAL SERVICES RESIDENTIAL,Adult Social Care & Health,Independent Placements,A56006,0
Royal Borough of Kingston,01/03/2023,90216562,"3,865.08",ABBEYFIELD,SOCIAL SERVICES RESIDENTIAL,Adult Social Care & Health,Independent Placements,A56006,0
Royal Borough of Kingston,01/03/2023,90216565,"3,865.08",ABBEYFIELD,SOCIAL SERVICES RESIDENTIAL,Adult Social Care & Health,Independent Placements,A56006,0
Royal Borough of Kingston,01/03/2023,90216566,"3,865.08",ABBEYFIELD,SOCIAL SERVICES RESIDENTIAL,Adult Social Care & Health,Independent Placements,A56006,0
Royal Borough of Kingston,01/03/2023,90216567,"3,740.40",ABBEYFIELD,SOCIAL SERVICES RESIDENTIAL,Adult Social Care & Health,Independent Placements,A56006,0
Royal Borough of Kingston,01/03/2023,90216568,"3,865.08",ABBEYFIELD,SOCIAL SERVICES RESIDENTIAL,Adult Social Care & Health,Independent Placements,A56006,0
Royal Borough of Kingston,01/03/2023,90216569,"3,740.40",ABBEYFIELD,SOCIAL SERVICES RESIDENTIAL,Adult Social Care & Health,Independent Placements,A56006,0
Royal Borough of Kingston,01/03/2023,90216570,"3,865.08",ABBEYFIELD,SOCIAL SERVICES RESIDENTIAL,Adult Social Care & Health,Independent Placements,A56006,0
Royal Borough of Kingston,01/03/2023,90216571,"3,865.08",ABBEYFIELD,SOCIAL SERVICES RESIDENTIAL,Adult Social Care & Health,Independent Placements,A56006,0
Royal Borough of Kingston,01/03/2023,90216572,"3,491.04",ABBEYFIELD,SOCIAL SERVICES RESIDENTIAL,Adult Social Care & Health,Independent Placements,A56006,0
Royal Borough of Kingston,01/03/2023,90216573,"3,865.08",ABBEYFIELD,SOCIAL SERVICES RESIDENTIAL,Adult Social Care & Health,Independent Placements,A56006,0
Royal Borough of Kingston,01/03/2023,90216580,"3,865.08",ABBEYFIELD,SOCIAL SERVICES RESIDENTIAL,Adult Social Care & Health,Independent Placements,A56006,0
Royal Borough of Kingston,01/03/2023,90216583,"5,757.14",ABBEYFIELD,SOCIAL SERVICES RESIDENTIAL,Adult Social Care & Health,Independent Placements,A56006,0
Royal Borough of Kingston,01/03/2023,90216590,"-1,122.12",ABBEYFIELD,SOCIAL SERVICES RESIDENTIAL,Adult Social Care & Health,Independent Placements,A56006,0
Royal Borough of Kingston,01/03/2023,90216591,"-3,865.08",ABBEYFIELD,SOCIAL SERVICES RESIDENTIAL,Adult Social Care & Health,Independent Placements,A56006,0
Royal Borough of Kingston,01/03/2023,90216592,"-3,491.04",ABBEYFIELD,SOCIAL SERVICES RESIDENTIAL,Adult Social Care & Health,Independent Placements,A56006,0
Royal Borough of Kingston,01/03/2023,90216594,"3,865.08",ABBEYFIELD,SOCIAL SERVICES RESIDENTIAL,Adult Social Care & Health,Independent Placements,A56006,0
Royal Borough of Kingston,01/03/2023,90216595,"3,865.08",ABBEYFIELD,SOCIAL SERVICES RESIDENTIAL,Adult Social Care & Health,Independent Placements,A56006,0
Royal Borough of Kingston,01/03/2023,90216600,"3,865.08",ABBEYFIELD,SOCIAL SERVICES RESIDENTIAL,Adult Social Care & Health,Independent Placements,A56006,0
Royal Borough of Kingston,01/03/2023,90216602,"3,865.08",ABBEYFIELD,SOCIAL SERVICES RESIDENTIAL,Adult Social Care & Health,Independent Placements,A56006,0
Royal Borough of Kingston,01/03/2023,90216616,"3,865.08",ABBEYFIELD,SOCIAL SERVICES RESIDENTIAL,Adult Social Care & Health,Independent Placements,A56006,0
Royal Borough of Kingston,01/03/2023,90216622,"3,865.08",ABBEYFIELD,SOCIAL SERVICES RESIDENTIAL,Adult Social Care & Health,Independent Placements,A56006,0
Royal Borough of Kingston,01/03/2023,90216624,"3,865.08",ABBEYFIELD,SOCIAL SERVICES RESIDENTIAL,Adult Social Care & Health,Independent Placements,A56006,0
Royal Borough of Kingston,01/03/2023,90216631,"3,865.08",ABBEYFIELD,SOCIAL SERVICES RESIDENTIAL,Adult Social Care & Health,Independent Placements,A56006,0
Royal Borough of Kingston,01/03/2023,90216632,"3,865.08",ABBEYFIELD,SOCIAL SERVICES RESIDENTIAL,Adult Social Care & Health,Independent Placements,A56006,0
Royal Borough of Kingston,01/03/2023,90216660,"3,865.08",ABBEYFIELD,SOCIAL SERVICES RESIDENTIAL,Adult Social Care & Health,Independent Placements,A56006,0
Royal Borough of Kingston,01/03/2023,90216714,"3,865.08",ABBEYFIELD,SOCIAL SERVICES RESIDENTIAL,Adult Social Care & Health,Independent Placements,A56006,0
Royal Borough of Kingston,01/03/2023,90216719,"4,141.16",ABBEYFIELD,SOCIAL SERVICES RESIDENTIAL,Adult Social Care & Health,Independent Placements,A56006,0
Royal Borough of Kingston,01/03/2023,90216727,"3,865.08",ABBEYFIELD,SOCIAL SERVICES RESIDENTIAL,Adult Social Care & Health,Independent Placements,A56006,0
Royal Borough of Kingston,01/03/2023,90216742,"3,865.08",ABBEYFIELD,SOCIAL SERVICES RESIDENTIAL,Adult Social Care & Health,Independent Placements,A56006,0
Royal Borough of Kingston,01/03/2023,90216758,"3,865.08",ABBEYFIELD,SOCIAL SERVICES RESIDENTIAL,Adult Social Care & Health,Independent Placements,A56006,0
Royal Borough of Kingston,01/03/2023,90216763,"3,865.08",ABBEYFIELD,SOCIAL SERVICES RESIDENTIAL,Adult Social Care & Health,Independent Placements,A56006,0
Royal Borough of Kingston,01/03/2023,90218292,"5,745.10",ABC HILLINGDON LTD,ACCOMMODATION - OTHER,Adult Social Care & Health,Personal Budget - Third Party,A61019,0
Royal Borough of Kingston,24/02/2023,70041936,643.37,AC & MS LIMITED,LEGAL & PROFESSIONAL SERVICES,Housing Revenue Account,Asbestos Audit,A20042,0
Royal Borough of Kingston,09/03/2023,90213533,"16,078.01",ACACIA PRE-SCHOOL,ACADEMIC INSTNS - OTHER,Schools,PVI Providers,A60014,0
Royal Borough of Kingston,09/03/2023,90213582,"1,998.19",ACACIA PRE-SCHOOL,ACADEMIC INSTNS - OTHER,Schools,2 Yr Old Place Funding,A60000,0
Royal Borough of Kingston,31/01/2023,70040576,"1,380.00",ACCESS INDEPENDENT LIMITED,SOCIAL SERVICES - OTHER,Adult Social Care & Health,Other Private Contractors - Third Party,A56080,0
Royal Borough of Kingston,27/10/2022,70041369,"1,134.00",ACCESS INDEPENDENT LIMITED,SOCIAL SERVICES - OTHER,Adult Social Care & Health,Other Private Contractors - Third Party,A56080,0
Royal Borough of Kingston,01/03/2023,90216788,"7,013.31",Achieve Together Limited,SOCIAL SERVICES - OTHER,Adult Social Care & Health,Independent Placements,A56006,0
Royal Borough of Kingston,01/03/2023,90216824,"4,740.25",Achieve Together Limited,SOCIAL SERVICES - OTHER,Adult Social Care & Health,Independent Placements,A56006,0
Royal Borough of Kingston,01/03/2023,90216850,"11,844.44",Achieve Together Limited,SOCIAL SERVICES - OTHER,Adult Social Care & Health,Independent Placements,A56006,0
Royal Borough of Kingston,07/03/2023,70042389,"6,005,219.64",ACHIEVING FOR CHILDREN LIMITED,LEGAL & PROFESSIONAL SERVICES,Childrens Services,Fixed Childrens Services Contract Strategic,A51019,0
Royal Borough of Kingston,02/02/2023,70042976,"25,000.00",ACHIEVING FOR CHILDREN LIMITED,LEGAL & PROFESSIONAL SERVICES,Corporate & Communities,Professional Fees,A44066,0
Royal Borough of Kingston,16/03/2023,70043002,"46,800.00",ACHIEVING FOR CHILDREN LIMITED,LEGAL & PROFESSIONAL SERVICES,Adult Social Care & Health,Other Private Contractors - Third Party,A56080,0
Royal Borough of Kingston,24/03/2023,70043307,"10,000.00",ACHIEVING FOR CHILDREN LIMITED,LEGAL & PROFESSIONAL SERVICES,Adult Social Care & Health,Staff Development And Training,A15022,0
Royal Borough of Kingston,09/03/2023,90213537,"22,343.20",Acorn to Oak Nursery and Preschool Ltd,CHILDMINDERS START UP GRANT,Schools,PVI Providers,A60014,0
Royal Borough of Kingston,09/03/2023,90213583,"4,300.62",Acorn to Oak Nursery and Preschool Ltd,CHILDMINDERS START UP GRANT,Schools,2 Yr Old Place Funding,A60000,0
Royal Borough of Kingston,01/03/2023,70041973,673.80,ACTIVITY WORKWEAR,CLOTHING & UNIFORMS,Housing Revenue Account,Clothing & Uniforms,A42005,0
Royal Borough of Kingston,03/03/2023,70042172,"1,428.00",ADAM HOTEL MANAGEMENT LTD,ACCOMMODATION BED & BREAKFAST,Place,Bed & Breakfast,A56000,0
Royal Borough of Kingston,03/03/2023,70042173,980.00,ADAM HOTEL MANAGEMENT LTD,ACCOMMODATION BED & BREAKFAST,Place,Bed & Breakfast,A56000,0
Royal Borough of Kingston,03/03/2023,70042174,"1,428.00",ADAM HOTEL MANAGEMENT LTD,ACCOMMODATION BED & BREAKFAST,Place,Bed & Breakfast,A56000,0
Royal Borough of Kingston,03/03/2022,70042175,980.00,ADAM HOTEL MANAGEMENT LTD,ACCOMMODATION BED & BREAKFAST,Place,Bed & Breakfast,A56000,0
Royal Borough of Kingston,03/03/2023,70042176,"1,176.00",ADAM HOTEL MANAGEMENT LTD,ACCOMMODATION BED & BREAKFAST,Place,Bed & Breakfast,A56000,0
Royal Borough of Kingston,03/03/2023,70042177,980.00,ADAM HOTEL MANAGEMENT LTD,ACCOMMODATION BED & BREAKFAST,Place,Bed & Breakfast,A56000,0
Royal Borough of Kingston,03/03/2023,70042178,980.00,ADAM HOTEL MANAGEMENT LTD,ACCOMMODATION BED & BREAKFAST,Place,Bed & Breakfast,A56000,0
Royal Borough of Kingston,28/02/2023,70042566,"1,176.00",ADAM HOTELS UK LIMITED,ACCOMMODATION BED & BREAKFAST,Place,Bed & Breakfast,A56000,0
Royal Borough of Kingston,31/01/2023,70042568,"1,302.00",ADAM HOTELS UK LIMITED,ACCOMMODATION BED & BREAKFAST,Place,Bed & Breakfast,A56000,0
Royal Borough of Kingston,17/11/2022,70042921,"7,200.00",ADAMS INTEGRA LTD,LEGAL & PROFESSIONAL SERVICES,Place,Consultancy Services - Other,A44065,0
Royal Borough of Kingston,09/03/2023,90213539,"4,308.55",Event Supplies LTD,CHILDMINDERS START UP GRANT,Schools,PVI Providers,A60014,0
Royal Borough of Kingston,06/03/2023,70042011,"7,000.00",ADVANCED TREE SERVICES LIMITED,CONSTRUCTION INDUSTRY,Corporate & Communities,Maintenance of trees,A28003,0
Royal Borough of Kingston,06/03/2023,70042013,33.23,ADVANCED TREE SERVICES LIMITED,CONSTRUCTION INDUSTRY,Place,Tree Works,A56042,0
Royal Borough of Kingston,06/03/2023,70042013,33.23,ADVANCED TREE SERVICES LIMITED,CONSTRUCTION INDUSTRY,Place,Tree Works,A56042,0
Royal Borough of Kingston,06/03/2023,70042013,66.46,ADVANCED TREE SERVICES LIMITED,CONSTRUCTION INDUSTRY,Place,Tree Works,A56042,0
Royal Borough of Kingston,06/03/2023,70042013,83.07,ADVANCED TREE SERVICES LIMITED,CONSTRUCTION INDUSTRY,Place,Tree Works,A56042,0
Royal Borough of Kingston,06/03/2023,70042013,99.69,ADVANCED TREE SERVICES LIMITED,CONSTRUCTION INDUSTRY,Place,Tree Works,A56042,0
Royal Borough of Kingston,06/03/2023,70042013,215.99,ADVANCED TREE SERVICES LIMITED,CONSTRUCTION INDUSTRY,Place,Tree Works,A56042,0
Royal Borough of Kingston,06/03/2023,70042013,215.99,ADVANCED TREE SERVICES LIMITED,CONSTRUCTION INDUSTRY,Place,Tree Works,A56042,0
Royal Borough of Kingston,06/03/2023,70042013,418.69,ADVANCED TREE SERVICES LIMITED,CONSTRUCTION INDUSTRY,Place,Tree Works,A56042,0
Royal Borough of Kingston,06/03/2023,70042013,731.04,ADVANCED TREE SERVICES LIMITED,CONSTRUCTION INDUSTRY,Place,Tree Works,A56042,0
Royal Borough of Kingston,06/03/2023,70042013,836.38,ADVANCED TREE SERVICES LIMITED,CONSTRUCTION INDUSTRY,Place,Tree Works,A56042,0
Royal Borough of Kingston,06/03/2023,70042013,930.42,ADVANCED TREE SERVICES LIMITED,CONSTRUCTION INDUSTRY,Place,Tree Works,A56042,0
Royal Borough of Kingston,06/03/2023,70042013,"1,335.81",ADVANCED TREE SERVICES LIMITED,CONSTRUCTION INDUSTRY,Place,Tree Works,A56042,0
Royal Borough of Kingston,13/03/2023,70042317,"4,515.00",ADVANCED TREE SERVICES LIMITED,CONSTRUCTION INDUSTRY,Housing Revenue Account,Tree Works,A56042,0
Royal Borough of Kingston,14/03/2023,70042480,"1,600.00",ADVANCED TREE SERVICES LIMITED,CONSTRUCTION INDUSTRY,Housing Revenue Account,Maintenance of trees,A28003,0
Royal Borough of Kingston,13/03/2023,70042496,349.00,ADVANCED TREE SERVICES LIMITED,CONSTRUCTION INDUSTRY,Corporate & Communities,Other Private Contractors - Third Party,A56080,0
Royal Borough of Kingston,13/03/2023,70042496,592.00,ADVANCED TREE SERVICES LIMITED,CONSTRUCTION INDUSTRY,Corporate & Communities,Other Private Contractors - Third Party,A56080,0
Royal Borough of Kingston,13/03/2023,70042496,"5,025.00",ADVANCED TREE SERVICES LIMITED,CONSTRUCTION INDUSTRY,Corporate & Communities,Other Private Contractors - Third Party,A56080,0
Royal Borough of Kingston,13/03/2023,70042496,754.00,ADVANCED TREE SERVICES LIMITED,CONSTRUCTION INDUSTRY,Housing Revenue Account,Tree Works,A56042,0
Royal Borough of Kingston,13/03/2023,70042496,110.00,ADVANCED TREE SERVICES LIMITED,CONSTRUCTION INDUSTRY,Housing Revenue Account,Tree Works,A56042,0
Royal Borough of Kingston,13/03/2023,70042496,257.00,ADVANCED TREE SERVICES LIMITED,CONSTRUCTION INDUSTRY,Housing Revenue Account,Tree Works,A56042,0
Royal Borough of Kingston,13/03/2023,70042496,927.00,ADVANCED TREE SERVICES LIMITED,CONSTRUCTION INDUSTRY,Housing Revenue Account,Tree Works,A56042,0
Royal Borough of Kingston,13/03/2023,70042496,158.00,ADVANCED TREE SERVICES LIMITED,CONSTRUCTION INDUSTRY,Housing Revenue Account,Tree Works,A56042,0
Royal Borough of Kingston,13/03/2023,70042496,170.25,ADVANCED TREE SERVICES LIMITED,CONSTRUCTION INDUSTRY,Housing Revenue Account,Tree Works,A56042,0
Royal Borough of Kingston,13/03/2023,70042496,18.00,ADVANCED TREE SERVICES LIMITED,CONSTRUCTION INDUSTRY,Housing Revenue Account,Tree Works,A56042,0
Royal Borough of Kingston,13/03/2023,70042496,224.00,ADVANCED TREE SERVICES LIMITED,CONSTRUCTION INDUSTRY,Housing Revenue Account,Tree Works,A56042,0
Royal Borough of Kingston,13/03/2023,70042501,214.37,ADVANCED TREE SERVICES LIMITED,CONSTRUCTION INDUSTRY,Place,Tree Works,A56042,0
Royal Borough of Kingston,13/03/2023,70042501,42.53,ADVANCED TREE SERVICES LIMITED,CONSTRUCTION INDUSTRY,Place,Tree Works,A56042,0
Royal Borough of Kingston,13/03/2023,70042501,683.94,ADVANCED TREE SERVICES LIMITED,CONSTRUCTION INDUSTRY,Place,Tree Works,A56042,0
Royal Borough of Kingston,13/03/2023,70042501,476.37,ADVANCED TREE SERVICES LIMITED,CONSTRUCTION INDUSTRY,Place,Tree Works,A56042,0
Royal Borough of Kingston,13/03/2023,70042501,51.04,ADVANCED TREE SERVICES LIMITED,CONSTRUCTION INDUSTRY,Place,Tree Works,A56042,0
Royal Borough of Kingston,13/03/2023,70042501,17.01,ADVANCED TREE SERVICES LIMITED,CONSTRUCTION INDUSTRY,Place,Tree Works,A56042,0
Royal Borough of Kingston,13/03/2023,70042501,17.01,ADVANCED TREE SERVICES LIMITED,CONSTRUCTION INDUSTRY,Place,Tree Works,A56042,0
Royal Borough of Kingston,13/03/2023,70042501,110.59,ADVANCED TREE SERVICES LIMITED,CONSTRUCTION INDUSTRY,Place,Tree Works,A56042,0
Royal Borough of Kingston,13/03/2023,70042501,110.59,ADVANCED TREE SERVICES LIMITED,CONSTRUCTION INDUSTRY,Place,Tree Works,A56042,0
Royal Borough of Kingston,13/03/2023,70042501,34.03,ADVANCED TREE SERVICES LIMITED,CONSTRUCTION INDUSTRY,Place,Tree Works,A56042,0
Royal Borough of Kingston,13/03/2023,70042501,374.29,ADVANCED TREE SERVICES LIMITED,CONSTRUCTION INDUSTRY,Place,Tree Works,A56042,0
Royal Borough of Kingston,13/03/2023,70042501,428.23,ADVANCED TREE SERVICES LIMITED,CONSTRUCTION INDUSTRY,Place,Tree Works,A56042,0
Royal Borough of Kingston,13/03/2023,70042502,"1,660.00",ADVANCED TREE SERVICES LIMITED,CONSTRUCTION INDUSTRY,Corporate & Communities,Grounds Maintenance Contract,A28000,0
Royal Borough of Kingston,16/03/2023,70042760,"13,000.00",ADVANCED TREE SERVICES LIMITED,CONSTRUCTION INDUSTRY,Corporate & Communities,Maintenance of trees,A28003,0
Royal Borough of Kingston,16/03/2023,70042783,600.00,ADVANCED TREE SERVICES LIMITED,CONSTRUCTION INDUSTRY,Housing Revenue Account,Tree Works,A56042,0
Royal Borough of Kingston,21/03/2023,70042960,700.00,ADVANCED TREE SERVICES LIMITED,CONSTRUCTION INDUSTRY,Housing Revenue Account,Tree Works,A56042,0
Royal Borough of Kingston,24/03/2023,70043232,7.31,ADVANCED TREE SERVICES LIMITED,CONSTRUCTION INDUSTRY,Place,Tree Works,A56042,0
Royal Borough of Kingston,24/03/2023,70043232,7.31,ADVANCED TREE SERVICES LIMITED,CONSTRUCTION INDUSTRY,Place,Tree Works,A56042,0
Royal Borough of Kingston,24/03/2023,70043232,14.62,ADVANCED TREE SERVICES LIMITED,CONSTRUCTION INDUSTRY,Place,Tree Works,A56042,0
Royal Borough of Kingston,24/03/2023,70043232,18.28,ADVANCED TREE SERVICES LIMITED,CONSTRUCTION INDUSTRY,Place,Tree Works,A56042,0
Royal Borough of Kingston,24/03/2023,70043232,21.93,ADVANCED TREE SERVICES LIMITED,CONSTRUCTION INDUSTRY,Place,Tree Works,A56042,0
Royal Borough of Kingston,24/03/2023,70043232,47.52,ADVANCED TREE SERVICES LIMITED,CONSTRUCTION INDUSTRY,Place,Tree Works,A56042,0
Royal Borough of Kingston,24/03/2023,70043232,47.52,ADVANCED TREE SERVICES LIMITED,CONSTRUCTION INDUSTRY,Place,Tree Works,A56042,0
Royal Borough of Kingston,24/03/2023,70043232,92.11,ADVANCED TREE SERVICES LIMITED,CONSTRUCTION INDUSTRY,Place,Tree Works,A56042,0
Royal Borough of Kingston,24/03/2023,70043232,160.83,ADVANCED TREE SERVICES LIMITED,CONSTRUCTION INDUSTRY,Place,Tree Works,A56042,0
Royal Borough of Kingston,24/03/2023,70043232,184.00,ADVANCED TREE SERVICES LIMITED,CONSTRUCTION INDUSTRY,Place,Tree Works,A56042,0
Royal Borough of Kingston,24/03/2023,70043232,204.69,ADVANCED TREE SERVICES LIMITED,CONSTRUCTION INDUSTRY,Place,Tree Works,A56042,0
Royal Borough of Kingston,24/03/2023,70043232,293.88,ADVANCED TREE SERVICES LIMITED,CONSTRUCTION INDUSTRY,Place,Tree Works,A56042,0
Royal Borough of Kingston,09/03/2023,90213423,"80,505.36",ADVANTAGE DAY NURSERY LTD,ACADEMIC INSTNS - OTHER,Schools,PVI Providers,A60014,0
Royal Borough of Kingston,09/03/2023,90213541,"14,610.84",ADVANTAGE DAY NURSERY LTD,ACADEMIC INSTNS - OTHER,Schools,2 Yr Old Place Funding,A60000,0
Royal Borough of Kingston,23/02/2023,70041508,"4,854.05",AECOM LTD,CONSULTING ARCHITECTS ENGINEER,Capital Programme,Infrastructure Assets - Initial Design,C12002,0
Royal Borough of Kingston,28/02/2023,70042059,500.00,AGE CONCERN KINGSTON UPON THAMES,GRANTS & EX GRATIA PAYMENTS,Adult Social Care & Health,Payments to Voluntary Organisations,A54005,0
Royal Borough of Kingston,09/03/2023,70042196,"2,498.40",AGE CONCERN KINGSTON UPON THAMES,GRANTS & EX GRATIA PAYMENTS,Adult Social Care & Health,Consultancy Services - Other,A44065,0
Royal Borough of Kingston,14/03/2023,70042612,"4,996.80",AGE CONCERN KINGSTON UPON THAMES,GRANTS & EX GRATIA PAYMENTS,Adult Social Care & Health,Miscellaneous Expenses,A49000,0
Royal Borough of Kingston,01/03/2023,90217825,708.57,AGE CONCERN KINGSTON UPON THAMES,GRANTS & EX GRATIA PAYMENTS,Adult Social Care & Health,Personal Budget - Third Party,A61019,0
Royal Borough of Kingston,25/01/2023,70039563,"2,340.00",AGENTO DIGITAL LIMITED,BUSINESS & COMPUTER SYSTEMS,Corporate & Communities,Cloud Services,A45007,0
Royal Borough of Kingston,01/03/2023,90216665,"6,864.29",AIMS CARE LIMITED,SOCIAL SERVICES RESIDENTIAL,Adult Social Care & Health,Independent Placements,A56006,0
Royal Borough of Kingston,07/03/2023,90211442,"158,026.51",ALEXANDRA SCHOOL  ,SCHOOL FUNDS,Schools,Miscellaneous Expenses,A49000,0
Royal Borough of Kingston,09/03/2023,90213352,"19,121.68",ALEXANDRA SCHOOL  ,SCHOOL FUNDS,Capital Programme,Payments to Contractors,C14000,0
Royal Borough of Kingston,09/03/2023,90213467,"24,177.96",ALEXANDRA SCHOOL  ,SCHOOL FUNDS,Schools,Miscellaneous Expenses,A49000,0
Royal Borough of Kingston,28/03/2023,90216327,"20,082.50",ALEXANDRA SCHOOL  ,SCHOOL FUNDS,Schools,Miscellaneous Expenses,A49000,0
Royal Borough of Kingston,28/03/2023,90216329,"1,807.50",ALEXANDRA SCHOOL  ,SCHOOL FUNDS,Schools,Miscellaneous Expenses,A49000,0
Royal Borough of Kingston,30/03/2023,90218437,"2,278.90",ALEXANDRA SCHOOL  ,SCHOOL FUNDS,Capital Programme,Payments to Contractors,C14000,0
Royal Borough of Kingston,31/12/2022,70042461,616.41,ALLPAY LIMITED,FINANCIAL / INSURANCE INSTNS,Adult Social Care & Health,Bank Fees & Charges,A44250,0
Royal Borough of Kingston,30/11/2022,70042462,486.92,ALLPAY LIMITED,FINANCIAL / INSURANCE INSTNS,Adult Social Care & Health,Bank Fees & Charges,A44250,0
Royal Borough of Kingston,31/01/2023,70042463,607.52,ALLPAY LIMITED,FINANCIAL / INSURANCE INSTNS,Adult Social Care & Health,Bank Fees & Charges,A44250,0
Royal Borough of Kingston,28/02/2023,70042464,637.16,ALLPAY LIMITED,FINANCIAL / INSURANCE INSTNS,Adult Social Care & Health,Bank Fees & Charges,A44250,0
Royal Borough of Kingston,20/02/2023,90212671,551.25,ALPENBEST LTD,SOCIAL SERVICES DAY CARE,Adult Social Care & Health,Homecare - new framework,A56127,0
Royal Borough of Kingston,20/02/2023,90212674,560.00,ALPENBEST LTD,SOCIAL SERVICES DAY CARE,Adult Social Care & Health,Homecare - new framework,A56127,0
Royal Borough of Kingston,20/02/2023,90212689,"1,470.01",ALPENBEST LTD,SOCIAL SERVICES DAY CARE,Adult Social Care & Health,Homecare - new framework,A56127,0
Royal Borough of Kingston,20/02/2023,90212703,612.50,ALPENBEST LTD,SOCIAL SERVICES DAY CARE,Adult Social Care & Health,Homecare - new framework,A56127,0
Royal Borough of Kingston,20/02/2023,90212828,551.25,ALPENBEST LTD,SOCIAL SERVICES DAY CARE,Adult Social Care & Health,Homecare - new framework,A56127,0
Royal Borough of Kingston,20/02/2023,90212838,551.25,ALPENBEST LTD,SOCIAL SERVICES DAY CARE,Adult Social Care & Health,Homecare - new framework,A56127,0
Royal Borough of Kingston,20/02/2023,90212859,551.25,ALPENBEST LTD,SOCIAL SERVICES DAY CARE,Adult Social Care & Health,Homecare - new framework,A56127,0
Royal Borough of Kingston,20/02/2023,90212869,796.26,ALPENBEST LTD,SOCIAL SERVICES DAY CARE,Adult Social Care & Health,Homecare - new framework,A56127,0
Royal Borough of Kingston,20/02/2023,90212928,621.25,ALPENBEST LTD,SOCIAL SERVICES DAY CARE,Adult Social Care & Health,Homecare - new framework,A56127,0
Royal Borough of Kingston,20/02/2023,90212930,551.25,ALPENBEST LTD,SOCIAL SERVICES DAY CARE,Adult Social Care & Health,Homecare - new framework,A56127,0
Royal Borough of Kingston,20/02/2023,90212938,612.51,ALPENBEST LTD,SOCIAL SERVICES DAY CARE,Adult Social Care & Health,Homecare - new framework,A56127,0
Royal Borough of Kingston,20/02/2023,90213051,796.26,ALPENBEST LTD,SOCIAL SERVICES DAY CARE,Adult Social Care & Health,Homecare - new framework,A56127,0
Royal Borough of Kingston,20/02/2023,90213074,551.25,ALPENBEST LTD,SOCIAL SERVICES DAY CARE,Adult Social Care & Health,Homecare - new framework,A56127,0
Royal Borough of Kingston,20/02/2023,90213097,735.01,ALPENBEST LTD,SOCIAL SERVICES DAY CARE,Adult Social Care & Health,Homecare - new framework,A56127,0
Royal Borough of Kingston,20/02/2023,90213121,612.51,ALPENBEST LTD,SOCIAL SERVICES DAY CARE,Adult Social Care & Health,Homecare - new framework,A56127,0
Royal Borough of Kingston,20/02/2023,90213144,525.00,ALPENBEST LTD,SOCIAL SERVICES DAY CARE,Adult Social Care & Health,Homecare - new framework,A56127,0
Royal Borough of Kingston,20/02/2023,90213146,603.75,ALPENBEST LTD,SOCIAL SERVICES DAY CARE,Adult Social Care & Health,Homecare - new framework,A56127,0
Royal Borough of Kingston,20/02/2023,90213156,612.50,ALPENBEST LTD,SOCIAL SERVICES DAY CARE,Adult Social Care & Health,Homecare - new framework,A56127,0
Royal Borough of Kingston,20/02/2023,90213180,612.50,ALPENBEST LTD,SOCIAL SERVICES DAY CARE,Adult Social Care & Health,Homecare - new framework,A56127,0
Royal Borough of Kingston,20/02/2023,90213254,630.00,ALPENBEST LTD,SOCIAL SERVICES DAY CARE,Adult Social Care & Health,Homecare - new framework,A56127,0
Royal Borough of Kingston,20/02/2023,90213311,612.50,ALPENBEST LTD,SOCIAL SERVICES DAY CARE,Adult Social Care & Health,Personal Budget - Third Party,A61019,0
Royal Borough of Kingston,27/02/2023,90213629,551.25,ALPENBEST LTD,SOCIAL SERVICES DAY CARE,Adult Social Care & Health,Homecare - new framework,A56127,0
Royal Borough of Kingston,27/02/2023,90213632,560.00,ALPENBEST LTD,SOCIAL SERVICES DAY CARE,Adult Social Care & Health,Homecare - new framework,A56127,0
Royal Borough of Kingston,27/02/2023,90213645,"1,470.01",ALPENBEST LTD,SOCIAL SERVICES DAY CARE,Adult Social Care & Health,Homecare - new framework,A56127,0
Royal Borough of Kingston,27/02/2023,90213658,612.50,ALPENBEST LTD,SOCIAL SERVICES DAY CARE,Adult Social Care & Health,Homecare - new framework,A56127,0
Royal Borough of Kingston,27/02/2023,90213776,551.25,ALPENBEST LTD,SOCIAL SERVICES DAY CARE,Adult Social Care & Health,Homecare - new framework,A56127,0
Royal Borough of Kingston,27/02/2023,90213785,551.25,ALPENBEST LTD,SOCIAL SERVICES DAY CARE,Adult Social Care & Health,Homecare - new framework,A56127,0
Royal Borough of Kingston,27/02/2023,90213804,551.25,ALPENBEST LTD,SOCIAL SERVICES DAY CARE,Adult Social Care & Health,Homecare - new framework,A56127,0
Royal Borough of Kingston,27/02/2023,90213815,796.26,ALPENBEST LTD,SOCIAL SERVICES DAY CARE,Adult Social Care & Health,Homecare - new framework,A56127,0
Royal Borough of Kingston,27/02/2023,90213868,612.50,ALPENBEST LTD,SOCIAL SERVICES DAY CARE,Adult Social Care & Health,Homecare - new framework,A56127,0
Royal Borough of Kingston,27/02/2023,90213870,551.25,ALPENBEST LTD,SOCIAL SERVICES DAY CARE,Adult Social Care & Health,Homecare - new framework,A56127,0
Royal Borough of Kingston,27/02/2023,90213880,612.51,ALPENBEST LTD,SOCIAL SERVICES DAY CARE,Adult Social Care & Health,Homecare - new framework,A56127,0
Royal Borough of Kingston,27/02/2023,90213987,796.26,ALPENBEST LTD,SOCIAL SERVICES DAY CARE,Adult Social Care & Health,Homecare - new framework,A56127,0
Royal Borough of Kingston,27/02/2023,90214010,551.25,ALPENBEST LTD,SOCIAL SERVICES DAY CARE,Adult Social Care & Health,Homecare - new framework,A56127,0
Royal Borough of Kingston,27/02/2023,90214017,735.01,ALPENBEST LTD,SOCIAL SERVICES DAY CARE,Adult Social Care & Health,Homecare - new framework,A56127,0
Royal Borough of Kingston,27/02/2023,90214057,612.51,ALPENBEST LTD,SOCIAL SERVICES DAY CARE,Adult Social Care & Health,Homecare - new framework,A56127,0
Royal Borough of Kingston,27/02/2023,90214085,525.00,ALPENBEST LTD,SOCIAL SERVICES DAY CARE,Adult Social Care & Health,Homecare - new framework,A56127,0
Royal Borough of Kingston,27/02/2023,90214087,603.75,ALPENBEST LTD,SOCIAL SERVICES DAY CARE,Adult Social Care & Health,Homecare - new framework,A56127,0
Royal Borough of Kingston,27/02/2023,90214098,612.50,ALPENBEST LTD,SOCIAL SERVICES DAY CARE,Adult Social Care & Health,Homecare - new framework,A56127,0
Royal Borough of Kingston,27/02/2023,90214102,726.26,ALPENBEST LTD,SOCIAL SERVICES DAY CARE,Adult Social Care & Health,Homecare - new framework,A56127,0
Royal Borough of Kingston,27/02/2023,90214123,612.50,ALPENBEST LTD,SOCIAL SERVICES DAY CARE,Adult Social Care & Health,Homecare - new framework,A56127,0
Royal Borough of Kingston,27/02/2023,90215074,612.50,ALPENBEST LTD,SOCIAL SERVICES DAY CARE,Adult Social Care & Health,Personal Budget - Third Party,A61019,0
Royal Borough of Kingston,21/03/2023,90215150,"5,876.00",ALPENBEST LTD,SOCIAL SERVICES DAY CARE,Adult Social Care & Health,Personal Budget - Third Party,A61019,0
Royal Borough of Kingston,06/03/2023,90215250,551.25,ALPENBEST LTD,SOCIAL SERVICES DAY CARE,Adult Social Care & Health,Homecare - new framework,A56127,0
Royal Borough of Kingston,06/03/2023,90215253,560.00,ALPENBEST LTD,SOCIAL SERVICES DAY CARE,Adult Social Care & Health,Homecare - new framework,A56127,0
Royal Borough of Kingston,06/03/2023,90215265,"1,470.01",ALPENBEST LTD,SOCIAL SERVICES DAY CARE,Adult Social Care & Health,Homecare - new framework,A56127,0
Royal Borough of Kingston,06/03/2023,90215279,612.50,ALPENBEST LTD,SOCIAL SERVICES DAY CARE,Adult Social Care & Health,Homecare - new framework,A56127,0
Royal Borough of Kingston,06/03/2023,90215384,551.25,ALPENBEST LTD,SOCIAL SERVICES DAY CARE,Adult Social Care & Health,Homecare - new framework,A56127,0
Royal Borough of Kingston,06/03/2023,90215393,551.25,ALPENBEST LTD,SOCIAL SERVICES DAY CARE,Adult Social Care & Health,Homecare - new framework,A56127,0
Royal Borough of Kingston,06/03/2023,90215415,551.25,ALPENBEST LTD,SOCIAL SERVICES DAY CARE,Adult Social Care & Health,Homecare - new framework,A56127,0
Royal Borough of Kingston,06/03/2023,90215440,770.01,ALPENBEST LTD,SOCIAL SERVICES DAY CARE,Adult Social Care & Health,Homecare - new framework,A56127,0
Royal Borough of Kingston,06/03/2023,90215490,612.50,ALPENBEST LTD,SOCIAL SERVICES DAY CARE,Adult Social Care & Health,Homecare - new framework,A56127,0
Royal Borough of Kingston,06/03/2023,90215492,551.25,ALPENBEST LTD,SOCIAL SERVICES DAY CARE,Adult Social Care & Health,Homecare - new framework,A56127,0
Royal Borough of Kingston,06/03/2023,90215500,612.51,ALPENBEST LTD,SOCIAL SERVICES DAY CARE,Adult Social Care & Health,Homecare - new framework,A56127,0
Royal Borough of Kingston,06/03/2023,90215586,612.50,ALPENBEST LTD,SOCIAL SERVICES DAY CARE,Adult Social Care & Health,Homecare - new framework,A56127,0
Royal Borough of Kingston,06/03/2023,90215644,796.26,ALPENBEST LTD,SOCIAL SERVICES DAY CARE,Adult Social Care & Health,Homecare - new framework,A56127,0
Royal Borough of Kingston,06/03/2023,90215667,551.25,ALPENBEST LTD,SOCIAL SERVICES DAY CARE,Adult Social Care & Health,Homecare - new framework,A56127,0
Royal Borough of Kingston,06/03/2023,90215675,735.01,ALPENBEST LTD,SOCIAL SERVICES DAY CARE,Adult Social Care & Health,Homecare - new framework,A56127,0
Royal Borough of Kingston,06/03/2023,90215704,612.51,ALPENBEST LTD,SOCIAL SERVICES DAY CARE,Adult Social Care & Health,Homecare - new framework,A56127,0
Royal Borough of Kingston,06/03/2023,90215730,525.00,ALPENBEST LTD,SOCIAL SERVICES DAY CARE,Adult Social Care & Health,Homecare - new framework,A56127,0
Royal Borough of Kingston,06/03/2023,90215732,603.75,ALPENBEST LTD,SOCIAL SERVICES DAY CARE,Adult Social Care & Health,Homecare - new framework,A56127,0
Royal Borough of Kingston,06/03/2023,90215742,612.50,ALPENBEST LTD,SOCIAL SERVICES DAY CARE,Adult Social Care & Health,Homecare - new framework,A56127,0
Royal Borough of Kingston,06/03/2023,90215746,726.26,ALPENBEST LTD,SOCIAL SERVICES DAY CARE,Adult Social Care & Health,Homecare - new framework,A56127,0
Royal Borough of Kingston,06/03/2023,90215766,612.50,ALPENBEST LTD,SOCIAL SERVICES DAY CARE,Adult Social Care & Health,Homecare - new framework,A56127,0
Royal Borough of Kingston,06/03/2023,90215840,630.00,ALPENBEST LTD,SOCIAL SERVICES DAY CARE,Adult Social Care & Health,Homecare - new framework,A56127,0
Royal Borough of Kingston,06/03/2023,90215905,612.50,ALPENBEST LTD,SOCIAL SERVICES DAY CARE,Adult Social Care & Health,Personal Budget - Third Party,A61019,0
Royal Borough of Kingston,13/03/2023,90217190,612.51,ALPENBEST LTD,SOCIAL SERVICES DAY CARE,Adult Social Care & Health,Homecare - new framework,A56127,0
Royal Borough of Kingston,13/03/2023,90217193,560.00,ALPENBEST LTD,SOCIAL SERVICES DAY CARE,Adult Social Care & Health,Homecare - new framework,A56127,0
Royal Borough of Kingston,13/03/2023,90217205,"1,470.01",ALPENBEST LTD,SOCIAL SERVICES DAY CARE,Adult Social Care & Health,Homecare - new framework,A56127,0
Royal Borough of Kingston,13/03/2023,90217218,612.50,ALPENBEST LTD,SOCIAL SERVICES DAY CARE,Adult Social Care & Health,Homecare - new framework,A56127,0
Royal Borough of Kingston,13/03/2023,90217337,551.25,ALPENBEST LTD,SOCIAL SERVICES DAY CARE,Adult Social Care & Health,Homecare - new framework,A56127,0
Royal Borough of Kingston,13/03/2023,90217357,551.25,ALPENBEST LTD,SOCIAL SERVICES DAY CARE,Adult Social Care & Health,Homecare - new framework,A56127,0
Royal Borough of Kingston,13/03/2023,90217370,796.26,ALPENBEST LTD,SOCIAL SERVICES DAY CARE,Adult Social Care & Health,Homecare - new framework,A56127,0
Royal Borough of Kingston,13/03/2023,90217420,612.50,ALPENBEST LTD,SOCIAL SERVICES DAY CARE,Adult Social Care & Health,Homecare - new framework,A56127,0
Royal Borough of Kingston,13/03/2023,90217422,551.25,ALPENBEST LTD,SOCIAL SERVICES DAY CARE,Adult Social Care & Health,Homecare - new framework,A56127,0
Royal Borough of Kingston,13/03/2023,90217430,612.51,ALPENBEST LTD,SOCIAL SERVICES DAY CARE,Adult Social Care & Health,Homecare - new framework,A56127,0
Royal Borough of Kingston,13/03/2023,90217537,796.26,ALPENBEST LTD,SOCIAL SERVICES DAY CARE,Adult Social Care & Health,Homecare - new framework,A56127,0
Royal Borough of Kingston,13/03/2023,90217557,551.25,ALPENBEST LTD,SOCIAL SERVICES DAY CARE,Adult Social Care & Health,Homecare - new framework,A56127,0
Royal Borough of Kingston,13/03/2023,90217566,735.01,ALPENBEST LTD,SOCIAL SERVICES DAY CARE,Adult Social Care & Health,Homecare - new framework,A56127,0
Royal Borough of Kingston,13/03/2023,90217600,630.01,ALPENBEST LTD,SOCIAL SERVICES DAY CARE,Adult Social Care & Health,Homecare - new framework,A56127,0
Royal Borough of Kingston,13/03/2023,90217627,525.00,ALPENBEST LTD,SOCIAL SERVICES DAY CARE,Adult Social Care & Health,Homecare - new framework,A56127,0
Royal Borough of Kingston,13/03/2023,90217629,568.75,ALPENBEST LTD,SOCIAL SERVICES DAY CARE,Adult Social Care & Health,Homecare - new framework,A56127,0
Royal Borough of Kingston,13/03/2023,90217639,796.26,ALPENBEST LTD,SOCIAL SERVICES DAY CARE,Adult Social Care & Health,Homecare - new framework,A56127,0
Royal Borough of Kingston,13/03/2023,90217643,726.26,ALPENBEST LTD,SOCIAL SERVICES DAY CARE,Adult Social Care & Health,Homecare - new framework,A56127,0
Royal Borough of Kingston,13/03/2023,90217665,612.50,ALPENBEST LTD,SOCIAL SERVICES DAY CARE,Adult Social Care & Health,Homecare - new framework,A56127,0
Royal Borough of Kingston,13/03/2023,90218236,612.50,ALPENBEST LTD,SOCIAL SERVICES DAY CARE,Adult Social Care & Health,Personal Budget - Third Party,A61019,0
Royal Borough of Kingston,15/03/2023,70042524,"3,200.00",REDACTED - PERSONAL DATA,PLS LANDLORDS,Place,Housing Incentives,A62025,0
Royal Borough of Kingston,15/03/2023,70042525,864.12,REDACTED - PERSONAL DATA,PLS LANDLORDS,Place,PSL Payments To Landlords,A22031,0
Royal Borough of Kingston,18/01/2023,70039500,302.66,ANGLIAN WATER BUSINESS NATIONAL LTD,UTILITIES,Housing Revenue Account,Water Services,A24005,0
Royal Borough of Kingston,18/01/2023,70039500,642.56,ANGLIAN WATER BUSINESS NATIONAL LTD,UTILITIES,Housing Revenue Account,Water Services,A24005,0
Royal Borough of Kingston,18/02/2023,70041591,891.11,ANGLIAN WATER BUSINESS NATIONAL LTD,UTILITIES,Housing Revenue Account,Water Services,A24005,0
Royal Borough of Kingston,18/02/2023,70041593,"9,427.52",ANGLIAN WATER BUSINESS NATIONAL LTD,UTILITIES,Place,Water Services,A24005,0
Royal Borough of Kingston,08/02/2023,70041598,271.55,ANGLIAN WATER BUSINESS NATIONAL LTD,UTILITIES,Corporate & Communities,Water Services,A24005,0
Royal Borough of Kingston,08/02/2023,70041598,135.87,ANGLIAN WATER BUSINESS NATIONAL LTD,UTILITIES,Corporate & Communities,Water Services,A24005,0
Royal Borough of Kingston,08/02/2023,70041598,71.50,ANGLIAN WATER BUSINESS NATIONAL LTD,UTILITIES,Corporate & Communities,Water Services,A24005,0
Royal Borough of Kingston,08/02/2023,70041598,4.78,ANGLIAN WATER BUSINESS NATIONAL LTD,UTILITIES,Corporate & Communities,Water Services,A24005,0
Royal Borough of Kingston,08/02/2023,70041598,4.78,ANGLIAN WATER BUSINESS NATIONAL LTD,UTILITIES,Place,Water Services,A24005,0
Royal Borough of Kingston,08/02/2023,70041598,28.66,ANGLIAN WATER BUSINESS NATIONAL LTD,UTILITIES,Corporate & Communities,Water Services,A24005,0
Royal Borough of Kingston,08/02/2023,70041598,12.28,ANGLIAN WATER BUSINESS NATIONAL LTD,UTILITIES,Place,Water Services,A24005,0
Royal Borough of Kingston,08/02/2023,70041598,29.23,ANGLIAN WATER BUSINESS NATIONAL LTD,UTILITIES,Corporate & Communities,Water Services,A24005,0
Royal Borough of Kingston,08/02/2023,70041598,12.18,ANGLIAN WATER BUSINESS NATIONAL LTD,UTILITIES,Corporate & Communities,Water Services,A24005,0
Royal Borough of Kingston,08/02/2023,70041598,101.77,ANGLIAN WATER BUSINESS NATIONAL LTD,UTILITIES,Corporate & Communities,Water Services,A24005,0
Royal Borough of Kingston,08/02/2023,70041598,101.77,ANGLIAN WATER BUSINESS NATIONAL LTD,UTILITIES,Place,Water Services,A24005,0
Royal Borough of Kingston,18/02/2023,70041725,554.67,ANGLIAN WATER BUSINESS NATIONAL LTD,UTILITIES,Corporate & Communities,Water Services,A24005,0
Royal Borough of Kingston,08/12/2022,70042479,529.50,ANGLIAN WATER BUSINESS NATIONAL LTD,UTILITIES,Corporate & Communities,Water Services,A24005,0
Royal Borough of Kingston,18/03/2023,70043268,"1,229.57",ANGLIAN WATER BUSINESS NATIONAL LTD,UTILITIES,Housing Revenue Account,Water Services,A24005,0
Royal Borough of Kingston,18/03/2023,70043320,503.73,ANGLIAN WATER BUSINESS NATIONAL LTD,UTILITIES,Corporate & Communities,Water Services,A24005,0
Royal Borough of Kingston,18/03/2023,70043335,894.24,ANGLIAN WATER BUSINESS NATIONAL LTD,UTILITIES,Housing Revenue Account,Water Services,A24005,0
Royal Borough of Kingston,06/03/2023,70042119,"3,410.80",AON UK LTD,FINANCIAL / INSURANCE INSTNS,Corporate & Communities,General Insurance (Excl Premises & Transport),A44260,0
Royal Borough of Kingston,12/10/2022,70042236,"2,300.00",AON UK LTD,FINANCIAL / INSURANCE INSTNS,Corporate & Communities,General Insurance (Excl Premises & Transport),A44260,0
Royal Borough of Kingston,06/03/2023,70041995,"1,225.00",AP RENTAL INC LTD,LANDLORDS,Adult Social Care & Health,Housing Benefit - Rent Allowances -Private Tenants Only,A62009,0
Royal Borough of Kingston,06/03/2023,70041996,"1,060.00",AP RENTAL INC LTD,LANDLORDS,Adult Social Care & Health,Housing Benefit - Rent Allowances -Private Tenants Only,A62009,0
Royal Borough of Kingston,06/03/2023,70041997,900.00,AP RENTAL INC LTD,LANDLORDS,Adult Social Care & Health,Housing Benefit - Rent Allowances -Private Tenants Only,A62009,0
Royal Borough of Kingston,06/03/2023,70041999,"1,110.00",AP RENTAL INC LTD,LANDLORDS,Adult Social Care & Health,Housing Benefit - Rent Allowances -Private Tenants Only,A62009,0
Royal Borough of Kingston,06/03/2023,70042000,"1,260.00",AP RENTAL INC LTD,LANDLORDS,Adult Social Care & Health,Housing Benefit - Rent Allowances -Private Tenants Only,A62009,0
Royal Borough of Kingston,28/02/2023,70042208,"1,624.00",APEX HOUSING SOLUTIONS LTD,ACCOMMODATION BED & BREAKFAST,Place,Bed & Breakfast,A56000,0
Royal Borough of Kingston,28/02/2023,70042209,"1,509.20",APEX HOUSING SOLUTIONS LTD,ACCOMMODATION BED & BREAKFAST,Place,Bed & Breakfast,A56000,0
Royal Borough of Kingston,28/02/2023,70042210,"1,232.00",APEX HOUSING SOLUTIONS LTD,ACCOMMODATION BED & BREAKFAST,Place,Bed & Breakfast,A56000,0
Royal Borough of Kingston,28/02/2023,70042211,"1,932.00",APEX HOUSING SOLUTIONS LTD,ACCOMMODATION BED & BREAKFAST,Place,Bed & Breakfast,A56000,0
Royal Borough of Kingston,28/02/2023,70042212,"2,492.00",APEX HOUSING SOLUTIONS LTD,ACCOMMODATION BED & BREAKFAST,Place,Bed & Breakfast,A56000,0
Royal Borough of Kingston,28/02/2023,70042213,"1,540.00",APEX HOUSING SOLUTIONS LTD,ACCOMMODATION BED & BREAKFAST,Place,Bed & Breakfast,A56000,0
Royal Borough of Kingston,28/02/2023,70042214,"2,128.00",APEX HOUSING SOLUTIONS LTD,ACCOMMODATION BED & BREAKFAST,Place,Bed & Breakfast,A56000,0
Royal Borough of Kingston,28/02/2023,70042215,"1,120.00",APEX HOUSING SOLUTIONS LTD,ACCOMMODATION BED & BREAKFAST,Place,Bed & Breakfast,A56000,0
Royal Borough of Kingston,28/02/2023,70042216,"1,397.20",APEX HOUSING SOLUTIONS LTD,ACCOMMODATION BED & BREAKFAST,Place,Bed & Breakfast,A56000,0
Royal Borough of Kingston,28/02/2023,70042217,"1,453.20",APEX HOUSING SOLUTIONS LTD,ACCOMMODATION BED & BREAKFAST,Place,Bed & Breakfast,A56000,0
Royal Borough of Kingston,28/02/2023,70042218,"1,260.00",APEX HOUSING SOLUTIONS LTD,ACCOMMODATION BED & BREAKFAST,Place,Bed & Breakfast,A56000,0
Royal Borough of Kingston,28/02/2023,70042219,"1,566.00",APEX HOUSING SOLUTIONS LTD,ACCOMMODATION BED & BREAKFAST,Place,Bed & Breakfast,A56000,0
Royal Borough of Kingston,28/02/2023,70042220,"1,540.00",APEX HOUSING SOLUTIONS LTD,ACCOMMODATION BED & BREAKFAST,Place,Bed & Breakfast,A56000,0
Royal Borough of Kingston,28/02/2023,70042221,"1,509.20",APEX HOUSING SOLUTIONS LTD,ACCOMMODATION BED & BREAKFAST,Place,Bed & Breakfast,A56000,0
Royal Borough of Kingston,28/02/2023,70042222,"1,624.00",APEX HOUSING SOLUTIONS LTD,ACCOMMODATION BED & BREAKFAST,Place,Bed & Breakfast,A56000,0
Royal Borough of Kingston,28/02/2023,70042223,"1,540.00",APEX HOUSING SOLUTIONS LTD,ACCOMMODATION BED & BREAKFAST,Place,Bed & Breakfast,A56000,0
Royal Borough of Kingston,28/02/2023,70042224,"1,624.00",APEX HOUSING SOLUTIONS LTD,ACCOMMODATION BED & BREAKFAST,Place,Bed & Breakfast,A56000,0
Royal Borough of Kingston,28/02/2023,70042225,"1,540.00",APEX HOUSING SOLUTIONS LTD,ACCOMMODATION BED & BREAKFAST,Place,Bed & Breakfast,A56000,0
Royal Borough of Kingston,28/02/2023,70042226,"1,960.00",APEX HOUSING SOLUTIONS LTD,ACCOMMODATION BED & BREAKFAST,Place,Bed & Breakfast,A56000,0
Royal Borough of Kingston,28/02/2023,70042227,"1,540.00",APEX HOUSING SOLUTIONS LTD,ACCOMMODATION BED & BREAKFAST,Place,Bed & Breakfast,A56000,0
Royal Borough of Kingston,28/02/2023,70042278,"1,960.00",APEX HOUSING SOLUTIONS LTD,ACCOMMODATION BED & BREAKFAST,Place,Bed & Breakfast,A56000,0
Royal Borough of Kingston,28/02/2023,70042279,"1,509.20",APEX HOUSING SOLUTIONS LTD,ACCOMMODATION BED & BREAKFAST,Place,Bed & Breakfast,A56000,0
Royal Borough of Kingston,28/02/2023,70042280,"1,453.20",APEX HOUSING SOLUTIONS LTD,ACCOMMODATION BED & BREAKFAST,Place,Bed & Breakfast,A56000,0
Royal Borough of Kingston,28/02/2023,70042281,"1,624.00",APEX HOUSING SOLUTIONS LTD,ACCOMMODATION BED & BREAKFAST,Place,Bed & Breakfast,A56000,0
Royal Borough of Kingston,18/01/2023,70042296,"3,017.00",ASCENDIT LIFTS LTD,BUILDING MNTCE - SERVICES,Capital Programme,Grants Given For Capital Purposes,C20004,0
Royal Borough of Kingston,02/03/2023,70042297,"2,883.00",ASCENDIT LIFTS LTD,BUILDING MNTCE - SERVICES,Capital Programme,Grants Given For Capital Purposes,C20004,0
Royal Borough of Kingston,01/03/2023,90216851,"6,303.76",ASHCROFT CARE SERVICES LIMITED,SOCIAL SERVICES RESIDENTIAL,Adult Social Care & Health,Independent Placements,A56006,0
Royal Borough of Kingston,01/03/2023,90218174,952.32,ASHINGTON HOUSE LTD,SOCIAL SERVICES RESIDENTIAL,Adult Social Care & Health,Personal Budget - Third Party,A61019,0
Royal Borough of Kingston,01/03/2023,90218100,"1,349.25",ASHPRIME PROPERTIES LTD,SOCIAL SERVICES RESIDENTIAL,Adult Social Care & Health,Personal Budget - Third Party,A61019,0
Royal Borough of Kingston,23/01/2023,70041940,776.04,ASKEWS AND HOLTS LIBRARY SERVICES LTD,BOOKS PUBLICATIONS STATIONERY,Corporate & Communities,Books,A43050,0
Royal Borough of Kingston,23/01/2023,70041940,418.66,ASKEWS AND HOLTS LIBRARY SERVICES LTD,BOOKS PUBLICATIONS STATIONERY,Corporate & Communities,Books,A43050,0
Royal Borough of Kingston,23/01/2023,70041940,4.46,ASKEWS AND HOLTS LIBRARY SERVICES LTD,BOOKS PUBLICATIONS STATIONERY,Corporate & Communities,Books,A43050,0
Royal Borough of Kingston,23/01/2023,70041940,521.19,ASKEWS AND HOLTS LIBRARY SERVICES LTD,BOOKS PUBLICATIONS STATIONERY,Corporate & Communities,Books,A43050,0
Royal Borough of Kingston,23/01/2023,70041940,531.32,ASKEWS AND HOLTS LIBRARY SERVICES LTD,BOOKS PUBLICATIONS STATIONERY,Corporate & Communities,Books,A43050,0
Royal Borough of Kingston,01/03/2023,90218150,"2,655.50",Aspirations Care Ltd,SOCIAL SERVICES - OTHER,Adult Social Care & Health,Personal Budget - Third Party,A61019,0
Royal Borough of Kingston,01/03/2023,90216547,"4,852.08",ASTORIA HEALTHCARE LTD,SOCIAL SERVICES RESIDENTIAL,Adult Social Care & Health,Independent Placements,A56006,0
Royal Borough of Kingston,30/06/2022,70042206,"7,300.00",Atamis Limited,BUSINESS & COMPUTER SYSTEMS,Corporate & Communities,IT Software Purchase,A45040,0
Royal Borough of Kingston,01/03/2023,90216789,"11,345.03",AUTISM CONSULTANTS LTD,SOCIAL SERVICES RESIDENTIAL,Adult Social Care & Health,Independent Placements,A56006,0
Royal Borough of Kingston,01/03/2023,70042051,"20,000.00",AVA (Against Violence and Abuse),TRAINING,Adult Social Care & Health,Staff Development And Training,A15022,0
Royal Borough of Kingston,20/02/2023,70041875,"1,420.45",AVICENNA PSYCHIATRY,SOCIAL SERVICES - OTHER,Adult Social Care & Health,Other Private Contractors - Third Party,A56080,0
Royal Borough of Kingston,10/03/2023,70042338,"1,410.55",AVICENNA PSYCHIATRY,SOCIAL SERVICES - OTHER,Adult Social Care & Health,Other Private Contractors - Third Party,A56080,0
Royal Borough of Kingston,14/07/2022,70028135,"8,238.74",AXIS EUROPE PLC,CONSTRUCTION INDUSTRY,Capital Programme,Council Dwellings - Construction & Renovation,C10002,0
Royal Borough of Kingston,31/10/2022,70034535,"50,072.20",AXIS EUROPE PLC,CONSTRUCTION INDUSTRY,Capital Programme,Council Dwellings - Construction & Renovation,C10002,0
Royal Borough of Kingston,31/12/2022,70037889,547.67,AXIS EUROPE PLC,CONSTRUCTION INDUSTRY,Adult Social Care & Health,Lift Servicing And Repairs,A20006,0
Royal Borough of Kingston,15/12/2022,70038054,905.17,AXIS EUROPE PLC,CONSTRUCTION INDUSTRY,Adult Social Care & Health,Lift Servicing And Repairs,A20006,0
Royal Borough of Kingston,06/02/2023,70040298,"1,399.49",AXIS EUROPE PLC,CONSTRUCTION INDUSTRY,Capital Programme,Buildings - Project Management,C14003,0
Royal Borough of Kingston,20/02/2023,70041013,"-8,640.34",AXIS EUROPE PLC,CONSTRUCTION INDUSTRY,Place,Void Property Repairs,A20036,0
Royal Borough of Kingston,20/02/2023,70041014,"-3,253.18",AXIS EUROPE PLC,CONSTRUCTION INDUSTRY,Housing Revenue Account,Void Property Repairs,A20036,0
Royal Borough of Kingston,22/02/2023,70041139,"10,531.09",AXIS EUROPE PLC,CONSTRUCTION INDUSTRY,Capital Programme,Council Dwellings - Capitalised Voids,C10001,0
Royal Borough of Kingston,22/02/2023,70041140,"6,142.72",AXIS EUROPE PLC,CONSTRUCTION INDUSTRY,Capital Programme,Council Dwellings - Capitalised Voids,C10001,0
Royal Borough of Kingston,23/02/2023,70041567,"37,542.87",AXIS EUROPE PLC,CONSTRUCTION INDUSTRY,Capital Programme,Council Dwellings - Construction & Renovation,C10002,0
Royal Borough of Kingston,27/02/2023,70041572,771.14,AXIS EUROPE PLC,CONSTRUCTION INDUSTRY,Capital Programme,Council Dwellings - Construction & Renovation,C10002,0
Royal Borough of Kingston,27/02/2023,70041573,"3,337.84",AXIS EUROPE PLC,CONSTRUCTION INDUSTRY,Capital Programme,Council Dwellings - Construction & Renovation,C10002,0
Royal Borough of Kingston,27/02/2023,70041576,"1,140.15",AXIS EUROPE PLC,CONSTRUCTION INDUSTRY,Capital Programme,Council Dwellings - Capitalised Voids,C10001,0
Royal Borough of Kingston,27/02/2023,70041577,"1,015.71",AXIS EUROPE PLC,CONSTRUCTION INDUSTRY,Capital Programme,Council Dwellings - Fire Safety,C10004,0
Royal Borough of Kingston,27/02/2023,70041578,"1,463.52",AXIS EUROPE PLC,CONSTRUCTION INDUSTRY,Capital Programme,Council Dwellings - Capitalised Voids,C10001,0
Royal Borough of Kingston,27/02/2023,70041579,858.33,AXIS EUROPE PLC,CONSTRUCTION INDUSTRY,Capital Programme,Council Dwellings - Fire Safety,C10004,0
Royal Borough of Kingston,27/02/2023,70041580,660.00,AXIS EUROPE PLC,CONSTRUCTION INDUSTRY,Capital Programme,Council Dwellings - Construction & Renovation,C10002,0
Royal Borough of Kingston,27/02/2023,70041581,"6,000.00",AXIS EUROPE PLC,CONSTRUCTION INDUSTRY,Capital Programme,Council Dwellings - Construction & Renovation,C10002,0
Royal Borough of Kingston,28/02/2023,70041634,"165,194.09",AXIS EUROPE PLC,CONSTRUCTION INDUSTRY,Capital Programme,Council Dwellings - Construction & Renovation,C10002,0
Royal Borough of Kingston,28/02/2023,70041635,"15,897.42",AXIS EUROPE PLC,CONSTRUCTION INDUSTRY,Place,Void Property Repairs,A20036,0
Royal Borough of Kingston,28/02/2023,70041636,"6,905.58",AXIS EUROPE PLC,CONSTRUCTION INDUSTRY,Housing Revenue Account,Void Property Repairs,A20036,0
Royal Borough of Kingston,28/02/2023,70041665,528.78,AXIS EUROPE PLC,CONSTRUCTION INDUSTRY,Place,Contract Cleaning,A27010,0
Royal Borough of Kingston,28/02/2023,70041666,"1,306.20",AXIS EUROPE PLC,CONSTRUCTION INDUSTRY,Capital Programme,Council Dwellings - Construction & Renovation,C10002,0
Royal Borough of Kingston,28/02/2023,70041667,"1,531.82",AXIS EUROPE PLC,CONSTRUCTION INDUSTRY,Capital Programme,Council Dwellings - Construction & Renovation,C10002,0
Royal Borough of Kingston,28/02/2023,70041668,"4,784.20",AXIS EUROPE PLC,CONSTRUCTION INDUSTRY,Capital Programme,Council Dwellings - Construction & Renovation,C10002,0
Royal Borough of Kingston,28/02/2023,70041681,"2,194.11",AXIS EUROPE PLC,CONSTRUCTION INDUSTRY,Capital Programme,Council Dwellings - Construction & Renovation,C10002,0
Royal Borough of Kingston,28/02/2023,70041682,"2,617.92",AXIS EUROPE PLC,CONSTRUCTION INDUSTRY,Capital Programme,Council Dwellings - Construction & Renovation,C10002,0
Royal Borough of Kingston,28/02/2023,70041683,"2,014.25",AXIS EUROPE PLC,CONSTRUCTION INDUSTRY,Capital Programme,Council Dwellings - Construction & Renovation,C10002,0
Royal Borough of Kingston,28/02/2023,70041684,"2,265.64",AXIS EUROPE PLC,CONSTRUCTION INDUSTRY,Capital Programme,Council Dwellings - Construction & Renovation,C10002,0
Royal Borough of Kingston,28/02/2023,70041685,"2,285.85",AXIS EUROPE PLC,CONSTRUCTION INDUSTRY,Capital Programme,Council Dwellings - Construction & Renovation,C10002,0
Royal Borough of Kingston,28/02/2023,70041686,"2,142.23",AXIS EUROPE PLC,CONSTRUCTION INDUSTRY,Capital Programme,Council Dwellings - Construction & Renovation,C10002,0
Royal Borough of Kingston,28/02/2023,70041687,"2,145.07",AXIS EUROPE PLC,CONSTRUCTION INDUSTRY,Capital Programme,Council Dwellings - Construction & Renovation,C10002,0
Royal Borough of Kingston,28/02/2023,70041688,"2,339.20",AXIS EUROPE PLC,CONSTRUCTION INDUSTRY,Capital Programme,Council Dwellings - Construction & Renovation,C10002,0
Royal Borough of Kingston,28/02/2023,70041689,"2,097.45",AXIS EUROPE PLC,CONSTRUCTION INDUSTRY,Capital Programme,Council Dwellings - Construction & Renovation,C10002,0
Royal Borough of Kingston,28/02/2023,70041690,"2,958.23",AXIS EUROPE PLC,CONSTRUCTION INDUSTRY,Capital Programme,Council Dwellings - Construction & Renovation,C10002,0
Royal Borough of Kingston,28/02/2023,70041691,"2,271.55",AXIS EUROPE PLC,CONSTRUCTION INDUSTRY,Capital Programme,Council Dwellings - Construction & Renovation,C10002,0
Royal Borough of Kingston,28/02/2023,70041692,"2,189.80",AXIS EUROPE PLC,CONSTRUCTION INDUSTRY,Capital Programme,Council Dwellings - Construction & Renovation,C10002,0
Royal Borough of Kingston,28/02/2023,70041693,"2,194.11",AXIS EUROPE PLC,CONSTRUCTION INDUSTRY,Capital Programme,Council Dwellings - Construction & Renovation,C10002,0
Royal Borough of Kingston,28/02/2023,70041694,"2,259.21",AXIS EUROPE PLC,CONSTRUCTION INDUSTRY,Capital Programme,Council Dwellings - Construction & Renovation,C10002,0
Royal Borough of Kingston,28/02/2023,70041695,"2,194.11",AXIS EUROPE PLC,CONSTRUCTION INDUSTRY,Capital Programme,Council Dwellings - Construction & Renovation,C10002,0
Royal Borough of Kingston,28/02/2023,70041696,"2,149.96",AXIS EUROPE PLC,CONSTRUCTION INDUSTRY,Capital Programme,Council Dwellings - Construction & Renovation,C10002,0
Royal Borough of Kingston,28/02/2023,70041697,"2,423.55",AXIS EUROPE PLC,CONSTRUCTION INDUSTRY,Capital Programme,Council Dwellings - Construction & Renovation,C10002,0
Royal Borough of Kingston,28/02/2023,70041698,"2,132.17",AXIS EUROPE PLC,CONSTRUCTION INDUSTRY,Capital Programme,Council Dwellings - Construction & Renovation,C10002,0
Royal Borough of Kingston,28/02/2023,70041699,"2,040.57",AXIS EUROPE PLC,CONSTRUCTION INDUSTRY,Capital Programme,Council Dwellings - Construction & Renovation,C10002,0
Royal Borough of Kingston,28/02/2023,70041700,"2,305.59",AXIS EUROPE PLC,CONSTRUCTION INDUSTRY,Capital Programme,Council Dwellings - Construction & Renovation,C10002,0
Royal Borough of Kingston,28/02/2023,70041828,"60,754.97",AXIS EUROPE PLC,CONSTRUCTION INDUSTRY,Housing Revenue Account,Electrical Repairs,A20002,0
Royal Borough of Kingston,06/03/2023,70042017,490.37,AXIS EUROPE PLC,CONSTRUCTION INDUSTRY,Capital Programme,Asbestos Removal,C10000,0
Royal Borough of Kingston,06/03/2023,70042019,"1,015.71",AXIS EUROPE PLC,CONSTRUCTION INDUSTRY,Capital Programme,Council Dwellings - Fire Safety,C10004,0
Royal Borough of Kingston,06/03/2023,70042020,"2,688.22",AXIS EUROPE PLC,CONSTRUCTION INDUSTRY,Capital Programme,Council Dwellings - Construction & Renovation,C10002,0
Royal Borough of Kingston,06/03/2023,70042021,"9,307.07",AXIS EUROPE PLC,CONSTRUCTION INDUSTRY,Capital Programme,Council Dwellings - Construction & Renovation,C10002,0
Royal Borough of Kingston,06/03/2023,70042022,"1,015.71",AXIS EUROPE PLC,CONSTRUCTION INDUSTRY,Capital Programme,Council Dwellings - Fire Safety,C10004,0
Royal Borough of Kingston,06/03/2023,70042023,"20,225.26",AXIS EUROPE PLC,CONSTRUCTION INDUSTRY,Capital Programme,Council Dwellings - Construction & Renovation,C10002,0
Royal Borough of Kingston,06/03/2023,70042024,543.54,AXIS EUROPE PLC,CONSTRUCTION INDUSTRY,Capital Programme,Asbestos Removal,C10000,0
Royal Borough of Kingston,28/02/2023,70042184,"99,000.06",AXIS EUROPE PLC,CONSTRUCTION INDUSTRY,Housing Revenue Account,Housing - Heating & Ventilation,A20045,0
Royal Borough of Kingston,28/02/2023,70042185,"192,995.61",AXIS EUROPE PLC,CONSTRUCTION INDUSTRY,Housing Revenue Account,Property Repairs & Maintenance & Alterations - Responsive,A20011,0
Royal Borough of Kingston,28/02/2023,70042186,"36,551.18",AXIS EUROPE PLC,CONSTRUCTION INDUSTRY,Housing Revenue Account,Void Property Repairs,A20036,0
Royal Borough of Kingston,06/02/2023,70043542,"2,474.78",AXIS EUROPE PLC,CONSTRUCTION INDUSTRY,Capital Programme,Council Dwellings - Capitalised Voids,C10001,0
Royal Borough of Kingston,06/02/2023,70043543,"1,719.20",AXIS EUROPE PLC,CONSTRUCTION INDUSTRY,Capital Programme,Buildings - Project Management,C14003,0
Royal Borough of Kingston,28/12/2022,70038581,"47,216.11",BALANCE (SUPPORT) C.I.C,SOCIAL SERVICES - OTHER,Adult Social Care & Health,Professional Fees,A44066,0
Royal Borough of Kingston,28/01/2023,70040023,"55,872.47",BALANCE (SUPPORT) C.I.C,SOCIAL SERVICES - OTHER,Adult Social Care & Health,Professional Fees,A44066,0
Royal Borough of Kingston,06/02/2023,90213398,960.96,BALANCE (SUPPORT) C.I.C,SOCIAL SERVICES - OTHER,Adult Social Care & Health,Supported Living - new framework,A56126,0
Royal Borough of Kingston,06/02/2023,90213399,"1,201.20",BALANCE (SUPPORT) C.I.C,SOCIAL SERVICES - OTHER,Adult Social Care & Health,Supported Living - new framework,A56126,0
Royal Borough of Kingston,06/02/2023,90213402,800.80,BALANCE (SUPPORT) C.I.C,SOCIAL SERVICES - OTHER,Adult Social Care & Health,Supported Living - new framework,A56126,0
Royal Borough of Kingston,06/02/2023,90213404,720.72,BALANCE (SUPPORT) C.I.C,SOCIAL SERVICES - OTHER,Adult Social Care & Health,Supported Living - new framework,A56126,0
Royal Borough of Kingston,06/02/2023,90213409,"1,121.12",BALANCE (SUPPORT) C.I.C,SOCIAL SERVICES - OTHER,Adult Social Care & Health,Supported Living - new framework,A56126,0
Royal Borough of Kingston,06/02/2023,90213416,960.96,BALANCE (SUPPORT) C.I.C,SOCIAL SERVICES - OTHER,Adult Social Care & Health,Supported Living - new framework,A56126,0
Royal Borough of Kingston,01/03/2023,90216948,"2,486.20",BALANCE (SUPPORT) C.I.C,SOCIAL SERVICES - OTHER,Adult Social Care & Health,Supported Living - new framework,A56126,0
Royal Borough of Kingston,01/03/2023,90216949,618.28,BALANCE (SUPPORT) C.I.C,SOCIAL SERVICES - OTHER,Adult Social Care & Health,Supported Living - new framework,A56126,0
Royal Borough of Kingston,01/03/2023,90216953,701.98,BALANCE (SUPPORT) C.I.C,SOCIAL SERVICES - OTHER,Adult Social Care & Health,Supported Living - new framework,A56126,0
Royal Borough of Kingston,01/03/2023,90216954,"1,864.64",BALANCE (SUPPORT) C.I.C,SOCIAL SERVICES - OTHER,Adult Social Care & Health,Supported Living - new framework,A56126,0
Royal Borough of Kingston,01/03/2023,90216959,"1,595.88",BALANCE (SUPPORT) C.I.C,SOCIAL SERVICES - OTHER,Adult Social Care & Health,Supported Living - new framework,A56126,0
Royal Borough of Kingston,01/03/2023,90216972,886.60,BALANCE (SUPPORT) C.I.C,SOCIAL SERVICES - OTHER,Adult Social Care & Health,Supported Living - new framework,A56126,0
Royal Borough of Kingston,01/03/2023,90216973,"1,695.62",BALANCE (SUPPORT) C.I.C,SOCIAL SERVICES - OTHER,Adult Social Care & Health,Supported Living - new framework,A56126,0
Royal Borough of Kingston,01/03/2023,90216981,886.60,BALANCE (SUPPORT) C.I.C,SOCIAL SERVICES - OTHER,Adult Social Care & Health,Supported Living - new framework,A56126,0
Royal Borough of Kingston,01/03/2023,90216982,"2,260.83",BALANCE (SUPPORT) C.I.C,SOCIAL SERVICES - OTHER,Adult Social Care & Health,Supported Living - new framework,A56126,0
Royal Borough of Kingston,01/03/2023,90216983,583.83,BALANCE (SUPPORT) C.I.C,SOCIAL SERVICES - OTHER,Adult Social Care & Health,Supported Living - new framework,A56126,0
Royal Borough of Kingston,01/03/2023,90216990,"1,152.58",BALANCE (SUPPORT) C.I.C,SOCIAL SERVICES - OTHER,Adult Social Care & Health,Supported Living - new framework,A56126,0
Royal Borough of Kingston,01/03/2023,90216991,"2,260.83",BALANCE (SUPPORT) C.I.C,SOCIAL SERVICES - OTHER,Adult Social Care & Health,Supported Living - new framework,A56126,0
Royal Borough of Kingston,01/03/2023,90216992,583.83,BALANCE (SUPPORT) C.I.C,SOCIAL SERVICES - OTHER,Adult Social Care & Health,Supported Living - new framework,A56126,0
Royal Borough of Kingston,01/03/2023,90216993,"1,864.64",BALANCE (SUPPORT) C.I.C,SOCIAL SERVICES - OTHER,Adult Social Care & Health,Supported Living - new framework,A56126,0
Royal Borough of Kingston,01/03/2023,90216994,701.98,BALANCE (SUPPORT) C.I.C,SOCIAL SERVICES - OTHER,Adult Social Care & Health,Supported Living - new framework,A56126,0
Royal Borough of Kingston,01/03/2023,90216996,"2,260.83",BALANCE (SUPPORT) C.I.C,SOCIAL SERVICES - OTHER,Adult Social Care & Health,Supported Living - new framework,A56126,0
Royal Borough of Kingston,01/03/2023,90216997,583.83,BALANCE (SUPPORT) C.I.C,SOCIAL SERVICES - OTHER,Adult Social Care & Health,Supported Living - new framework,A56126,0
Royal Borough of Kingston,01/03/2023,90216998,620.62,BALANCE (SUPPORT) C.I.C,SOCIAL SERVICES - OTHER,Adult Social Care & Health,Supported Living - new framework,A56126,0
Royal Borough of Kingston,01/03/2023,90217007,975.26,BALANCE (SUPPORT) C.I.C,SOCIAL SERVICES - OTHER,Adult Social Care & Health,Supported Living - new framework,A56126,0
Royal Borough of Kingston,01/03/2023,90217008,"1,695.62",BALANCE (SUPPORT) C.I.C,SOCIAL SERVICES - OTHER,Adult Social Care & Health,Supported Living - new framework,A56126,0
Royal Borough of Kingston,01/03/2023,90217015,"1,695.62",BALANCE (SUPPORT) C.I.C,SOCIAL SERVICES - OTHER,Adult Social Care & Health,Supported Living - new framework,A56126,0
Royal Borough of Kingston,01/03/2023,90217020,709.28,BALANCE (SUPPORT) C.I.C,SOCIAL SERVICES - OTHER,Adult Social Care & Health,Supported Living - new framework,A56126,0
Royal Borough of Kingston,01/03/2023,90217024,797.94,BALANCE (SUPPORT) C.I.C,SOCIAL SERVICES - OTHER,Adult Social Care & Health,Supported Living - new framework,A56126,0
Royal Borough of Kingston,06/03/2023,90217029,536.25,BALANCE (SUPPORT) C.I.C,SOCIAL SERVICES - OTHER,Adult Social Care & Health,Supported Living - new framework,A56126,0
Royal Borough of Kingston,06/03/2023,90217030,600.60,BALANCE (SUPPORT) C.I.C,SOCIAL SERVICES - OTHER,Adult Social Care & Health,Supported Living - new framework,A56126,0
Royal Borough of Kingston,06/03/2023,90217032,600.60,BALANCE (SUPPORT) C.I.C,SOCIAL SERVICES - OTHER,Adult Social Care & Health,Supported Living - new framework,A56126,0
Royal Borough of Kingston,06/03/2023,90217033,600.60,BALANCE (SUPPORT) C.I.C,SOCIAL SERVICES - OTHER,Adult Social Care & Health,Supported Living - new framework,A56126,0
Royal Borough of Kingston,06/03/2023,90217034,600.60,BALANCE (SUPPORT) C.I.C,SOCIAL SERVICES - OTHER,Adult Social Care & Health,Supported Living - new framework,A56126,0
Royal Borough of Kingston,06/03/2023,90217035,600.60,BALANCE (SUPPORT) C.I.C,SOCIAL SERVICES - OTHER,Adult Social Care & Health,Supported Living - new framework,A56126,0
Royal Borough of Kingston,06/03/2023,90217037,557.70,BALANCE (SUPPORT) C.I.C,SOCIAL SERVICES - OTHER,Adult Social Care & Health,Supported Living - new framework,A56126,0
Royal Borough of Kingston,06/03/2023,90217040,"1,115.40",BALANCE (SUPPORT) C.I.C,SOCIAL SERVICES - OTHER,Adult Social Care & Health,Supported Living - new framework,A56126,0
Royal Borough of Kingston,06/03/2023,90217046,743.60,BALANCE (SUPPORT) C.I.C,SOCIAL SERVICES - OTHER,Adult Social Care & Health,Supported Living - new framework,A56126,0
Royal Borough of Kingston,06/03/2023,90217050,669.24,BALANCE (SUPPORT) C.I.C,SOCIAL SERVICES - OTHER,Adult Social Care & Health,Supported Living - new framework,A56126,0
Royal Borough of Kingston,06/03/2023,90217058,"1,041.04",BALANCE (SUPPORT) C.I.C,SOCIAL SERVICES - OTHER,Adult Social Care & Health,Supported Living - new framework,A56126,0
Royal Borough of Kingston,06/03/2023,90217152,892.32,BALANCE (SUPPORT) C.I.C,SOCIAL SERVICES - OTHER,Adult Social Care & Health,Supported Living - new framework,A56126,0
Royal Borough of Kingston,01/03/2023,90217838,548.27,BALANCE (SUPPORT) C.I.C,SOCIAL SERVICES - OTHER,Adult Social Care & Health,Personal Budget - Third Party,A61019,0
Royal Borough of Kingston,01/03/2023,90217839,548.27,BALANCE (SUPPORT) C.I.C,SOCIAL SERVICES - OTHER,Adult Social Care & Health,Personal Budget - Third Party,A61019,0
Royal Borough of Kingston,01/03/2023,90217840,"12,933.64",BALANCE (SUPPORT) C.I.C,SOCIAL SERVICES - OTHER,Adult Social Care & Health,Personal Budget - Third Party,A61019,0
Royal Borough of Kingston,01/03/2023,90217953,"1,054.97",BALANCE (SUPPORT) C.I.C,SOCIAL SERVICES - OTHER,Adult Social Care & Health,Personal Budget - Third Party,A61019,0
Royal Borough of Kingston,01/03/2023,90217960,575.45,BALANCE (SUPPORT) C.I.C,SOCIAL SERVICES - OTHER,Adult Social Care & Health,Personal Budget - Third Party,A61019,0
Royal Borough of Kingston,01/03/2023,90217972,-579.17,BALANCE (SUPPORT) C.I.C,SOCIAL SERVICES - OTHER,Adult Social Care & Health,Personal Budget - Third Party,A61019,0
Royal Borough of Kingston,01/03/2023,90217973,-560.49,BALANCE (SUPPORT) C.I.C,SOCIAL SERVICES - OTHER,Adult Social Care & Health,Personal Budget - Third Party,A61019,0
Royal Borough of Kingston,01/03/2023,90217974,-579.17,BALANCE (SUPPORT) C.I.C,SOCIAL SERVICES - OTHER,Adult Social Care & Health,Personal Budget - Third Party,A61019,0
Royal Borough of Kingston,01/03/2023,90217975,-579.17,BALANCE (SUPPORT) C.I.C,SOCIAL SERVICES - OTHER,Adult Social Care & Health,Personal Budget - Third Party,A61019,0
Royal Borough of Kingston,01/03/2023,90217976,-523.12,BALANCE (SUPPORT) C.I.C,SOCIAL SERVICES - OTHER,Adult Social Care & Health,Personal Budget - Third Party,A61019,0
Royal Borough of Kingston,01/03/2023,90217978,959.10,BALANCE (SUPPORT) C.I.C,SOCIAL SERVICES - OTHER,Adult Social Care & Health,Personal Budget - Third Party,A61019,0
Royal Borough of Kingston,01/03/2023,90217980,"1,342.70",BALANCE (SUPPORT) C.I.C,SOCIAL SERVICES - OTHER,Adult Social Care & Health,Personal Budget - Third Party,A61019,0
Royal Borough of Kingston,01/03/2023,90217981,959.10,BALANCE (SUPPORT) C.I.C,SOCIAL SERVICES - OTHER,Adult Social Care & Health,Personal Budget - Third Party,A61019,0
Royal Borough of Kingston,01/03/2023,90217982,527.49,BALANCE (SUPPORT) C.I.C,SOCIAL SERVICES - OTHER,Adult Social Care & Health,Personal Budget - Third Party,A61019,0
Royal Borough of Kingston,01/03/2023,90217987,"1,294.78",BALANCE (SUPPORT) C.I.C,SOCIAL SERVICES - OTHER,Adult Social Care & Health,Personal Budget - Third Party,A61019,0
Royal Borough of Kingston,01/03/2023,90217989,575.45,BALANCE (SUPPORT) C.I.C,SOCIAL SERVICES - OTHER,Adult Social Care & Health,Personal Budget - Third Party,A61019,0
Royal Borough of Kingston,01/03/2023,90217999,"2,205.87",BALANCE (SUPPORT) C.I.C,SOCIAL SERVICES - OTHER,Adult Social Care & Health,Personal Budget - Third Party,A61019,0
Royal Borough of Kingston,01/03/2023,90218001,"1,438.62",BALANCE (SUPPORT) C.I.C,SOCIAL SERVICES - OTHER,Adult Social Care & Health,Personal Budget - Third Party,A61019,0
Royal Borough of Kingston,01/03/2023,90218011,575.45,BALANCE (SUPPORT) C.I.C,SOCIAL SERVICES - OTHER,Adult Social Care & Health,Personal Budget - Third Party,A61019,0
Royal Borough of Kingston,01/03/2023,90218014,575.45,BALANCE (SUPPORT) C.I.C,SOCIAL SERVICES - OTHER,Adult Social Care & Health,Personal Budget - Third Party,A61019,0
Royal Borough of Kingston,01/03/2023,90218017,"1,534.50",BALANCE (SUPPORT) C.I.C,SOCIAL SERVICES - OTHER,Adult Social Care & Health,Personal Budget - Third Party,A61019,0
Royal Borough of Kingston,01/03/2023,90218023,"2,644.74",BALANCE (SUPPORT) C.I.C,SOCIAL SERVICES - OTHER,Adult Social Care & Health,Personal Budget - Third Party,A61019,0
Royal Borough of Kingston,01/03/2023,90218024,671.37,BALANCE (SUPPORT) C.I.C,SOCIAL SERVICES - OTHER,Adult Social Care & Health,Personal Budget - Third Party,A61019,0
Royal Borough of Kingston,01/03/2023,90218026,767.25,BALANCE (SUPPORT) C.I.C,SOCIAL SERVICES - OTHER,Adult Social Care & Health,Personal Budget - Third Party,A61019,0
Royal Borough of Kingston,01/03/2023,90218029,"1,630.42",BALANCE (SUPPORT) C.I.C,SOCIAL SERVICES - OTHER,Adult Social Care & Health,Personal Budget - Third Party,A61019,0
Royal Borough of Kingston,01/03/2023,90218035,"1,438.62",BALANCE (SUPPORT) C.I.C,SOCIAL SERVICES - OTHER,Adult Social Care & Health,Personal Budget - Third Party,A61019,0
Royal Borough of Kingston,01/03/2023,90218041,863.17,BALANCE (SUPPORT) C.I.C,SOCIAL SERVICES - OTHER,Adult Social Care & Health,Personal Budget - Third Party,A61019,0
Royal Borough of Kingston,01/03/2023,90218043,"1,225.39",BALANCE (SUPPORT) C.I.C,SOCIAL SERVICES - OTHER,Adult Social Care & Health,Personal Budget - Third Party,A61019,0
Royal Borough of Kingston,01/03/2023,90218085,575.45,BALANCE (SUPPORT) C.I.C,SOCIAL SERVICES - OTHER,Adult Social Care & Health,Personal Budget - Third Party,A61019,0
Royal Borough of Kingston,01/03/2023,90218086,575.45,BALANCE (SUPPORT) C.I.C,SOCIAL SERVICES - OTHER,Adult Social Care & Health,Personal Budget - Third Party,A61019,0
Royal Borough of Kingston,01/03/2023,90218092,519.84,BALANCE (SUPPORT) C.I.C,SOCIAL SERVICES - OTHER,Adult Social Care & Health,Personal Budget - Third Party,A61019,0
Royal Borough of Kingston,01/03/2023,90218125,767.25,BALANCE (SUPPORT) C.I.C,SOCIAL SERVICES - OTHER,Adult Social Care & Health,Personal Budget - Third Party,A61019,0
Royal Borough of Kingston,01/03/2023,90218128,"1,630.42",BALANCE (SUPPORT) C.I.C,SOCIAL SERVICES - OTHER,Adult Social Care & Health,Personal Budget - Third Party,A61019,0
Royal Borough of Kingston,01/03/2023,90218131,543.39,BALANCE (SUPPORT) C.I.C,SOCIAL SERVICES - OTHER,Adult Social Care & Health,Personal Budget - Third Party,A61019,0
Royal Borough of Kingston,01/03/2023,90218151,575.45,BALANCE (SUPPORT) C.I.C,SOCIAL SERVICES - OTHER,Adult Social Care & Health,Personal Budget - Third Party,A61019,0
Royal Borough of Kingston,01/03/2023,90218153,"1,342.70",BALANCE (SUPPORT) C.I.C,SOCIAL SERVICES - OTHER,Adult Social Care & Health,Personal Budget - Third Party,A61019,0
Royal Borough of Kingston,01/03/2023,90218155,"1,246.82",BALANCE (SUPPORT) C.I.C,SOCIAL SERVICES - OTHER,Adult Social Care & Health,Personal Budget - Third Party,A61019,0
Royal Borough of Kingston,01/03/2023,90218156,575.45,BALANCE (SUPPORT) C.I.C,SOCIAL SERVICES - OTHER,Adult Social Care & Health,Personal Budget - Third Party,A61019,0
Royal Borough of Kingston,01/03/2023,90218158,"1,726.35",BALANCE (SUPPORT) C.I.C,SOCIAL SERVICES - OTHER,Adult Social Care & Health,Personal Budget - Third Party,A61019,0
Royal Borough of Kingston,01/03/2023,90218177,671.37,BALANCE (SUPPORT) C.I.C,SOCIAL SERVICES - OTHER,Adult Social Care & Health,Personal Budget - Third Party,A61019,0
Royal Borough of Kingston,01/03/2023,90218307,-693.12,BALANCE (SUPPORT) C.I.C,SOCIAL SERVICES - OTHER,Adult Social Care & Health,Personal Budget - Third Party,A61019,0
Royal Borough of Kingston,27/02/2023,70041587,935.43,Banner Group Ltd,OFFICE SUPPLIES,Corporate & Communities,Stationery,A43015,0
Royal Borough of Kingston,01/03/2023,90216451,"3,625.80",BARCHESTER HEALTHCARE,SOCIAL SERVICES RESIDENTIAL,Adult Social Care & Health,Independent Placements,A56006,0
Royal Borough of Kingston,06/02/2023,70040304,"5,613.75",Basis Ltd,TEMP STAFF & CONSULTANCY,Corporate & Communities,Staff Development And Training,A15022,0
Royal Borough of Kingston,01/03/2023,90216712,"4,486.28",BAVANI CARE HOME LIMITED,SOCIAL SERVICES RESIDENTIAL,Adult Social Care & Health,Independent Placements,A56006,0
Royal Borough of Kingston,01/03/2023,90216717,"3,985.71",BAVANI CARE HOME LIMITED,SOCIAL SERVICES RESIDENTIAL,Adult Social Care & Health,Independent Placements,A56006,0
Royal Borough of Kingston,09/02/2023,70040590,"1,105.42",BFS GROUP LIMITED,CATERING SERVICES,Adult Social Care & Health,Purchases for resale,A49004,0
Royal Borough of Kingston,26/07/2022,70036478,"2,137.30",BLAKE MORGAN LLP,LEGAL & PROFESSIONAL SERVICES,Capital Programme,Buildings - Project Management,C14003,0
Royal Borough of Kingston,30/12/2022,70040125,"1,437.70",BLAKE MORGAN LLP,LEGAL & PROFESSIONAL SERVICES,Capital Programme,External Legal Fees,C20008,0
Royal Borough of Kingston,28/03/2023,90216389,"2,865.00",BLOSSOM HOUSE SCHOOL LIMITED,TEMP STAFF & CONSULTANCY,Schools,Miscellaneous Expenses,A49000,0
Royal Borough of Kingston,28/03/2023,90216390,985.00,BLOSSOM HOUSE SCHOOL LIMITED,TEMP STAFF & CONSULTANCY,Schools,Miscellaneous Expenses,A49000,0
Royal Borough of Kingston,21/03/2023,90215152,598.00,BLUE ARROW CARE LTD,SOCIAL SERVICES-HOME CARE,Adult Social Care & Health,Personal Budget - Third Party,A61019,0
Royal Borough of Kingston,27/02/2023,70041927,"6,351.70",BNP PARIBAS REAL ESTATE ADVISORY & PROPERTY MANAGEMENT UK LTD,LEGAL & PROFESSIONAL SERVICES,Place,Consultancy Services - Other,A44065,0
Royal Borough of Kingston,10/01/2023,70042689,"1,280.00",Bout Contracting Limited,SUNDRY SUPPLIER - FINANCE,Capital Programme,Infrastructure Assets - Project Management,C12000,0
Royal Borough of Kingston,06/03/2023,70042058,695.00,BREAD AND BUTTER CREATIVE LIMITED,REPROGRAPHICS & PHOTOGRAPHY,Adult Social Care & Health,Other Private Contractors - Third Party,A56080,0
Royal Borough of Kingston,26/01/2023,70041582,585.00,Bridge Facilities Engineers Ltd,CONSTRUCTION INDUSTRY,Place,Property-Related Professional Fees,A20035,0
Royal Borough of Kingston,09/03/2023,90213430,"11,759.58",BRIGHT HORIZONS FAMILY SOLUTIONS,CHILDMINDERS START UP GRANT,Schools,PVI Providers,A60014,0
Royal Borough of Kingston,09/03/2023,90213510,"9,980.82",BRIGHT HORIZONS FAMILY SOLUTIONS,CHILDMINDERS START UP GRANT,Schools,PVI Providers,A60014,0
Royal Borough of Kingston,09/03/2023,90213525,"10,738.44",BRIGHT HORIZONS FAMILY SOLUTIONS,CHILDMINDERS START UP GRANT,Schools,PVI Providers,A60014,0
Royal Borough of Kingston,09/03/2023,90213529,"9,216.61",BRIGHT HORIZONS FAMILY SOLUTIONS,CHILDMINDERS START UP GRANT,Schools,PVI Providers,A60014,0
Royal Borough of Kingston,09/03/2023,90213532,"16,045.07",BRIGHT HORIZONS FAMILY SOLUTIONS,CHILDMINDERS START UP GRANT,Schools,PVI Providers,A60014,0
Royal Borough of Kingston,09/03/2023,90213575,826.32,BRIGHT HORIZONS FAMILY SOLUTIONS,CHILDMINDERS START UP GRANT,Schools,2 Yr Old Place Funding,A60000,0
Royal Borough of Kingston,23/02/2023,70042655,"8,490.76",BRITISH TELECOMMUNICATIONS PLC,TELECOMS,Corporate & Communities,Telephones,A45020,0
Royal Borough of Kingston,17/02/2023,70043346,"10,944.94",BRITISH TELECOMMUNICATIONS PLC,TELECOMS,Corporate & Communities,Telephones,A45020,0
Royal Borough of Kingston,09/03/2023,90213534,790.56,REDACTED - PERSONAL DATA,ACADEMIC INSTNS - OTHER,Schools,PVI Providers,A60014,0
Royal Borough of Kingston,01/02/2023,70041881,"1,674.00",Buildvantage Limited,ACCOMMODATION BED & BREAKFAST,Place,Bed & Breakfast,A56000,0
Royal Borough of Kingston,01/02/2023,70041882,"1,519.00",Buildvantage Limited,ACCOMMODATION BED & BREAKFAST,Place,Bed & Breakfast,A56000,0
Royal Borough of Kingston,01/02/2023,70041883,"1,674.00",Buildvantage Limited,ACCOMMODATION BED & BREAKFAST,Place,Bed & Breakfast,A56000,0
Royal Borough of Kingston,01/02/2023,70041884,"1,674.00",Buildvantage Limited,ACCOMMODATION BED & BREAKFAST,Place,Bed & Breakfast,A56000,0
Royal Borough of Kingston,01/02/2023,70041885,"1,674.00",Buildvantage Limited,ACCOMMODATION BED & BREAKFAST,Place,Bed & Breakfast,A56000,0
Royal Borough of Kingston,01/02/2023,70041886,"1,674.00",Buildvantage Limited,ACCOMMODATION BED & BREAKFAST,Place,Bed & Breakfast,A56000,0
Royal Borough of Kingston,01/02/2023,70041887,"1,350.00",Buildvantage Limited,ACCOMMODATION BED & BREAKFAST,Place,Bed & Breakfast,A56000,0
Royal Borough of Kingston,01/02/2023,70041888,"1,674.00",Buildvantage Limited,ACCOMMODATION BED & BREAKFAST,Place,Bed & Breakfast,A56000,0
Royal Borough of Kingston,01/02/2023,70041889,"2,170.00",Buildvantage Limited,ACCOMMODATION BED & BREAKFAST,Place,Bed & Breakfast,A56000,0
Royal Borough of Kingston,01/02/2023,70041890,"1,674.00",Buildvantage Limited,ACCOMMODATION BED & BREAKFAST,Place,Bed & Breakfast,A56000,0
Royal Borough of Kingston,01/02/2023,70041891,"1,674.00",Buildvantage Limited,ACCOMMODATION BED & BREAKFAST,Place,Bed & Breakfast,A56000,0
Royal Borough of Kingston,01/02/2023,70041893,"1,519.00",Buildvantage Limited,ACCOMMODATION BED & BREAKFAST,Place,Bed & Breakfast,A56000,0
Royal Borough of Kingston,01/02/2023,70041894,"1,519.00",Buildvantage Limited,ACCOMMODATION BED & BREAKFAST,Place,Bed & Breakfast,A56000,0
Royal Borough of Kingston,01/02/2023,70041895,"1,674.00",Buildvantage Limited,ACCOMMODATION BED & BREAKFAST,Place,Bed & Breakfast,A56000,0
Royal Borough of Kingston,01/02/2023,70041896,"1,674.00",Buildvantage Limited,ACCOMMODATION BED & BREAKFAST,Place,Bed & Breakfast,A56000,0
Royal Borough of Kingston,01/02/2023,70041897,"1,674.00",Buildvantage Limited,ACCOMMODATION BED & BREAKFAST,Place,Bed & Breakfast,A56000,0
Royal Borough of Kingston,01/02/2023,70041898,"1,674.00",Buildvantage Limited,ACCOMMODATION BED & BREAKFAST,Place,Bed & Breakfast,A56000,0
Royal Borough of Kingston,01/02/2023,70041899,"1,674.00",Buildvantage Limited,ACCOMMODATION BED & BREAKFAST,Place,Bed & Breakfast,A56000,0
Royal Borough of Kingston,01/02/2023,70041900,"1,674.00",Buildvantage Limited,ACCOMMODATION BED & BREAKFAST,Place,Bed & Breakfast,A56000,0
Royal Borough of Kingston,01/02/2023,70041901,"1,674.00",Buildvantage Limited,ACCOMMODATION BED & BREAKFAST,Place,Bed & Breakfast,A56000,0
Royal Borough of Kingston,01/02/2023,70041903,"1,674.00",Buildvantage Limited,ACCOMMODATION BED & BREAKFAST,Place,Bed & Breakfast,A56000,0
Royal Borough of Kingston,01/02/2023,70041905,"1,350.00",Buildvantage Limited,ACCOMMODATION BED & BREAKFAST,Place,Bed & Breakfast,A56000,0
Royal Borough of Kingston,01/02/2023,70041906,"1,519.00",Buildvantage Limited,ACCOMMODATION BED & BREAKFAST,Place,Bed & Breakfast,A56000,0
Royal Borough of Kingston,28/02/2023,70042256,"1,512.00",Buildvantage Limited,ACCOMMODATION BED & BREAKFAST,Place,Bed & Breakfast,A56000,0
Royal Borough of Kingston,28/02/2023,70042257,"1,512.00",Buildvantage Limited,ACCOMMODATION BED & BREAKFAST,Place,Bed & Breakfast,A56000,0
Royal Borough of Kingston,28/02/2023,70042258,"1,512.00",Buildvantage Limited,ACCOMMODATION BED & BREAKFAST,Place,Bed & Breakfast,A56000,0
Royal Borough of Kingston,28/02/2023,70042259,"1,512.00",Buildvantage Limited,ACCOMMODATION BED & BREAKFAST,Place,Bed & Breakfast,A56000,0
Royal Borough of Kingston,28/02/2023,70042260,"1,512.00",Buildvantage Limited,ACCOMMODATION BED & BREAKFAST,Place,Bed & Breakfast,A56000,0
Royal Borough of Kingston,28/02/2023,70042261,"1,512.00",Buildvantage Limited,ACCOMMODATION BED & BREAKFAST,Place,Bed & Breakfast,A56000,0
Royal Borough of Kingston,28/02/2023,70042262,"1,512.00",Buildvantage Limited,ACCOMMODATION BED & BREAKFAST,Place,Bed & Breakfast,A56000,0
Royal Borough of Kingston,28/02/2023,70042263,"1,512.00",Buildvantage Limited,ACCOMMODATION BED & BREAKFAST,Place,Bed & Breakfast,A56000,0
Royal Borough of Kingston,28/02/2023,70042264,"1,372.00",Buildvantage Limited,ACCOMMODATION BED & BREAKFAST,Place,Bed & Breakfast,A56000,0
Royal Borough of Kingston,28/02/2023,70042265,"1,372.00",Buildvantage Limited,ACCOMMODATION BED & BREAKFAST,Place,Bed & Breakfast,A56000,0
Royal Borough of Kingston,28/02/2023,70042266,"1,372.00",Buildvantage Limited,ACCOMMODATION BED & BREAKFAST,Place,Bed & Breakfast,A56000,0
Royal Borough of Kingston,28/02/2023,70042267,"1,512.00",Buildvantage Limited,ACCOMMODATION BED & BREAKFAST,Place,Bed & Breakfast,A56000,0
Royal Borough of Kingston,28/02/2023,70043406,"1,512.00",Buildvantage Limited,ACCOMMODATION BED & BREAKFAST,Place,Bed & Breakfast,A56000,0
Royal Borough of Kingston,28/02/2023,70043407,"1,512.00",Buildvantage Limited,ACCOMMODATION BED & BREAKFAST,Place,Bed & Breakfast,A56000,0
Royal Borough of Kingston,28/02/2023,70043408,"1,960.00",Buildvantage Limited,ACCOMMODATION BED & BREAKFAST,Place,Bed & Breakfast,A56000,0
Royal Borough of Kingston,28/02/2023,70043409,"2,100.00",Buildvantage Limited,ACCOMMODATION BED & BREAKFAST,Place,Bed & Breakfast,A56000,0
Royal Borough of Kingston,28/02/2023,70043410,"1,512.00",Buildvantage Limited,ACCOMMODATION BED & BREAKFAST,Place,Bed & Breakfast,A56000,0
Royal Borough of Kingston,28/02/2023,70043411,"1,372.00",Buildvantage Limited,ACCOMMODATION BED & BREAKFAST,Place,Bed & Breakfast,A56000,0
Royal Borough of Kingston,28/02/2023,70043412,"1,512.00",Buildvantage Limited,ACCOMMODATION BED & BREAKFAST,Place,Bed & Breakfast,A56000,0
Royal Borough of Kingston,28/02/2023,70043413,"1,512.00",Buildvantage Limited,ACCOMMODATION BED & BREAKFAST,Place,Bed & Breakfast,A56000,0
Royal Borough of Kingston,28/02/2023,70043414,"1,512.00",Buildvantage Limited,ACCOMMODATION BED & BREAKFAST,Place,Bed & Breakfast,A56000,0
Royal Borough of Kingston,01/03/2023,90216525,"3,641.66",BUPA CARE  HOMES LTD,SOCIAL SERVICES RESIDENTIAL,Adult Social Care & Health,Independent Placements,A56006,0
Royal Borough of Kingston,01/03/2023,90216551,"9,007.98",BUPA CARE  HOMES LTD,SOCIAL SERVICES RESIDENTIAL,Adult Social Care & Health,Independent Placements,A56006,0
Royal Borough of Kingston,01/03/2023,90216690,"3,945.02",BUPA CARE  HOMES LTD,SOCIAL SERVICES RESIDENTIAL,Adult Social Care & Health,Independent Placements,A56006,0
Royal Borough of Kingston,01/03/2023,90216857,"5,325.18",BUPA CARE  HOMES LTD,SOCIAL SERVICES RESIDENTIAL,Adult Social Care & Health,Independent Placements,A56006,0
Royal Borough of Kingston,07/03/2023,90211443,"143,612.71",BURLINGTON INFANT AND NURSERY SCHOOL,SCHOOL FUNDS,Schools,Miscellaneous Expenses,A49000,0
Royal Borough of Kingston,09/03/2023,90213353,"18,683.97",BURLINGTON INFANT AND NURSERY SCHOOL,SCHOOL FUNDS,Capital Programme,Payments to Contractors,C14000,0
Royal Borough of Kingston,09/03/2023,90213479,"48,882.96",BURLINGTON INFANT AND NURSERY SCHOOL,SCHOOL FUNDS,Schools,Miscellaneous Expenses,A49000,0
Royal Borough of Kingston,09/03/2023,90213565,"3,155.04",BURLINGTON INFANT AND NURSERY SCHOOL,SCHOOL FUNDS,Schools,2 Yr Old Place Funding,A60000,0
Royal Borough of Kingston,24/03/2023,90215972,540.00,BURLINGTON INFANT AND NURSERY SCHOOL,SCHOOL FUNDS,Schools,Miscellaneous Expenses,A49000,0
Royal Borough of Kingston,28/03/2023,90216330,"21,467.50",BURLINGTON INFANT AND NURSERY SCHOOL,SCHOOL FUNDS,Schools,Miscellaneous Expenses,A49000,0
Royal Borough of Kingston,28/03/2023,90216331,602.50,BURLINGTON INFANT AND NURSERY SCHOOL,SCHOOL FUNDS,Schools,Miscellaneous Expenses,A49000,0
Royal Borough of Kingston,30/03/2023,90218438,"2,217.53",BURLINGTON INFANT AND NURSERY SCHOOL,SCHOOL FUNDS,Capital Programme,Payments to Contractors,C14000,0
Royal Borough of Kingston,07/03/2023,90211444,"176,936.56",BURLINGTON JUNIOR SCHOOL,SCHOOL FUNDS,Schools,Miscellaneous Expenses,A49000,0
Royal Borough of Kingston,09/03/2023,90213354,"19,528.50",BURLINGTON JUNIOR SCHOOL,SCHOOL FUNDS,Capital Programme,Payments to Contractors,C14000,0
Royal Borough of Kingston,21/03/2023,90215198,"2,970.00",BURLINGTON JUNIOR SCHOOL,SCHOOL FUNDS,Schools,Miscellaneous Expenses,A49000,0
Royal Borough of Kingston,21/03/2023,90215941,"20,000.00",BURLINGTON JUNIOR SCHOOL,SCHOOL FUNDS,Schools,Miscellaneous Expenses,A49000,0
Royal Borough of Kingston,21/03/2023,90215944,"-20,000.00",BURLINGTON JUNIOR SCHOOL,SCHOOL FUNDS,Schools,Miscellaneous Expenses,A49000,0
Royal Borough of Kingston,28/03/2023,90216332,"34,278.75",BURLINGTON JUNIOR SCHOOL,SCHOOL FUNDS,Schools,Miscellaneous Expenses,A49000,0
Royal Borough of Kingston,28/03/2023,90216333,"3,012.50",BURLINGTON JUNIOR SCHOOL,SCHOOL FUNDS,Schools,Miscellaneous Expenses,A49000,0
Royal Borough of Kingston,30/03/2023,90218439,"2,335.93",BURLINGTON JUNIOR SCHOOL,SCHOOL FUNDS,Capital Programme,Payments to Contractors,C14000,0
Royal Borough of Kingston,25/08/2022,70036731,"16,489.00",BURO HAPPOLD LIMTED,LEGAL & PROFESSIONAL SERVICES,Place,Professional Fees,A44066,0
Royal Borough of Kingston,09/02/2023,70041863,"5,011.00",BURO HAPPOLD LIMTED,LEGAL & PROFESSIONAL SERVICES,Place,Consultancy Services - Other,A44065,0
Royal Borough of Kingston,16/02/2023,70040938,"18,503.27",BYTES SOFTWARE SERVICES LTD,BUSINESS & COMPUTER SYSTEMS,Corporate & Communities,IT Software Maintenance,A45045,0
Royal Borough of Kingston,27/02/2023,70041503,"36,057.10",BYTES SOFTWARE SERVICES LTD,BUSINESS & COMPUTER SYSTEMS,Capital Programme,Intangible Assets - Purchase,C13000,0
Royal Borough of Kingston,28/02/2023,70041860,"3,833.85",BYTES SOFTWARE SERVICES LTD,BUSINESS & COMPUTER SYSTEMS,Capital Programme,Infrastructure Assets - Project Management,C12000,0
Royal Borough of Kingston,03/03/2023,70041866,"30,373.73",BYTES SOFTWARE SERVICES LTD,BUSINESS & COMPUTER SYSTEMS,Corporate & Communities,IT Software Maintenance,A45045,0
Royal Borough of Kingston,10/03/2023,70042445,"24,566.00",BYTES SOFTWARE SERVICES LTD,BUSINESS & COMPUTER SYSTEMS,Corporate & Communities,IT Software Maintenance,A45045,0
Royal Borough of Kingston,10/03/2023,70042446,"4,243.60",BYTES SOFTWARE SERVICES LTD,BUSINESS & COMPUTER SYSTEMS,Corporate & Communities,IT Software Maintenance,A45045,0
Royal Borough of Kingston,14/03/2023,70042481,"18,877.08",BYTES SOFTWARE SERVICES LTD,BUSINESS & COMPUTER SYSTEMS,Corporate & Communities,IT Software Maintenance,A45045,0
Royal Borough of Kingston,13/03/2023,70042505,"7,909.70",BYTES SOFTWARE SERVICES LTD,BUSINESS & COMPUTER SYSTEMS,Corporate & Communities,Cloud Services,A45007,0
Royal Borough of Kingston,10/02/2023,70041621,"1,330.00",C & P HYGIENE,PREMISES - CLEANING & LAUNDRY,Adult Social Care & Health,Other Private Contractors - Third Party,A56080,0
Royal Borough of Kingston,16/02/2023,70040940,"163,486.20",CAMDEN & ISLINGTON NHS FOUNDATION TRUST,LEGAL & PROFESSIONAL SERVICES,Adult Social Care & Health,Other Private Contractors - Third Party,A56080,0
Royal Borough of Kingston,16/02/2023,70040941,"59,371.08",CAMDEN & ISLINGTON NHS FOUNDATION TRUST,LEGAL & PROFESSIONAL SERVICES,Adult Social Care & Health,Other Private Contractors - Third Party,A56080,0
Royal Borough of Kingston,16/02/2023,70040942,548.93,CAMDEN & ISLINGTON NHS FOUNDATION TRUST,LEGAL & PROFESSIONAL SERVICES,Adult Social Care & Health,Other Private Contractors - Third Party,A56080,0
Royal Borough of Kingston,16/02/2023,70040942,548.93,CAMDEN & ISLINGTON NHS FOUNDATION TRUST,LEGAL & PROFESSIONAL SERVICES,Adult Social Care & Health,Other Private Contractors - Third Party,A56080,0
Royal Borough of Kingston,01/03/2023,90218039,"5,425.80",CARE MANAGEMENT GROUP LTD,SOCIAL SERVICES RESIDENTIAL,Adult Social Care & Health,Personal Budget - Third Party,A61019,0
Royal Borough of Kingston,21/03/2023,90215177,"5,111.81",CARE UK COMMUNITY PARTNERSHIPS LTD,SOCIAL SERVICES RESIDENTIAL,Adult Social Care & Health,Personal Budget - Third Party,A61019,0
Royal Borough of Kingston,01/03/2023,90216578,"3,346.05",CARE UK COMMUNITY PARTNERSHIPS LTD,SOCIAL SERVICES RESIDENTIAL,Adult Social Care & Health,Independent Placements,A56006,0
Royal Borough of Kingston,01/03/2023,90216681,"2,295.00",CARE UK COMMUNITY PARTNERSHIPS LTD,SOCIAL SERVICES RESIDENTIAL,Adult Social Care & Health,Independent Placements,A56006,0
Royal Borough of Kingston,01/03/2023,90216682,"3,387.86",CARE UK COMMUNITY PARTNERSHIPS LTD,SOCIAL SERVICES RESIDENTIAL,Adult Social Care & Health,Independent Placements,A56006,0
Royal Borough of Kingston,01/03/2023,90216683,"3,278.57",CARE UK COMMUNITY PARTNERSHIPS LTD,SOCIAL SERVICES RESIDENTIAL,Adult Social Care & Health,Independent Placements,A56006,0
Royal Borough of Kingston,01/03/2023,90216684,"3,387.86",CARE UK COMMUNITY PARTNERSHIPS LTD,SOCIAL SERVICES RESIDENTIAL,Adult Social Care & Health,Independent Placements,A56006,0
Royal Borough of Kingston,01/03/2023,90216685,"3,387.86",CARE UK COMMUNITY PARTNERSHIPS LTD,SOCIAL SERVICES RESIDENTIAL,Adult Social Care & Health,Independent Placements,A56006,0
Royal Borough of Kingston,01/03/2023,90216686,"3,060.00",CARE UK COMMUNITY PARTNERSHIPS LTD,SOCIAL SERVICES RESIDENTIAL,Adult Social Care & Health,Independent Placements,A56006,0
Royal Borough of Kingston,01/03/2023,90216687,"3,387.86",CARE UK COMMUNITY PARTNERSHIPS LTD,SOCIAL SERVICES RESIDENTIAL,Adult Social Care & Health,Independent Placements,A56006,0
Royal Borough of Kingston,01/03/2023,90216735,"4,141.16",CARE UK COMMUNITY PARTNERSHIPS LTD,SOCIAL SERVICES RESIDENTIAL,Adult Social Care & Health,Independent Placements,A56006,0
Royal Borough of Kingston,01/03/2023,90216739,"4,384.29",CARE UK COMMUNITY PARTNERSHIPS LTD,SOCIAL SERVICES RESIDENTIAL,Adult Social Care & Health,Independent Placements,A56006,0
Royal Borough of Kingston,01/03/2023,90216748,"2,788.36",CARE UK COMMUNITY PARTNERSHIPS LTD,SOCIAL SERVICES RESIDENTIAL,Adult Social Care & Health,Independent Placements,A56006,0
Royal Borough of Kingston,09/03/2023,90213427,"20,159.28",CAREROOM LTD,ACADEMIC INSTNS - OTHER,Schools,PVI Providers,A60014,0
Royal Borough of Kingston,09/03/2023,90213543,"2,253.60",CAREROOM LTD,ACADEMIC INSTNS - OTHER,Schools,2 Yr Old Place Funding,A60000,0
Royal Borough of Kingston,01/03/2023,90216467,"3,675.71",Caring Homes Healthcare Group Limited,SOCIAL SERVICES RESIDENTIAL,Adult Social Care & Health,Independent Placements,A56006,0
Royal Borough of Kingston,20/02/2023,90212766,700.01,CARLCARE LTD,SOCIAL SERVICES-HOME CARE,Adult Social Care & Health,Homecare - new framework,A56127,0
Royal Borough of Kingston,20/02/2023,90213150,717.51,CARLCARE LTD,SOCIAL SERVICES-HOME CARE,Adult Social Care & Health,Homecare - new framework,A56127,0
Royal Borough of Kingston,27/02/2023,90213708,735.01,CARLCARE LTD,SOCIAL SERVICES-HOME CARE,Adult Social Care & Health,Homecare - new framework,A56127,0
Royal Borough of Kingston,27/02/2023,90214092,595.01,CARLCARE LTD,SOCIAL SERVICES-HOME CARE,Adult Social Care & Health,Homecare - new framework,A56127,0
Royal Borough of Kingston,21/03/2023,90215153,611.00,CARLCARE LTD,SOCIAL SERVICES-HOME CARE,Adult Social Care & Health,Personal Budget - Third Party,A61019,0
Royal Borough of Kingston,06/03/2023,90215327,717.51,CARLCARE LTD,SOCIAL SERVICES-HOME CARE,Adult Social Care & Health,Homecare - new framework,A56127,0
Royal Borough of Kingston,06/03/2023,90215736,595.01,CARLCARE LTD,SOCIAL SERVICES-HOME CARE,Adult Social Care & Health,Homecare - new framework,A56127,0
Royal Borough of Kingston,13/03/2023,90217269,735.01,CARLCARE LTD,SOCIAL SERVICES-HOME CARE,Adult Social Care & Health,Homecare - new framework,A56127,0
Royal Borough of Kingston,13/03/2023,90217633,595.01,CARLCARE LTD,SOCIAL SERVICES-HOME CARE,Adult Social Care & Health,Homecare - new framework,A56127,0
Royal Borough of Kingston,01/03/2023,90216818,"9,470.46",CARTREF HOMES,SOCIAL SERVICES RESIDENTIAL,Adult Social Care & Health,Independent Placements,A56006,0
Royal Borough of Kingston,01/03/2023,90216791,"14,023.69",CAS CARE SERVICES LTD,SOCIAL SERVICES - OTHER,Adult Social Care & Health,Independent Placements,A56006,0
Royal Borough of Kingston,01/03/2023,90216834,"14,023.69",CAS CARE SERVICES LTD,SOCIAL SERVICES - OTHER,Adult Social Care & Health,Independent Placements,A56006,0
Royal Borough of Kingston,09/03/2023,90213480,"34,817.58",CASTLE HILL SCHOOL,SCHOOL FUNDS,Schools,Miscellaneous Expenses,A49000,0
Royal Borough of Kingston,09/03/2023,90213519,"2,305.80",CASTLE HILL SCHOOL,SCHOOL FUNDS,Schools,PVI Providers,A60014,0
Royal Borough of Kingston,09/03/2023,90213579,"1,802.88",CASTLE HILL SCHOOL,SCHOOL FUNDS,Schools,2 Yr Old Place Funding,A60000,0
Royal Borough of Kingston,02/02/2023,70041704,"1,123.22",CASTLE RESIDENTIAL PROPERTIES LTD,PLS LANDLORDS,Place,PSL Payments To Landlords,A22031,0
Royal Borough of Kingston,08/02/2023,70041504,555.00,CATTANEO COMMERCIAL LIMITED,TEMP STAFF & CONSULTANCY,Place,Other Premises Costs,A29040,0
Royal Borough of Kingston,01/03/2023,90216809,"11,152.12",Gresham Care Operations Limited,SOCIAL SERVICES RESIDENTIAL,Adult Social Care & Health,Independent Placements,A56006,0
Royal Borough of Kingston,09/03/2023,90213535,790.56,REDACTED - PERSONAL DATA,ACADEMIC INSTNS - OTHER,Schools,PVI Providers,A60014,0
Royal Borough of Kingston,24/01/2023,70041944,"2,750.00",CHARTERED INSTITUTE OF HOUSING,SUBSCRIPTIONS & PUBLICATIONS,Housing Revenue Account,Staff Development And Training,A15022,0
Royal Borough of Kingston,31/10/2022,70035165,"3,395.95",CHAWTON HILL ASSOCIATES LIMITED,LEGAL & PROFESSIONAL SERVICES,Capital Programme,Buildings - Design & Planning,C14001,0
Royal Borough of Kingston,20/12/2022,70037764,"5,833.04",CHAWTON HILL ASSOCIATES LIMITED,LEGAL & PROFESSIONAL SERVICES,Capital Programme,Buildings - Design & Planning,C14001,0
Royal Borough of Kingston,31/07/2022,70039210,500.00,CHAWTON HILL ASSOCIATES LIMITED,LEGAL & PROFESSIONAL SERVICES,Capital Programme,Buildings - Design & Planning,C14001,0
Royal Borough of Kingston,31/01/2023,70040275,"1,759.33",CHAWTON HILL ASSOCIATES LIMITED,LEGAL & PROFESSIONAL SERVICES,Capital Programme,Buildings - Design & Planning,C14001,0
Royal Borough of Kingston,01/03/2023,70041625,623.33,CHAWTON HILL ASSOCIATES LIMITED,LEGAL & PROFESSIONAL SERVICES,Housing Revenue Account,Professional Fees,A44066,0
Royal Borough of Kingston,31/01/2023,70041670,950.00,CHAWTON HILL ASSOCIATES LIMITED,LEGAL & PROFESSIONAL SERVICES,Place,Property-Related Professional Fees,A20035,0
Royal Borough of Kingston,14/03/2023,70042434,623.33,CHAWTON HILL ASSOCIATES LIMITED,LEGAL & PROFESSIONAL SERVICES,Housing Revenue Account,Professional Fees,A44066,0
Royal Borough of Kingston,23/02/2023,70042627,623.33,CHAWTON HILL ASSOCIATES LIMITED,LEGAL & PROFESSIONAL SERVICES,Housing Revenue Account,Professional Fees,A44066,0
Royal Borough of Kingston,01/03/2023,90216663,"3,681.03",CHD (CARE HOMES) LTD,SOCIAL SERVICES RESIDENTIAL,Adult Social Care & Health,Independent Placements,A56006,0
Royal Borough of Kingston,01/03/2023,90216746,"4,871.43",CHD (CARE HOMES) LTD,SOCIAL SERVICES RESIDENTIAL,Adult Social Care & Health,Independent Placements,A56006,0
Royal Borough of Kingston,01/03/2023,90216398,"3,985.71",CHD CARE LTD,SOCIAL SERVICES RESIDENTIAL,Adult Social Care & Health,Independent Placements,A56006,0
Royal Borough of Kingston,01/03/2023,90216584,"-2,092.85",CHD CARE LTD,SOCIAL SERVICES RESIDENTIAL,Adult Social Care & Health,Independent Placements,A56006,0
Royal Borough of Kingston,01/03/2023,90216585,"-5,406.53",CHD CARE LTD,SOCIAL SERVICES RESIDENTIAL,Adult Social Care & Health,Independent Placements,A56006,0
Royal Borough of Kingston,01/03/2023,90216586,"-5,406.53",CHD CARE LTD,SOCIAL SERVICES RESIDENTIAL,Adult Social Care & Health,Independent Placements,A56006,0
Royal Borough of Kingston,01/03/2023,90216587,"-4,883.32",CHD CARE LTD,SOCIAL SERVICES RESIDENTIAL,Adult Social Care & Health,Independent Placements,A56006,0
Royal Borough of Kingston,01/03/2023,90216722,"3,450.96",CHD CARE LTD,SOCIAL SERVICES RESIDENTIAL,Adult Social Care & Health,Independent Placements,A56006,0
Royal Borough of Kingston,01/03/2023,90216724,"5,176.47",CHD CARE LTD,SOCIAL SERVICES RESIDENTIAL,Adult Social Care & Health,Independent Placements,A56006,0
Royal Borough of Kingston,01/03/2023,90216769,"2,657.14",CHD CARE LTD,SOCIAL SERVICES RESIDENTIAL,Adult Social Care & Health,Independent Placements,A56006,0
Royal Borough of Kingston,01/03/2023,90216770,"1,992.86",CHD CARE LTD,SOCIAL SERVICES RESIDENTIAL,Adult Social Care & Health,Independent Placements,A56006,0
Royal Borough of Kingston,01/03/2023,90216771,"1,992.86",CHD CARE LTD,SOCIAL SERVICES RESIDENTIAL,Adult Social Care & Health,Independent Placements,A56006,0
Royal Borough of Kingston,01/03/2023,90216895,"3,985.71",CHD CARE LTD,SOCIAL SERVICES RESIDENTIAL,Adult Social Care & Health,Other Private Contractors - Third Party,A56080,0
Royal Borough of Kingston,01/03/2023,90216896,"3,985.71",CHD CARE LTD,SOCIAL SERVICES RESIDENTIAL,Adult Social Care & Health,Other Private Contractors - Third Party,A56080,0
Royal Borough of Kingston,01/03/2023,90216909,"2,657.14",CHD CARE LTD,SOCIAL SERVICES RESIDENTIAL,Adult Social Care & Health,Other Private Contractors - Third Party,A56080,0
Royal Borough of Kingston,01/03/2023,90216910,"2,657.14",CHD CARE LTD,SOCIAL SERVICES RESIDENTIAL,Adult Social Care & Health,Other Private Contractors - Third Party,A56080,0
Royal Borough of Kingston,01/03/2023,90216911,"2,657.14",CHD CARE LTD,SOCIAL SERVICES RESIDENTIAL,Adult Social Care & Health,Other Private Contractors - Third Party,A56080,0
Royal Borough of Kingston,01/03/2023,90216912,"1,992.86",CHD CARE LTD,SOCIAL SERVICES RESIDENTIAL,Adult Social Care & Health,Other Private Contractors - Third Party,A56080,0
Royal Borough of Kingston,01/03/2023,90216913,"1,992.86",CHD CARE LTD,SOCIAL SERVICES RESIDENTIAL,Adult Social Care & Health,Other Private Contractors - Third Party,A56080,0
Royal Borough of Kingston,01/03/2023,90216668,"1,104.31",CHD LIVING,SOCIAL SERVICES RESIDENTIAL,Adult Social Care & Health,Independent Placements,A56006,0
Royal Borough of Kingston,03/01/2023,70042833,760.00,CHESSINGTON SPORTS CENTRE,OPERATIONAL EQUIPMENT/MATERIAL,Corporate & Communities,Building Rents,A22005,0
Royal Borough of Kingston,09/03/2023,90213438,"10,198.22",CHILDS PLAY NURSERY SCHOOL LTD,GRANTS & EX GRATIA PAYMENTS,Schools,PVI Providers,A60014,0
Royal Borough of Kingston,01/03/2023,90216454,"4,371.22",CHISWICK NURSING CENTRE,SOCIAL SERVICES RESIDENTIAL,Adult Social Care & Health,Independent Placements,A56006,0
Royal Borough of Kingston,01/03/2023,90216540,"7,399.30",CHISWICK NURSING CENTRE,SOCIAL SERVICES RESIDENTIAL,Adult Social Care & Health,Independent Placements,A56006,0
Royal Borough of Kingston,01/03/2023,90216666,"3,755.03",CHISWICK NURSING CENTRE,SOCIAL SERVICES RESIDENTIAL,Adult Social Care & Health,Independent Placements,A56006,0
Royal Borough of Kingston,01/03/2023,90216703,"3,434.40",CHISWICK NURSING CENTRE,SOCIAL SERVICES RESIDENTIAL,Adult Social Care & Health,Independent Placements,A56006,0
Royal Borough of Kingston,01/03/2023,90216829,"8,132.76",CHOICE LTD,SOCIAL SERVICES RESIDENTIAL,Adult Social Care & Health,Independent Placements,A56006,0
Royal Borough of Kingston,01/03/2023,90216835,"7,186.20",CHOICE LTD,SOCIAL SERVICES RESIDENTIAL,Adult Social Care & Health,Independent Placements,A56006,0
Royal Borough of Kingston,07/03/2023,90211446,"158,749.86",CHRIST CHURCH  C. OF E.  PRIMARY SCHOOL (NEW MALDEN),SCHOOL FUNDS,Schools,Miscellaneous Expenses,A49000,0
Royal Borough of Kingston,09/03/2023,90213481,"17,721.72",CHRIST CHURCH  C. OF E.  PRIMARY SCHOOL (NEW MALDEN),SCHOOL FUNDS,Schools,Miscellaneous Expenses,A49000,0
Royal Borough of Kingston,28/03/2023,90216336,"12,811.25",CHRIST CHURCH  C. OF E.  PRIMARY SCHOOL (NEW MALDEN),SCHOOL FUNDS,Schools,Miscellaneous Expenses,A49000,0
Royal Borough of Kingston,28/03/2023,90216337,"1,205.00",CHRIST CHURCH  C. OF E.  PRIMARY SCHOOL (NEW MALDEN),SCHOOL FUNDS,Schools,Miscellaneous Expenses,A49000,0
Royal Borough of Kingston,09/03/2023,70042270,"1,110.00",CHRIST CHURCH C.OF E. PRIMARY SCHOOL - (SURBITON),SCHOOL FUNDS,Childrens Services,MSF Claims Support Staff - Internal Trading,A46108,0
Royal Borough of Kingston,07/03/2023,90211445,"173,569.93",CHRIST CHURCH C.OF E. PRIMARY SCHOOL - (SURBITON),SCHOOL FUNDS,Schools,Miscellaneous Expenses,A49000,0
Royal Borough of Kingston,21/03/2023,90215199,"54,252.00",CHRIST CHURCH C.OF E. PRIMARY SCHOOL - (SURBITON),SCHOOL FUNDS,Schools,Miscellaneous Expenses,A49000,0
Royal Borough of Kingston,28/03/2023,90216334,"10,733.75",CHRIST CHURCH C.OF E. PRIMARY SCHOOL - (SURBITON),SCHOOL FUNDS,Schools,Miscellaneous Expenses,A49000,0
Royal Borough of Kingston,28/03/2023,90216335,"1,807.50",CHRIST CHURCH C.OF E. PRIMARY SCHOOL - (SURBITON),SCHOOL FUNDS,Schools,Miscellaneous Expenses,A49000,0
Royal Borough of Kingston,01/03/2023,90217959,"5,939.29",CHRISTIES CARE LTD,SOCIAL SERVICES RESIDENTIAL,Adult Social Care & Health,Personal Budget - Third Party,A61019,0
Royal Borough of Kingston,01/03/2023,90218031,"5,552.14",CHRISTIES CARE LTD,SOCIAL SERVICES RESIDENTIAL,Adult Social Care & Health,Personal Budget - Third Party,A61019,0
Royal Borough of Kingston,01/03/2023,90218033,"5,776.98",CHRISTIES CARE LTD,SOCIAL SERVICES RESIDENTIAL,Adult Social Care & Health,Personal Budget - Third Party,A61019,0
Royal Borough of Kingston,01/03/2023,90218112,"5,574.29",CHRISTIES CARE LTD,SOCIAL SERVICES RESIDENTIAL,Adult Social Care & Health,Personal Budget - Third Party,A61019,0
Royal Borough of Kingston,12/12/2022,70041036,"1,750.00",CITY OF LONDON,CENTRAL & LOCAL GOVERNMENT,Adult Social Care & Health,Independent Placements,A56006,0
Royal Borough of Kingston,12/12/2022,70041036,"1,750.00",CITY OF LONDON,CENTRAL & LOCAL GOVERNMENT,Adult Social Care & Health,Independent Placements,A56006,0
Royal Borough of Kingston,12/12/2022,70041036,"3,500.00",CITY OF LONDON,CENTRAL & LOCAL GOVERNMENT,Adult Social Care & Health,Other Private Contractors - Third Party,A56080,0
Royal Borough of Kingston,12/12/2022,70041036,"2,000.00",CITY OF LONDON,CENTRAL & LOCAL GOVERNMENT,Adult Social Care & Health,Other Private Contractors - Third Party,A56080,0
Royal Borough of Kingston,16/02/2023,70041047,"3,500.00",CITY OF LONDON,CENTRAL & LOCAL GOVERNMENT,Adult Social Care & Health,Independent Placements,A56006,0
Royal Borough of Kingston,16/02/2023,70041047,"4,000.00",CITY OF LONDON,CENTRAL & LOCAL GOVERNMENT,Adult Social Care & Health,Independent Placements,A56006,0
Royal Borough of Kingston,16/02/2023,70041047,"7,500.00",CITY OF LONDON,CENTRAL & LOCAL GOVERNMENT,Adult Social Care & Health,Independent Placements,A56006,0
Royal Borough of Kingston,16/02/2023,70041047,"3,500.00",CITY OF LONDON,CENTRAL & LOCAL GOVERNMENT,Adult Social Care & Health,Independent Placements,A56006,0
Royal Borough of Kingston,21/02/2023,70041149,"4,074.82",CITY OF LONDON,CENTRAL & LOCAL GOVERNMENT,Corporate & Communities,Other Cleaning And Waste-Related Third Party Payment,A56064,0
Royal Borough of Kingston,24/02/2023,70041661,"17,681.14",CITY OF LONDON,CENTRAL & LOCAL GOVERNMENT,Adult Social Care & Health,Other Private Contractors - Third Party,A56080,0
Royal Borough of Kingston,09/03/2023,90213554,901.44,REDACTED - PERSONAL DATA,CHILDMINDERS START UP GRANT,Schools,2 Yr Old Place Funding,A60000,0
Royal Borough of Kingston,20/02/2023,70041194,"4,363.64",Cleardata UK Ltd,OFFICE SERVICES,Place,Miscellaneous Expenses,A49000,0
Royal Borough of Kingston,28/02/2023,70041585,"3,750.00",CLEARVIEW INTELLIGENCE LTD,OPERATIONAL EQUIPMENT/MATERIAL,Corporate & Communities,TMS - General,A56085,0
Royal Borough of Kingston,01/03/2023,90216838,"8,811.48",CLEARWATER CARE (HACKNEY) LTD,SOCIAL SERVICES RESIDENTIAL,Adult Social Care & Health,Independent Placements,A56006,0
Royal Borough of Kingston,01/03/2023,90218309,"6,317.00",CLIA Care Ltd,ACCOMMODATION - OTHER,Adult Social Care & Health,Personal Budget - Third Party,A61019,0
Royal Borough of Kingston,21/03/2023,70042942,"1,000.00",Albion Cleaning Services,SOCIAL SERVICES - OTHER,Place,Equipment And Materials Purchase,A40000,0
Royal Borough of Kingston,03/02/2023,70043395,850.00,Albion Cleaning Services,SOCIAL SERVICES - OTHER,Adult Social Care & Health,Other Private Contractors - Third Party,A56080,0
Royal Borough of Kingston,01/03/2023,90218028,"3,050.18",CMG LIMITED,SOCIAL SERVICES - OTHER,Adult Social Care & Health,Personal Budget - Third Party,A61019,0
Royal Borough of Kingston,01/03/2023,90218087,"5,534.03",CMG LIMITED,SOCIAL SERVICES - OTHER,Adult Social Care & Health,Personal Budget - Third Party,A61019,0
Royal Borough of Kingston,01/03/2023,90218088,"5,501.22",CMG LIMITED,SOCIAL SERVICES - OTHER,Adult Social Care & Health,Personal Budget - Third Party,A61019,0
Royal Borough of Kingston,01/03/2023,90218099,"6,040.53",CMG LIMITED,SOCIAL SERVICES - OTHER,Adult Social Care & Health,Personal Budget - Third Party,A61019,0
Royal Borough of Kingston,01/03/2023,90218114,930.27,CMG LIMITED,SOCIAL SERVICES - OTHER,Adult Social Care & Health,Personal Budget - Third Party,A61019,0
Royal Borough of Kingston,01/03/2023,90218115,"4,019.02",CMG LIMITED,SOCIAL SERVICES - OTHER,Adult Social Care & Health,Personal Budget - Third Party,A61019,0
Royal Borough of Kingston,01/03/2023,90218175,"4,794.24",CMG LIMITED,SOCIAL SERVICES - OTHER,Adult Social Care & Health,Personal Budget - Third Party,A61019,0
Royal Borough of Kingston,13/02/2023,90212829,918.76,CN Healthcare,SOCIAL SERVICES - OTHER,Adult Social Care & Health,Homecare - new framework,A56127,0
Royal Borough of Kingston,13/02/2023,90213069,551.25,CN Healthcare,SOCIAL SERVICES - OTHER,Adult Social Care & Health,Homecare - new framework,A56127,0
Royal Borough of Kingston,13/02/2023,90213183,673.76,CN Healthcare,SOCIAL SERVICES - OTHER,Adult Social Care & Health,Homecare - new framework,A56127,0
Royal Borough of Kingston,20/02/2023,90213777,918.76,CN Healthcare,SOCIAL SERVICES - OTHER,Adult Social Care & Health,Homecare - new framework,A56127,0
Royal Borough of Kingston,20/02/2023,90214005,551.25,CN Healthcare,SOCIAL SERVICES - OTHER,Adult Social Care & Health,Homecare - new framework,A56127,0
Royal Borough of Kingston,20/02/2023,90214127,673.76,CN Healthcare,SOCIAL SERVICES - OTHER,Adult Social Care & Health,Homecare - new framework,A56127,0
Royal Borough of Kingston,21/03/2023,90215155,"1,651.00",CN Healthcare,SOCIAL SERVICES - OTHER,Adult Social Care & Health,Personal Budget - Third Party,A61019,0
Royal Borough of Kingston,27/02/2023,90215385,918.76,CN Healthcare,SOCIAL SERVICES - OTHER,Adult Social Care & Health,Homecare - new framework,A56127,0
Royal Borough of Kingston,27/02/2023,90215662,551.25,CN Healthcare,SOCIAL SERVICES - OTHER,Adult Social Care & Health,Homecare - new framework,A56127,0
Royal Borough of Kingston,27/02/2023,90215769,673.76,CN Healthcare,SOCIAL SERVICES - OTHER,Adult Social Care & Health,Homecare - new framework,A56127,0
Royal Borough of Kingston,06/03/2023,90216115,918.76,CN Healthcare,SOCIAL SERVICES - OTHER,Adult Social Care & Health,Homecare - new framework,A56127,0
Royal Borough of Kingston,06/03/2023,90216157,612.50,CN Healthcare,SOCIAL SERVICES - OTHER,Adult Social Care & Health,Homecare - new framework,A56127,0
Royal Borough of Kingston,06/03/2023,90216206,551.25,CN Healthcare,SOCIAL SERVICES - OTHER,Adult Social Care & Health,Homecare - new framework,A56127,0
Royal Borough of Kingston,06/03/2023,90216255,673.76,CN Healthcare,SOCIAL SERVICES - OTHER,Adult Social Care & Health,Homecare - new framework,A56127,0
Royal Borough of Kingston,13/03/2023,90217328,918.76,CN Healthcare,SOCIAL SERVICES - OTHER,Adult Social Care & Health,Homecare - new framework,A56127,0
Royal Borough of Kingston,13/03/2023,90217460,612.50,CN Healthcare,SOCIAL SERVICES - OTHER,Adult Social Care & Health,Homecare - new framework,A56127,0
Royal Borough of Kingston,13/03/2023,90217552,551.25,CN Healthcare,SOCIAL SERVICES - OTHER,Adult Social Care & Health,Homecare - new framework,A56127,0
Royal Borough of Kingston,13/03/2023,90217668,673.76,CN Healthcare,SOCIAL SERVICES - OTHER,Adult Social Care & Health,Homecare - new framework,A56127,0
Royal Borough of Kingston,01/03/2023,90216860,"14,022.05",COGNITHAN,SOCIAL SERVICES RESIDENTIAL,Adult Social Care & Health,Independent Placements,A56006,0
Royal Borough of Kingston,01/03/2023,90216922,"1,882.14",COMFORT CARE SERVICES UK LTD,SOCIAL SERVICES-HOME CARE,Adult Social Care & Health,Supported Living - new framework,A56126,0
Royal Borough of Kingston,01/03/2023,90216923,"3,013.31",COMFORT CARE SERVICES UK LTD,SOCIAL SERVICES-HOME CARE,Adult Social Care & Health,Supported Living - new framework,A56126,0
Royal Borough of Kingston,01/03/2023,90216927,"1,756.04",COMFORT CARE SERVICES UK LTD,SOCIAL SERVICES-HOME CARE,Adult Social Care & Health,Supported Living - new framework,A56126,0
Royal Borough of Kingston,01/03/2023,90216928,878.02,COMFORT CARE SERVICES UK LTD,SOCIAL SERVICES-HOME CARE,Adult Social Care & Health,Supported Living - new framework,A56126,0
Royal Borough of Kingston,01/03/2023,90216930,"1,756.04",COMFORT CARE SERVICES UK LTD,SOCIAL SERVICES-HOME CARE,Adult Social Care & Health,Supported Living - new framework,A56126,0
Royal Borough of Kingston,01/03/2023,90216931,878.02,COMFORT CARE SERVICES UK LTD,SOCIAL SERVICES-HOME CARE,Adult Social Care & Health,Supported Living - new framework,A56126,0
Royal Borough of Kingston,01/03/2023,90217060,"2,108.00",COMFORT CARE SERVICES UK LTD,SOCIAL SERVICES-HOME CARE,Adult Social Care & Health,Supported Living - new framework,A56126,0
Royal Borough of Kingston,01/03/2023,90217061,527.00,COMFORT CARE SERVICES UK LTD,SOCIAL SERVICES-HOME CARE,Adult Social Care & Health,Supported Living - new framework,A56126,0
Royal Borough of Kingston,01/03/2023,90217063,"1,882.14",COMFORT CARE SERVICES UK LTD,SOCIAL SERVICES-HOME CARE,Adult Social Care & Health,Supported Living - new framework,A56126,0
Royal Borough of Kingston,01/03/2023,90217064,752.86,COMFORT CARE SERVICES UK LTD,SOCIAL SERVICES-HOME CARE,Adult Social Care & Health,Supported Living - new framework,A56126,0
Royal Borough of Kingston,01/03/2023,90217066,889.26,COMFORT CARE SERVICES UK LTD,SOCIAL SERVICES-HOME CARE,Adult Social Care & Health,Supported Living - new framework,A56126,0
Royal Borough of Kingston,01/03/2023,90217068,"1,756.04",COMFORT CARE SERVICES UK LTD,SOCIAL SERVICES-HOME CARE,Adult Social Care & Health,Supported Living - new framework,A56126,0
Royal Borough of Kingston,01/03/2023,90217069,878.02,COMFORT CARE SERVICES UK LTD,SOCIAL SERVICES-HOME CARE,Adult Social Care & Health,Supported Living - new framework,A56126,0
Royal Borough of Kingston,01/03/2023,90217070,564.64,COMFORT CARE SERVICES UK LTD,SOCIAL SERVICES-HOME CARE,Adult Social Care & Health,Supported Living - new framework,A56126,0
Royal Borough of Kingston,01/03/2023,90217071,"1,129.29",COMFORT CARE SERVICES UK LTD,SOCIAL SERVICES-HOME CARE,Adult Social Care & Health,Supported Living - new framework,A56126,0
Royal Borough of Kingston,01/03/2023,90217074,"1,756.04",COMFORT CARE SERVICES UK LTD,SOCIAL SERVICES-HOME CARE,Adult Social Care & Health,Supported Living - new framework,A56126,0
Royal Borough of Kingston,01/03/2023,90217075,878.02,COMFORT CARE SERVICES UK LTD,SOCIAL SERVICES-HOME CARE,Adult Social Care & Health,Supported Living - new framework,A56126,0
Royal Borough of Kingston,01/03/2023,90217077,"2,108.00",COMFORT CARE SERVICES UK LTD,SOCIAL SERVICES-HOME CARE,Adult Social Care & Health,Supported Living - new framework,A56126,0
Royal Borough of Kingston,01/03/2023,90217078,527.00,COMFORT CARE SERVICES UK LTD,SOCIAL SERVICES-HOME CARE,Adult Social Care & Health,Supported Living - new framework,A56126,0
Royal Borough of Kingston,01/03/2023,90217080,"1,756.04",COMFORT CARE SERVICES UK LTD,SOCIAL SERVICES-HOME CARE,Adult Social Care & Health,Supported Living - new framework,A56126,0
Royal Borough of Kingston,01/03/2023,90217081,878.02,COMFORT CARE SERVICES UK LTD,SOCIAL SERVICES-HOME CARE,Adult Social Care & Health,Supported Living - new framework,A56126,0
Royal Borough of Kingston,01/03/2023,90217084,841.43,COMFORT CARE SERVICES UK LTD,SOCIAL SERVICES-HOME CARE,Adult Social Care & Health,Supported Living - new framework,A56126,0
Royal Borough of Kingston,01/03/2023,90217085,"2,108.00",COMFORT CARE SERVICES UK LTD,SOCIAL SERVICES-HOME CARE,Adult Social Care & Health,Supported Living - new framework,A56126,0
Royal Borough of Kingston,01/03/2023,90217086,527.00,COMFORT CARE SERVICES UK LTD,SOCIAL SERVICES-HOME CARE,Adult Social Care & Health,Supported Living - new framework,A56126,0
Royal Borough of Kingston,01/03/2023,90217089,"1,976.25",COMFORT CARE SERVICES UK LTD,SOCIAL SERVICES-HOME CARE,Adult Social Care & Health,Supported Living - new framework,A56126,0
Royal Borough of Kingston,01/03/2023,90217090,658.75,COMFORT CARE SERVICES UK LTD,SOCIAL SERVICES-HOME CARE,Adult Social Care & Health,Supported Living - new framework,A56126,0
Royal Borough of Kingston,01/03/2023,90217092,"1,756.04",COMFORT CARE SERVICES UK LTD,SOCIAL SERVICES-HOME CARE,Adult Social Care & Health,Supported Living - new framework,A56126,0
Royal Borough of Kingston,01/03/2023,90217093,878.02,COMFORT CARE SERVICES UK LTD,SOCIAL SERVICES-HOME CARE,Adult Social Care & Health,Supported Living - new framework,A56126,0
Royal Borough of Kingston,01/03/2023,90217095,"1,756.04",COMFORT CARE SERVICES UK LTD,SOCIAL SERVICES-HOME CARE,Adult Social Care & Health,Supported Living - new framework,A56126,0
Royal Borough of Kingston,01/03/2023,90217096,878.02,COMFORT CARE SERVICES UK LTD,SOCIAL SERVICES-HOME CARE,Adult Social Care & Health,Supported Living - new framework,A56126,0
Royal Borough of Kingston,01/03/2023,90217098,"1,756.04",COMFORT CARE SERVICES UK LTD,SOCIAL SERVICES-HOME CARE,Adult Social Care & Health,Supported Living - new framework,A56126,0
Royal Borough of Kingston,01/03/2023,90217099,878.02,COMFORT CARE SERVICES UK LTD,SOCIAL SERVICES-HOME CARE,Adult Social Care & Health,Supported Living - new framework,A56126,0
Royal Borough of Kingston,01/03/2023,90217101,"1,756.04",COMFORT CARE SERVICES UK LTD,SOCIAL SERVICES-HOME CARE,Adult Social Care & Health,Supported Living - new framework,A56126,0
Royal Borough of Kingston,01/03/2023,90217102,878.02,COMFORT CARE SERVICES UK LTD,SOCIAL SERVICES-HOME CARE,Adult Social Care & Health,Supported Living - new framework,A56126,0
Royal Borough of Kingston,01/03/2023,90217107,"1,756.04",COMFORT CARE SERVICES UK LTD,SOCIAL SERVICES-HOME CARE,Adult Social Care & Health,Supported Living - new framework,A56126,0
Royal Borough of Kingston,01/03/2023,90217108,878.02,COMFORT CARE SERVICES UK LTD,SOCIAL SERVICES-HOME CARE,Adult Social Care & Health,Supported Living - new framework,A56126,0
Royal Borough of Kingston,01/03/2023,90217110,"2,108.00",COMFORT CARE SERVICES UK LTD,SOCIAL SERVICES-HOME CARE,Adult Social Care & Health,Supported Living - new framework,A56126,0
Royal Borough of Kingston,01/03/2023,90217111,527.00,COMFORT CARE SERVICES UK LTD,SOCIAL SERVICES-HOME CARE,Adult Social Care & Health,Supported Living - new framework,A56126,0
Royal Borough of Kingston,01/03/2023,90217113,"2,108.00",COMFORT CARE SERVICES UK LTD,SOCIAL SERVICES-HOME CARE,Adult Social Care & Health,Supported Living - new framework,A56126,0
Royal Borough of Kingston,01/03/2023,90217114,527.00,COMFORT CARE SERVICES UK LTD,SOCIAL SERVICES-HOME CARE,Adult Social Care & Health,Supported Living - new framework,A56126,0
Royal Borough of Kingston,01/03/2023,90217117,564.64,COMFORT CARE SERVICES UK LTD,SOCIAL SERVICES-HOME CARE,Adult Social Care & Health,Supported Living - new framework,A56126,0
Royal Borough of Kingston,01/03/2023,90217118,"1,129.29",COMFORT CARE SERVICES UK LTD,SOCIAL SERVICES-HOME CARE,Adult Social Care & Health,Supported Living - new framework,A56126,0
Royal Borough of Kingston,01/03/2023,90217131,"1,756.04",COMFORT CARE SERVICES UK LTD,SOCIAL SERVICES-HOME CARE,Adult Social Care & Health,Supported Living - new framework,A56126,0
Royal Borough of Kingston,01/03/2023,90217132,878.02,COMFORT CARE SERVICES UK LTD,SOCIAL SERVICES-HOME CARE,Adult Social Care & Health,Supported Living - new framework,A56126,0
Royal Borough of Kingston,01/03/2023,90217137,941.07,COMFORT CARE SERVICES UK LTD,SOCIAL SERVICES-HOME CARE,Adult Social Care & Health,Supported Living - new framework,A56126,0
Royal Borough of Kingston,01/03/2023,90217138,"1,756.04",COMFORT CARE SERVICES UK LTD,SOCIAL SERVICES-HOME CARE,Adult Social Care & Health,Supported Living - new framework,A56126,0
Royal Borough of Kingston,01/03/2023,90217139,878.02,COMFORT CARE SERVICES UK LTD,SOCIAL SERVICES-HOME CARE,Adult Social Care & Health,Supported Living - new framework,A56126,0
Royal Borough of Kingston,01/03/2023,90217955,"1,078.09",COMFORT CARE SERVICES UK LTD,SOCIAL SERVICES-HOME CARE,Adult Social Care & Health,Personal Budget - Third Party,A61019,0
Royal Borough of Kingston,01/03/2023,90217956,"4,294.78",COMFORT CARE SERVICES UK LTD,SOCIAL SERVICES-HOME CARE,Adult Social Care & Health,Personal Budget - Third Party,A61019,0
Royal Borough of Kingston,01/03/2023,90217958,"1,043.02",COMFORT CARE SERVICES UK LTD,SOCIAL SERVICES-HOME CARE,Adult Social Care & Health,Personal Budget - Third Party,A61019,0
Royal Borough of Kingston,01/03/2023,90217963,920.30,COMFORT CARE SERVICES UK LTD,SOCIAL SERVICES-HOME CARE,Adult Social Care & Health,Personal Budget - Third Party,A61019,0
Royal Borough of Kingston,01/03/2023,90217964,"4,294.78",COMFORT CARE SERVICES UK LTD,SOCIAL SERVICES-HOME CARE,Adult Social Care & Health,Personal Budget - Third Party,A61019,0
Royal Borough of Kingston,01/03/2023,90217966,"1,043.02",COMFORT CARE SERVICES UK LTD,SOCIAL SERVICES-HOME CARE,Adult Social Care & Health,Personal Budget - Third Party,A61019,0
Royal Borough of Kingston,01/03/2023,90217995,"1,078.09",COMFORT CARE SERVICES UK LTD,SOCIAL SERVICES-HOME CARE,Adult Social Care & Health,Personal Budget - Third Party,A61019,0
Royal Borough of Kingston,01/03/2023,90217996,"4,294.78",COMFORT CARE SERVICES UK LTD,SOCIAL SERVICES-HOME CARE,Adult Social Care & Health,Personal Budget - Third Party,A61019,0
Royal Borough of Kingston,01/03/2023,90217998,"1,043.02",COMFORT CARE SERVICES UK LTD,SOCIAL SERVICES-HOME CARE,Adult Social Care & Health,Personal Budget - Third Party,A61019,0
Royal Borough of Kingston,01/03/2023,90218118,"3,998.96",COMFORT CARE SERVICES UK LTD,SOCIAL SERVICES-HOME CARE,Adult Social Care & Health,Personal Budget - Third Party,A61019,0
Royal Borough of Kingston,01/03/2023,90218120,"1,419.93",COMFORT CARE SERVICES UK LTD,SOCIAL SERVICES-HOME CARE,Adult Social Care & Health,Personal Budget - Third Party,A61019,0
Royal Borough of Kingston,01/03/2023,90218121,"4,294.78",COMFORT CARE SERVICES UK LTD,SOCIAL SERVICES-HOME CARE,Adult Social Care & Health,Personal Budget - Third Party,A61019,0
Royal Borough of Kingston,01/03/2023,90218123,"1,043.02",COMFORT CARE SERVICES UK LTD,SOCIAL SERVICES-HOME CARE,Adult Social Care & Health,Personal Budget - Third Party,A61019,0
Royal Borough of Kingston,01/03/2023,90218138,"1,446.19",COMFORT CARE SERVICES UK LTD,SOCIAL SERVICES-HOME CARE,Adult Social Care & Health,Personal Budget - Third Party,A61019,0
Royal Borough of Kingston,01/03/2023,90218139,"4,294.78",COMFORT CARE SERVICES UK LTD,SOCIAL SERVICES-HOME CARE,Adult Social Care & Health,Personal Budget - Third Party,A61019,0
Royal Borough of Kingston,01/03/2023,90218141,"1,043.02",COMFORT CARE SERVICES UK LTD,SOCIAL SERVICES-HOME CARE,Adult Social Care & Health,Personal Budget - Third Party,A61019,0
Royal Borough of Kingston,01/03/2023,90218291,"2,937.87",COMFORT CARE SERVICES UK LTD,SOCIAL SERVICES-HOME CARE,Adult Social Care & Health,Personal Budget - Third Party,A61019,0
Royal Borough of Kingston,01/03/2023,90218304,"1,110.82",COMFORT CARE SERVICES UK LTD,SOCIAL SERVICES-HOME CARE,Adult Social Care & Health,Personal Budget - Third Party,A61019,0
Royal Borough of Kingston,01/03/2023,90218306,"7,165.34",COMFORT CARE SERVICES UK LTD,SOCIAL SERVICES-HOME CARE,Adult Social Care & Health,Personal Budget - Third Party,A61019,0
Royal Borough of Kingston,01/03/2023,90216817,"8,102.87",COMMUNITY CARE SOLUTIONS LTD,SOCIAL SERVICES RESIDENTIAL,Adult Social Care & Health,Independent Placements,A56006,0
Royal Borough of Kingston,01/03/2023,90216820,"8,363.45",CONGRESS HOUSE LIMITED,SOCIAL SERVICES RESIDENTIAL,Adult Social Care & Health,Independent Placements,A56006,0
Royal Borough of Kingston,09/03/2023,90213492,"13,208.94",COOMBE ACADEMY,SCHOOL FUNDS,Schools,Miscellaneous Expenses,A49000,0
Royal Borough of Kingston,21/03/2023,90215200,"3,036.00",Coombe Boys School,SCHOOL FUNDS,Schools,Miscellaneous Expenses,A49000,0
Royal Borough of Kingston,21/03/2023,90215201,"9,900.00",COOMBE GIRLS SCHOOL,SCHOOL FUNDS,Schools,Miscellaneous Expenses,A49000,0
Royal Borough of Kingston,09/03/2023,70042250,"1,200.00",COOMBE HILL INFANTS SCHOOL,SCHOOL FUNDS,Childrens Services,MSF Claims Teaching Staff - Internal Trading,A46107,0
Royal Borough of Kingston,09/03/2023,70042283,600.00,COOMBE HILL INFANTS SCHOOL,SCHOOL FUNDS,Childrens Services,MSF Claims Support Staff - Internal Trading,A46108,0
Royal Borough of Kingston,07/03/2023,90211447,"107,636.54",COOMBE HILL INFANTS SCHOOL,SCHOOL FUNDS,Schools,Miscellaneous Expenses,A49000,0
Royal Borough of Kingston,09/03/2023,90213355,"15,416.20",COOMBE HILL INFANTS SCHOOL,SCHOOL FUNDS,Capital Programme,Payments to Contractors,C14000,0
Royal Borough of Kingston,28/03/2023,90216338,"9,348.75",COOMBE HILL INFANTS SCHOOL,SCHOOL FUNDS,Schools,Miscellaneous Expenses,A49000,0
Royal Borough of Kingston,28/03/2023,90216339,602.50,COOMBE HILL INFANTS SCHOOL,SCHOOL FUNDS,Schools,Miscellaneous Expenses,A49000,0
Royal Borough of Kingston,30/03/2023,90218440,"1,759.38",COOMBE HILL INFANTS SCHOOL,SCHOOL FUNDS,Capital Programme,Payments to Contractors,C14000,0
Royal Borough of Kingston,07/03/2023,90211448,"155,365.37",COOMBE HILL JUNIOR SCHOOL,SCHOOL FUNDS,Schools,Miscellaneous Expenses,A49000,0
Royal Borough of Kingston,07/03/2023,90213345,576.76,COOMBE HILL JUNIOR SCHOOL,SCHOOL FUNDS,Schools,Miscellaneous Expenses,A49000,0
Royal Borough of Kingston,09/03/2023,90213356,"18,445.26",COOMBE HILL JUNIOR SCHOOL,SCHOOL FUNDS,Capital Programme,Payments to Contractors,C14000,0
Royal Borough of Kingston,28/03/2023,90216340,"20,428.75",COOMBE HILL JUNIOR SCHOOL,SCHOOL FUNDS,Schools,Miscellaneous Expenses,A49000,0
Royal Borough of Kingston,28/03/2023,90216342,"3,012.50",COOMBE HILL JUNIOR SCHOOL,SCHOOL FUNDS,Schools,Miscellaneous Expenses,A49000,0
Royal Borough of Kingston,30/03/2023,90218441,"2,184.07",COOMBE HILL JUNIOR SCHOOL,SCHOOL FUNDS,Capital Programme,Payments to Contractors,C14000,0
Royal Borough of Kingston,13/03/2023,70042247,"3,000.00",CORPUS CHRISTI CATHOLIC PRIMARY SCHOOL ,SCHOOL FUNDS,Childrens Services,MSF Claims Teaching Staff - Internal Trading,A46107,0
Royal Borough of Kingston,07/03/2023,90211449,"149,458.59",CORPUS CHRISTI CATHOLIC PRIMARY SCHOOL ,SCHOOL FUNDS,Schools,Miscellaneous Expenses,A49000,0
Royal Borough of Kingston,09/03/2023,90213482,"18,024.77",CORPUS CHRISTI CATHOLIC PRIMARY SCHOOL ,SCHOOL FUNDS,Schools,Miscellaneous Expenses,A49000,0
Royal Borough of Kingston,28/03/2023,90216343,"12,465.00",CORPUS CHRISTI CATHOLIC PRIMARY SCHOOL ,SCHOOL FUNDS,Schools,Miscellaneous Expenses,A49000,0
Royal Borough of Kingston,28/03/2023,90216344,"1,205.00",CORPUS CHRISTI CATHOLIC PRIMARY SCHOOL ,SCHOOL FUNDS,Schools,Miscellaneous Expenses,A49000,0
Royal Borough of Kingston,01/03/2023,90216438,"3,542.86",COUNTRY COURT CARE HOMES 2 LTD,SOCIAL SERVICES RESIDENTIAL,Adult Social Care & Health,Independent Placements,A56006,0
Royal Borough of Kingston,01/03/2023,90216489,"3,764.29",COUNTRY COURT CARE HOMES 2 LTD,SOCIAL SERVICES RESIDENTIAL,Adult Social Care & Health,Independent Placements,A56006,0
Royal Borough of Kingston,01/03/2023,90216593,"3,528.91",COUNTRY COURT CARE HOMES 2 LTD,SOCIAL SERVICES RESIDENTIAL,Adult Social Care & Health,Independent Placements,A56006,0
Royal Borough of Kingston,01/03/2023,90216598,"3,764.29",COUNTRY COURT CARE HOMES 2 LTD,SOCIAL SERVICES RESIDENTIAL,Adult Social Care & Health,Independent Placements,A56006,0
Royal Borough of Kingston,01/03/2023,90216754,"3,764.29",COUNTRY COURT CARE HOMES 2 LTD,SOCIAL SERVICES RESIDENTIAL,Adult Social Care & Health,Independent Placements,A56006,0
Royal Borough of Kingston,09/03/2023,70042322,"255,620.11",COUNTRYSIDE PROPERTIES (UK) LTD,CONSTRUCTION INDUSTRY,Capital Programme,Payments to Contractors,C14000,0
Royal Borough of Kingston,09/03/2023,70042324,"630,582.21",COUNTRYSIDE PROPERTIES (UK) LTD,CONSTRUCTION INDUSTRY,Capital Programme,Payments to Contractors,C14000,0
Royal Borough of Kingston,09/03/2023,70042327,"449,657.28",COUNTRYSIDE PROPERTIES (UK) LTD,CONSTRUCTION INDUSTRY,Capital Programme,Payments to Contractors,C14000,0
Royal Borough of Kingston,08/02/2023,70040594,"6,937.39",Cox Design and Planning Ltd,TEMP STAFF & CONSULTANCY,Place,Consultancy Services,A56007,0
Royal Borough of Kingston,17/03/2023,70042834,"14,391.00",CPG EXECUTIVE CONSULTING LTD,MANAGEMENT & TRAINING SERVICES,Place,Consultancy Services,A56007,0
Royal Borough of Kingston,23/02/2023,70041494,"3,050.00",CPI CIC,LEGAL & PROFESSIONAL SERVICES,Adult Social Care & Health,Consultancy Services - Other,A44065,0
Royal Borough of Kingston,13/03/2023,70042330,"9,456.25",CRANWELL-WARD LTD,LANDLORDS,Corporate & Communities,Building Rents,A22005,0
Royal Borough of Kingston,01/02/2023,70041647,"45,567.66",CRAVENCROFT LTD,CONSTRUCTION INDUSTRY,Capital Programme,Payments to Contractors,C14000,0
Royal Borough of Kingston,06/03/2023,70042010,"136,374.42",CRAVENCROFT LTD,CONSTRUCTION INDUSTRY,Capital Programme,Payments to Contractors,C14000,0
Royal Borough of Kingston,28/02/2023,70042078,"3,660.00",CRAVENCROFT LTD,CONSTRUCTION INDUSTRY,Capital Programme,Intangible Assets - Project Management,C13001,0
Royal Borough of Kingston,28/02/2023,70042080,712.91,CRAVENCROFT LTD,CONSTRUCTION INDUSTRY,Capital Programme,Buildings - Design & Planning,C14001,0
Royal Borough of Kingston,24/02/2023,70042435,"11,041.14",CRAVENCROFT LTD,CONSTRUCTION INDUSTRY,Capital Programme,Payments to Contractors,C14000,0
Royal Borough of Kingston,09/03/2023,70042475,731.25,CRAVENCROFT LTD,CONSTRUCTION INDUSTRY,Capital Programme,Payments to Contractors,C14000,0
Royal Borough of Kingston,15/03/2023,70042575,"1,901.99",CRAVENCROFT LTD,CONSTRUCTION INDUSTRY,Capital Programme,Payments to Contractors,C14000,0
Royal Borough of Kingston,06/03/2023,70042228,"45,000.00",CREATIVE YOUTH,GRANTS & EX GRATIA PAYMENTS,Place,Contributions to third parties,A56005,0
Royal Borough of Kingston,27/02/2023,70041555,"1,577.85",Credence Direct Limited,TEMP STAFF & CONSULTANCY,Adult Social Care & Health,Other Private Contractors - Third Party,A56080,0
Royal Borough of Kingston,06/02/2023,70041588,"6,216.00",Crimestoppers Trust,PRESS & PUBLICITY,Adult Social Care & Health,Communications,A45025,0
Royal Borough of Kingston,28/02/2023,70042349,640.00,CROWN PROMOTIONS & REMOVALS LTD,PREMISES - REMOVALS,Capital Programme,Buildings - Project Management,C14003,0
Royal Borough of Kingston,28/02/2023,70042351,"2,265.00",CROWN PROMOTIONS & REMOVALS LTD,PREMISES - REMOVALS,Capital Programme,Buildings - Project Management,C14003,0
Royal Borough of Kingston,28/02/2023,70042352,"1,120.00",CROWN PROMOTIONS & REMOVALS LTD,PREMISES - REMOVALS,Capital Programme,Buildings - Project Management,C14003,0
Royal Borough of Kingston,28/02/2023,70042354,640.00,CROWN PROMOTIONS & REMOVALS LTD,PREMISES - REMOVALS,Capital Programme,Buildings - Project Management,C14003,0
Royal Borough of Kingston,28/02/2023,70042448,420.00,CROWN PROMOTIONS & REMOVALS LTD,PREMISES - REMOVALS,Place,Removal Services,A44075,0
Royal Borough of Kingston,28/02/2023,70042470,420.00,CROWN PROMOTIONS & REMOVALS LTD,PREMISES - REMOVALS,Place,Removal Services,A44075,0
Royal Borough of Kingston,28/02/2023,70042472,500.00,CROWN PROMOTIONS & REMOVALS LTD,PREMISES - REMOVALS,Place,Removal Services,A44075,0
Royal Borough of Kingston,28/02/2023,70042726,640.00,CROWN PROMOTIONS & REMOVALS LTD,PREMISES - REMOVALS,Place,Removal Services,A44075,0
Royal Borough of Kingston,28/02/2023,70042731,"1,480.00",CROWN PROMOTIONS & REMOVALS LTD,PREMISES - REMOVALS,Place,Removal Services,A44075,0
Royal Borough of Kingston,28/02/2023,70043010,640.00,CROWN PROMOTIONS & REMOVALS LTD,PREMISES - REMOVALS,Housing Revenue Account,Consultancy Services - Other,A44065,0
Royal Borough of Kingston,01/02/2023,70040379,"101,677.30",LONDON BOROUGH OF CROYDON,CENTRAL & LOCAL GOVERNMENT,Corporate & Communities,Contract Cleaning,A27010,0
Royal Borough of Kingston,01/03/2023,70043166,"1,652.00",CRYSTAL & CO,ACCOMMODATION BED & BREAKFAST,Place,Bed & Breakfast,A56000,0
Royal Borough of Kingston,01/03/2023,70043167,"2,100.00",CRYSTAL & CO,ACCOMMODATION BED & BREAKFAST,Place,Bed & Breakfast,A56000,0
Royal Borough of Kingston,01/03/2023,70043168,"1,876.00",CRYSTAL & CO,ACCOMMODATION BED & BREAKFAST,Place,Bed & Breakfast,A56000,0
Royal Borough of Kingston,01/03/2023,70043169,"2,016.00",CRYSTAL & CO,ACCOMMODATION BED & BREAKFAST,Place,Bed & Breakfast,A56000,0
Royal Borough of Kingston,01/03/2023,70043170,"1,624.00",CRYSTAL & CO,ACCOMMODATION BED & BREAKFAST,Place,Bed & Breakfast,A56000,0
Royal Borough of Kingston,01/03/2023,70043171,"2,100.00",CRYSTAL & CO,ACCOMMODATION BED & BREAKFAST,Place,Bed & Breakfast,A56000,0
Royal Borough of Kingston,01/03/2023,70043172,"1,876.00",CRYSTAL & CO,ACCOMMODATION BED & BREAKFAST,Place,Bed & Breakfast,A56000,0
Royal Borough of Kingston,01/03/2023,70043173,"2,133.00",CRYSTAL & CO,ACCOMMODATION BED & BREAKFAST,Place,Bed & Breakfast,A56000,0
Royal Borough of Kingston,01/03/2023,70043174,"1,652.00",CRYSTAL & CO,ACCOMMODATION BED & BREAKFAST,Place,Bed & Breakfast,A56000,0
Royal Borough of Kingston,01/03/2023,70043175,"1,624.00",CRYSTAL & CO,ACCOMMODATION BED & BREAKFAST,Place,Bed & Breakfast,A56000,0
Royal Borough of Kingston,01/03/2023,70043176,"1,652.00",CRYSTAL & CO,ACCOMMODATION BED & BREAKFAST,Place,Bed & Breakfast,A56000,0
Royal Borough of Kingston,01/03/2023,70043177,"1,876.00",CRYSTAL & CO,ACCOMMODATION BED & BREAKFAST,Place,Bed & Breakfast,A56000,0
Royal Borough of Kingston,01/03/2023,70043178,"1,568.00",CRYSTAL & CO,ACCOMMODATION BED & BREAKFAST,Place,Bed & Breakfast,A56000,0
Royal Borough of Kingston,01/03/2023,70043179,"1,568.00",CRYSTAL & CO,ACCOMMODATION BED & BREAKFAST,Place,Bed & Breakfast,A56000,0
Royal Borough of Kingston,01/03/2023,70043180,"2,240.00",CRYSTAL & CO,ACCOMMODATION BED & BREAKFAST,Place,Bed & Breakfast,A56000,0
Royal Borough of Kingston,01/03/2023,70043181,"1,260.00",CRYSTAL & CO,ACCOMMODATION BED & BREAKFAST,Place,Bed & Breakfast,A56000,0
Royal Borough of Kingston,01/03/2023,70043182,"2,352.00",CRYSTAL & CO,ACCOMMODATION BED & BREAKFAST,Place,Bed & Breakfast,A56000,0
Royal Borough of Kingston,09/03/2023,90213486,"13,851.27",KNOLLMEAD PRIMARY SCHOOL,SCHOOL FUNDS,Schools,Miscellaneous Expenses,A49000,0
Royal Borough of Kingston,07/02/2023,70040943,"1,045.00",D & L House Clearance Limited,BUILDING MNTCE - SERVICES,Adult Social Care & Health,Other Cleaning And Waste-Related Third Party Payment,A56064,0
Royal Borough of Kingston,26/02/2023,70041865,"1,625.00",D & L House Clearance Limited,BUILDING MNTCE - SERVICES,Adult Social Care & Health,Other Cleaning And Waste-Related Third Party Payment,A56064,0
Royal Borough of Kingston,09/03/2023,90213508,592.92,REDACTED - PERSONAL DATA,CHILDMINDERS START UP GRANT,Schools,PVI Providers,A60014,0
Royal Borough of Kingston,18/10/2022,70042047,"2,775.00",REDACTED - PERSONAL DATA,ENTERTAINMENTS INDUSTRY,Place,Consultancy Services,A56007,0
Royal Borough of Kingston,13/02/2023,70042048,"2,250.00",REDACTED - PERSONAL DATA,ENTERTAINMENTS INDUSTRY,Place,Consultancy Services,A56007,0
Royal Borough of Kingston,18/10/2022,70042049,"1,500.00",REDACTED - PERSONAL DATA,ENTERTAINMENTS INDUSTRY,Place,Consultancy Services,A56007,0
Royal Borough of Kingston,01/03/2023,90216038,"2,496.91",Darethealthcare UK Limited,ACCOMMODATION - OTHER,Adult Social Care & Health,Personal Budget - Third Party,A61019,0
Royal Borough of Kingston,01/03/2023,90218312,"3,051.29",Darethealthcare UK Limited,ACCOMMODATION - OTHER,Adult Social Care & Health,Personal Budget - Third Party,A61019,0
Royal Borough of Kingston,01/03/2023,90218323,"3,518.37",Darethealthcare UK Limited,ACCOMMODATION - OTHER,Adult Social Care & Health,Personal Budget - Third Party,A61019,0
Royal Borough of Kingston,03/03/2023,70041870,"1,722.21",REDACTED - PERSONAL DATA,PLS LANDLORDS,Place,PSL Payments To Landlords,A22031,0
Royal Borough of Kingston,21/03/2023,90215156,507.00,DAY AND NITE SERVICES (KINGSTON),SOCIAL SERVICES-HOME CARE,Adult Social Care & Health,Personal Budget - Third Party,A61019,0
Royal Borough of Kingston,23/02/2023,70041379,"7,800.00",REDACTED - PERSONAL DATA,SUNDRY SUPPLIER - HOUSING,Capital Programme,Buildings - Project Management,C14003,0
Royal Borough of Kingston,02/03/2023,70043285,"1,680.00",Delta Wise Limited,ACCOMMODATION BED & BREAKFAST,Place,Bed & Breakfast,A56000,0
Royal Borough of Kingston,02/03/2023,70043286,"2,380.00",Delta Wise Limited,ACCOMMODATION BED & BREAKFAST,Place,Bed & Breakfast,A56000,0
Royal Borough of Kingston,02/03/2023,70043289,"1,876.00",Delta Wise Limited,ACCOMMODATION BED & BREAKFAST,Place,Bed & Breakfast,A56000,0
Royal Borough of Kingston,02/03/2023,70043291,"3,696.00",Delta Wise Limited,ACCOMMODATION BED & BREAKFAST,Place,Bed & Breakfast,A56000,0
Royal Borough of Kingston,02/03/2023,70043294,"2,520.00",Delta Wise Limited,ACCOMMODATION BED & BREAKFAST,Place,Bed & Breakfast,A56000,0
Royal Borough of Kingston,02/03/2023,70043295,"3,220.00",Delta Wise Limited,ACCOMMODATION BED & BREAKFAST,Place,Bed & Breakfast,A56000,0
Royal Borough of Kingston,03/03/2023,70043296,510.00,Delta Wise Limited,ACCOMMODATION BED & BREAKFAST,Place,Bed & Breakfast,A56000,0
Royal Borough of Kingston,02/03/2023,70043300,"2,772.00",Delta Wise Limited,ACCOMMODATION BED & BREAKFAST,Place,Bed & Breakfast,A56000,0
Royal Borough of Kingston,02/03/2023,70043301,"3,696.00",Delta Wise Limited,ACCOMMODATION BED & BREAKFAST,Place,Bed & Breakfast,A56000,0
Royal Borough of Kingston,02/03/2023,70043302,"1,680.00",Delta Wise Limited,ACCOMMODATION BED & BREAKFAST,Place,Bed & Breakfast,A56000,0
Royal Borough of Kingston,22/02/2023,70042112,"5,762.00",DENTONS UK & MIDDLE EAST LLP,LEGAL & PROFESSIONAL SERVICES,Place,Property-Related Professional Fees,A20035,0
Royal Borough of Kingston,01/03/2023,90218182,"6,210.81",Dephinus Healthcare Ltd,ACCOMMODATION - OTHER,Adult Social Care & Health,Personal Budget - Third Party,A61019,0
Royal Borough of Kingston,01/03/2023,90218287,"6,665.00",Dephinus Healthcare Ltd,ACCOMMODATION - OTHER,Adult Social Care & Health,Personal Budget - Third Party,A61019,0
Royal Borough of Kingston,01/03/2023,90218301,"12,845.07",Dephinus Healthcare Ltd,ACCOMMODATION - OTHER,Adult Social Care & Health,Personal Budget - Third Party,A61019,0
Royal Borough of Kingston,01/03/2023,90218305,"6,864.29",Dephinus Healthcare Ltd,ACCOMMODATION - OTHER,Adult Social Care & Health,Personal Budget - Third Party,A61019,0
Royal Borough of Kingston,06/03/2023,70042001,"1,150.00",DEXTERS LIMITED,LANDLORDS,Adult Social Care & Health,Building Rents,A22005,0
Royal Borough of Kingston,09/03/2023,90213429,"25,851.31",DICKY BIRDS PRE SCHOOL NURSERIES LTD,ACADEMIC INSTNS - OTHER,Schools,PVI Providers,A60014,0
Royal Borough of Kingston,09/03/2023,90213456,"18,815.33",DICKY BIRDS PRE SCHOOL NURSERIES LTD,ACADEMIC INSTNS - OTHER,Schools,PVI Providers,A60014,0
Royal Borough of Kingston,09/03/2023,90213524,"13,110.12",DICKY BIRDS PRE SCHOOL NURSERIES LTD,ACADEMIC INSTNS - OTHER,Schools,PVI Providers,A60014,0
Royal Borough of Kingston,09/03/2023,90213580,"2,892.12",DICKY BIRDS PRE SCHOOL NURSERIES LTD,ACADEMIC INSTNS - OTHER,Schools,2 Yr Old Place Funding,A60000,0
Royal Borough of Kingston,28/02/2023,70042916,"16,704.00",DISCLOSURE AND BARRING SERVICE ,LEGAL & PROFESSIONAL SERVICES,Corporate & Communities,DBS Checks,A15029,0
Royal Borough of Kingston,31/12/2022,70042918,"13,678.00",DISCLOSURE AND BARRING SERVICE ,LEGAL & PROFESSIONAL SERVICES,Corporate & Communities,DBS Checks,A15029,0
Royal Borough of Kingston,30/11/2022,70042937,"25,392.00",DISCLOSURE AND BARRING SERVICE ,LEGAL & PROFESSIONAL SERVICES,Corporate & Communities,DBS Checks,A15029,0
Royal Borough of Kingston,31/01/2023,70042940,"22,064.00",DISCLOSURE AND BARRING SERVICE ,LEGAL & PROFESSIONAL SERVICES,Corporate & Communities,DBS Checks,A15029,0
Royal Borough of Kingston,08/03/2023,70042240,525.60,DMA SIGNS LTD,BUILDING MNTCE - SERVICES,Housing Revenue Account,Lighting and Signs,A25006,0
Royal Borough of Kingston,09/03/2023,90213445,"1,185.84",REDACTED - PERSONAL DATA,CHILDMINDERS START UP GRANT,Schools,PVI Providers,A60014,0
Royal Borough of Kingston,09/03/2023,90213450,"23,558.69",DORIS VENNER PRE-SCHOOL,ACADEMIC INSTNS - OTHER,Schools,PVI Providers,A60014,0
Royal Borough of Kingston,09/03/2023,90213559,"4,507.20",DORIS VENNER PRE-SCHOOL,ACADEMIC INSTNS - OTHER,Schools,2 Yr Old Place Funding,A60000,0
Royal Borough of Kingston,01/03/2023,90216845,"5,534.83",DOWNING (CHERTSEY ROAD) LTD,SOCIAL SERVICES RESIDENTIAL,Adult Social Care & Health,Independent Placements,A56006,0
Royal Borough of Kingston,01/03/2023,90218342,-680.23,DOWNING (CHERTSEY ROAD) LTD,SOCIAL SERVICES RESIDENTIAL,Adult Social Care & Health,Financially Assessed Contributions clients � Non VAT,A92047,0
Royal Borough of Kingston,01/03/2023,90218344,-658.29,DOWNING (CHERTSEY ROAD) LTD,SOCIAL SERVICES RESIDENTIAL,Adult Social Care & Health,Financially Assessed Contributions clients � Non VAT,A92047,0
Royal Borough of Kingston,01/03/2023,90218346,-680.23,DOWNING (CHERTSEY ROAD) LTD,SOCIAL SERVICES RESIDENTIAL,Adult Social Care & Health,Financially Assessed Contributions clients � Non VAT,A92047,0
Royal Borough of Kingston,01/03/2023,90218348,-680.23,DOWNING (CHERTSEY ROAD) LTD,SOCIAL SERVICES RESIDENTIAL,Adult Social Care & Health,Financially Assessed Contributions clients � Non VAT,A92047,0
Royal Borough of Kingston,01/03/2023,90218350,-614.40,DOWNING (CHERTSEY ROAD) LTD,SOCIAL SERVICES RESIDENTIAL,Adult Social Care & Health,Financially Assessed Contributions clients � Non VAT,A92047,0
Royal Borough of Kingston,01/03/2023,90218352,-680.23,DOWNING (CHERTSEY ROAD) LTD,SOCIAL SERVICES RESIDENTIAL,Adult Social Care & Health,Financially Assessed Contributions clients � Non VAT,A92047,0
Royal Borough of Kingston,03/03/2023,70042639,"11,738.13",Drax Energy Solutions,SUNDRY SUPPLIER - FINANCE,Place,Electricity,A21000,0
Royal Borough of Kingston,10/03/2023,70042192,"11,738.13",Drax Power Station,SUNDRY SUPPLIER - FINANCE,Place,Electrical Repairs,A20002,0
Royal Borough of Kingston,28/02/2023,70042550,980.00,Dunheved Hotel LTD,ACCOMMODATION BED & BREAKFAST,Place,Bed & Breakfast,A56000,0
Royal Borough of Kingston,28/03/2023,90216386,"35,948.00",The Hollyfield School,SCHOOL FUNDS,Schools,Miscellaneous Expenses,A49000,0
Royal Borough of Kingston,28/03/2023,70043538,"1,150.00",REDACTED - PERSONAL DATA,PLS LANDLORDS,Place,Compensation (In Lieu Of Works),A20039,0
Royal Borough of Kingston,03/03/2023,70043314,"15,605.00",CHESSINGTON SCHOOL,SCHOOL FUNDS,Adult Social Care & Health,Building Rents,A22005,0
Royal Borough of Kingston,08/01/2023,70040549,432.00,EDF ENERGY CUST FIELD SERVICES,UTILITIES,Adult Social Care & Health,Electricity,A21000,0
Royal Borough of Kingston,23/02/2023,70041951,663.04,EDF ENERGY CUSTOMER PLC,UTILITIES,Housing Revenue Account,Electricity,A21000,0
Royal Borough of Kingston,02/03/2023,70042947,"3,348.94",EDF ENERGY CUSTOMER PLC,UTILITIES,Corporate & Communities,Site Management,A56063,0
Royal Borough of Kingston,23/02/2023,70043331,629.02,EDF ENERGY CUSTOMER PLC,UTILITIES,Housing Revenue Account,Electricity,A21000,0
Royal Borough of Kingston,23/11/2022,70037915,853.46,EDF ENERGY CUSTOMER PLC,UTILITIES,Place,Electricity,A21000,0
Royal Borough of Kingston,09/03/2023,90213465,"2,977.78",EDUCARE SMALL SCHOOL LTD,ACADEMIC INSTNS - OTHER,Schools,PVI Providers,A60014,0
Royal Borough of Kingston,31/01/2023,70040873,"7,133.00",ELDERCARE (UK) LTD,SOCIAL SERVICES - OTHER,Adult Social Care & Health,Equipment And Materials Purchase,A40000,0
Royal Borough of Kingston,17/03/2023,70042821,"3,000.00",ELLINGHAM PRIMARY SCHOOL,SCHOOL FUNDS,Childrens Services,MSF Claims Teaching Staff - Internal Trading,A46107,0
Royal Borough of Kingston,07/03/2023,90211460,"2,651.39",ELLINGHAM PRIMARY SCHOOL,SCHOOL FUNDS,Schools,Miscellaneous Expenses,A49000,0
Royal Borough of Kingston,09/03/2023,90213357,"17,723.10",ELLINGHAM PRIMARY SCHOOL,SCHOOL FUNDS,Capital Programme,Payments to Contractors,C14000,0
Royal Borough of Kingston,09/03/2023,90213483,"9,486.72",ELLINGHAM PRIMARY SCHOOL,SCHOOL FUNDS,Schools,Miscellaneous Expenses,A49000,0
Royal Borough of Kingston,28/03/2023,90216345,"29,950.63",ELLINGHAM PRIMARY SCHOOL,SCHOOL FUNDS,Schools,Miscellaneous Expenses,A49000,0
Royal Borough of Kingston,28/03/2023,90216346,602.50,ELLINGHAM PRIMARY SCHOOL,SCHOOL FUNDS,Schools,Miscellaneous Expenses,A49000,0
Royal Borough of Kingston,30/03/2023,90218442,"2,082.82",ELLINGHAM PRIMARY SCHOOL,SCHOOL FUNDS,Capital Programme,Payments to Contractors,C14000,0
Royal Borough of Kingston,01/03/2023,90216785,"9,884.57",ELYSIUM HEALTHCARE LTD,SOCIAL SERVICES - OTHER,Adult Social Care & Health,Independent Placements,A56006,0
Royal Borough of Kingston,01/03/2023,90216793,"9,536.80",ELYSIUM HEALTHCARE LTD,SOCIAL SERVICES - OTHER,Adult Social Care & Health,Independent Placements,A56006,0
Royal Borough of Kingston,01/03/2023,90216795,"11,347.02",ELYSIUM HEALTHCARE LTD,SOCIAL SERVICES - OTHER,Adult Social Care & Health,Independent Placements,A56006,0
Royal Borough of Kingston,01/03/2023,90216799,"9,769.34",ELYSIUM HEALTHCARE LTD,SOCIAL SERVICES - OTHER,Adult Social Care & Health,Independent Placements,A56006,0
Royal Borough of Kingston,01/03/2023,90216802,"10,084.65",ELYSIUM HEALTHCARE LTD,SOCIAL SERVICES - OTHER,Adult Social Care & Health,Independent Placements,A56006,0
Royal Borough of Kingston,01/03/2023,90216825,"9,884.57",ELYSIUM HEALTHCARE LTD,SOCIAL SERVICES - OTHER,Adult Social Care & Health,Independent Placements,A56006,0
Royal Borough of Kingston,06/02/2023,90213405,762.40,EMEZZIONS LIMITED,SOCIAL SERVICES - OTHER,Adult Social Care & Health,Supported Living - new framework,A56126,0
Royal Borough of Kingston,01/03/2023,90216957,"4,989.76",EMEZZIONS LIMITED,SOCIAL SERVICES - OTHER,Adult Social Care & Health,Supported Living - new framework,A56126,0
Royal Borough of Kingston,01/03/2023,90216958,"2,806.74",EMEZZIONS LIMITED,SOCIAL SERVICES - OTHER,Adult Social Care & Health,Supported Living - new framework,A56126,0
Royal Borough of Kingston,06/03/2023,90217052,707.94,EMEZZIONS LIMITED,SOCIAL SERVICES - OTHER,Adult Social Care & Health,Supported Living - new framework,A56126,0
Royal Borough of Kingston,01/03/2023,90217103,"2,649.86",EMEZZIONS LIMITED,SOCIAL SERVICES - OTHER,Adult Social Care & Health,Supported Living - new framework,A56126,0
Royal Borough of Kingston,01/03/2023,90217104,"3,534.56",EMEZZIONS LIMITED,SOCIAL SERVICES - OTHER,Adult Social Care & Health,Supported Living - new framework,A56126,0
Royal Borough of Kingston,01/03/2023,90217105,"1,603.76",EMEZZIONS LIMITED,SOCIAL SERVICES - OTHER,Adult Social Care & Health,Supported Living - new framework,A56126,0
Royal Borough of Kingston,01/03/2023,90217120,"14,182.13",EMEZZIONS LIMITED,SOCIAL SERVICES - OTHER,Adult Social Care & Health,Supported Living - new framework,A56126,0
Royal Borough of Kingston,01/03/2023,90217128,"3,651.05",EMEZZIONS LIMITED,SOCIAL SERVICES - OTHER,Adult Social Care & Health,Supported Living - new framework,A56126,0
Royal Borough of Kingston,01/03/2023,90217129,"2,232.37",EMEZZIONS LIMITED,SOCIAL SERVICES - OTHER,Adult Social Care & Health,Supported Living - new framework,A56126,0
Royal Borough of Kingston,01/03/2023,90217827,"2,096.60",EMEZZIONS LIMITED,SOCIAL SERVICES - OTHER,Adult Social Care & Health,Personal Budget - Third Party,A61019,0
Royal Borough of Kingston,01/03/2023,90217828,"2,515.92",EMEZZIONS LIMITED,SOCIAL SERVICES - OTHER,Adult Social Care & Health,Personal Budget - Third Party,A61019,0
Royal Borough of Kingston,09/03/2023,90213509,790.56,REDACTED - PERSONAL DATA,ACADEMIC INSTNS - OTHER,Schools,PVI Providers,A60014,0
Royal Borough of Kingston,01/03/2023,90216662,"3,349.68",ENHAM,SOCIAL SERVICES - OTHER,Adult Social Care & Health,Independent Placements,A56006,0
Royal Borough of Kingston,31/01/2023,70041507,"1,648.00",ENHANCEABLE,SOCIAL SERVICES - OTHER,Adult Social Care & Health,Other Private Contractors - Third Party,A56080,0
Royal Borough of Kingston,28/02/2023,70042517,"1,133.00",ENHANCEABLE,SOCIAL SERVICES - OTHER,Adult Social Care & Health,Other Private Contractors - Third Party,A56080,0
Royal Borough of Kingston,01/03/2023,90216914,"31,227.10",ENHANCEABLE,SOCIAL SERVICES - OTHER,Adult Social Care & Health,Other Private Contractors - Third Party,A56080,0
Royal Borough of Kingston,01/03/2023,90216919,525.01,ENHANCEABLE,SOCIAL SERVICES - OTHER,Adult Social Care & Health,Other Private Contractors - Third Party,A56080,0
Royal Borough of Kingston,01/03/2023,90218094,"1,688.35",ENHANCEABLE,SOCIAL SERVICES - OTHER,Adult Social Care & Health,Personal Budget - Third Party,A61019,0
Royal Borough of Kingston,01/05/2020,90218160,918.17,ENHANCEABLE,SOCIAL SERVICES - OTHER,Adult Social Care & Health,Personal Budget - Third Party,A61019,0
Royal Borough of Kingston,01/05/2020,90218161,"1,059.43",ENHANCEABLE,SOCIAL SERVICES - OTHER,Adult Social Care & Health,Personal Budget - Third Party,A61019,0
Royal Borough of Kingston,01/05/2020,90218162,"1,094.74",ENHANCEABLE,SOCIAL SERVICES - OTHER,Adult Social Care & Health,Personal Budget - Third Party,A61019,0
Royal Borough of Kingston,01/05/2020,90218163,"1,059.43",ENHANCEABLE,SOCIAL SERVICES - OTHER,Adult Social Care & Health,Personal Budget - Third Party,A61019,0
Royal Borough of Kingston,01/05/2020,90218164,"1,094.74",ENHANCEABLE,SOCIAL SERVICES - OTHER,Adult Social Care & Health,Personal Budget - Third Party,A61019,0
Royal Borough of Kingston,01/05/2020,90218165,"1,094.74",ENHANCEABLE,SOCIAL SERVICES - OTHER,Adult Social Care & Health,Personal Budget - Third Party,A61019,0
Royal Borough of Kingston,01/05/2020,90218166,"1,059.43",ENHANCEABLE,SOCIAL SERVICES - OTHER,Adult Social Care & Health,Personal Budget - Third Party,A61019,0
Royal Borough of Kingston,01/05/2020,90218167,"1,094.74",ENHANCEABLE,SOCIAL SERVICES - OTHER,Adult Social Care & Health,Personal Budget - Third Party,A61019,0
Royal Borough of Kingston,01/05/2020,90218168,"1,059.43",ENHANCEABLE,SOCIAL SERVICES - OTHER,Adult Social Care & Health,Personal Budget - Third Party,A61019,0
Royal Borough of Kingston,01/05/2020,90218169,"1,094.74",ENHANCEABLE,SOCIAL SERVICES - OTHER,Adult Social Care & Health,Personal Budget - Third Party,A61019,0
Royal Borough of Kingston,01/05/2020,90218170,"1,094.74",ENHANCEABLE,SOCIAL SERVICES - OTHER,Adult Social Care & Health,Personal Budget - Third Party,A61019,0
Royal Borough of Kingston,01/03/2023,90218271,"1,501.46",ENHANCEABLE,SOCIAL SERVICES - OTHER,Adult Social Care & Health,Personal Budget - Third Party,A61019,0
Royal Borough of Kingston,01/03/2023,90218378,937.97,ENHANCEABLE,SOCIAL SERVICES - OTHER,Adult Social Care & Health,Personal Budget - Third Party,A61019,0
Royal Borough of Kingston,01/03/2023,90218379,"1,031.77",ENHANCEABLE,SOCIAL SERVICES - OTHER,Adult Social Care & Health,Personal Budget - Third Party,A61019,0
Royal Borough of Kingston,01/05/2020,90218380,-918.17,ENHANCEABLE,SOCIAL SERVICES - OTHER,Adult Social Care & Health,Personal Budget - Third Party,A61019,0
Royal Borough of Kingston,01/05/2020,90218381,"-1,059.43",ENHANCEABLE,SOCIAL SERVICES - OTHER,Adult Social Care & Health,Personal Budget - Third Party,A61019,0
Royal Borough of Kingston,01/05/2020,90218382,"-1,094.74",ENHANCEABLE,SOCIAL SERVICES - OTHER,Adult Social Care & Health,Personal Budget - Third Party,A61019,0
Royal Borough of Kingston,01/05/2020,90218383,"-1,059.43",ENHANCEABLE,SOCIAL SERVICES - OTHER,Adult Social Care & Health,Personal Budget - Third Party,A61019,0
Royal Borough of Kingston,01/05/2020,90218384,"-1,094.74",ENHANCEABLE,SOCIAL SERVICES - OTHER,Adult Social Care & Health,Personal Budget - Third Party,A61019,0
Royal Borough of Kingston,01/05/2020,90218385,"-1,094.74",ENHANCEABLE,SOCIAL SERVICES - OTHER,Adult Social Care & Health,Personal Budget - Third Party,A61019,0
Royal Borough of Kingston,01/05/2020,90218386,"-1,059.43",ENHANCEABLE,SOCIAL SERVICES - OTHER,Adult Social Care & Health,Personal Budget - Third Party,A61019,0
Royal Borough of Kingston,01/05/2020,90218387,"-1,094.74",ENHANCEABLE,SOCIAL SERVICES - OTHER,Adult Social Care & Health,Personal Budget - Third Party,A61019,0
Royal Borough of Kingston,01/05/2020,90218388,"-1,059.43",ENHANCEABLE,SOCIAL SERVICES - OTHER,Adult Social Care & Health,Personal Budget - Third Party,A61019,0
Royal Borough of Kingston,01/05/2020,90218389,"-1,094.74",ENHANCEABLE,SOCIAL SERVICES - OTHER,Adult Social Care & Health,Personal Budget - Third Party,A61019,0
Royal Borough of Kingston,01/05/2020,90218390,"-1,094.74",ENHANCEABLE,SOCIAL SERVICES - OTHER,Adult Social Care & Health,Personal Budget - Third Party,A61019,0
Royal Borough of Kingston,01/05/2020,90218391,"-1,024.11",ENHANCEABLE,SOCIAL SERVICES - OTHER,Adult Social Care & Health,Personal Budget - Third Party,A61019,0
Royal Borough of Kingston,01/05/2020,90218392,"-1,094.74",ENHANCEABLE,SOCIAL SERVICES - OTHER,Adult Social Care & Health,Personal Budget - Third Party,A61019,0
Royal Borough of Kingston,01/05/2020,90218393,"-1,059.43",ENHANCEABLE,SOCIAL SERVICES - OTHER,Adult Social Care & Health,Personal Budget - Third Party,A61019,0
Royal Borough of Kingston,01/11/2020,90218394,"-1,094.74",ENHANCEABLE,SOCIAL SERVICES - OTHER,Adult Social Care & Health,Personal Budget - Third Party,A61019,0
Royal Borough of Kingston,01/11/2020,90218395,"-1,059.43",ENHANCEABLE,SOCIAL SERVICES - OTHER,Adult Social Care & Health,Personal Budget - Third Party,A61019,0
Royal Borough of Kingston,01/11/2020,90218396,"-1,094.74",ENHANCEABLE,SOCIAL SERVICES - OTHER,Adult Social Care & Health,Personal Budget - Third Party,A61019,0
Royal Borough of Kingston,01/11/2020,90218397,"-1,094.74",ENHANCEABLE,SOCIAL SERVICES - OTHER,Adult Social Care & Health,Personal Budget - Third Party,A61019,0
Royal Borough of Kingston,01/11/2020,90218398,"-1,059.43",ENHANCEABLE,SOCIAL SERVICES - OTHER,Adult Social Care & Health,Personal Budget - Third Party,A61019,0
Royal Borough of Kingston,01/11/2020,90218399,"-1,094.74",ENHANCEABLE,SOCIAL SERVICES - OTHER,Adult Social Care & Health,Personal Budget - Third Party,A61019,0
Royal Borough of Kingston,01/03/2023,90218400,"-1,059.43",ENHANCEABLE,SOCIAL SERVICES - OTHER,Adult Social Care & Health,Personal Budget - Third Party,A61019,0
Royal Borough of Kingston,01/03/2023,90218401,"-1,094.74",ENHANCEABLE,SOCIAL SERVICES - OTHER,Adult Social Care & Health,Personal Budget - Third Party,A61019,0
Royal Borough of Kingston,01/03/2023,90218402,"-1,094.74",ENHANCEABLE,SOCIAL SERVICES - OTHER,Adult Social Care & Health,Personal Budget - Third Party,A61019,0
Royal Borough of Kingston,08/03/2023,70042241,420.00,ENTRYCALL LIMITED,CONSTRUCTION INDUSTRY,Housing Revenue Account,Housing - Key Cutting,A20049,0
Royal Borough of Kingston,08/03/2023,70042141,932.47,EPSOM & EWELL BOROUGH COUNCIL,CENTRAL & LOCAL GOVERNMENT,Place,Rates & Council Tax,A23005,0
Royal Borough of Kingston,23/02/2023,70043187,546.93,EPSOM & ST HELIER UNIVERSITY HOSPITALS NHS TRUST,SOCIAL SERVICES - OTHER,Adult Social Care & Health,Other Private Contractors - Third Party,A56080,0
Royal Borough of Kingston,15/07/2022,70036643,"8,326.08",EQUANS SERVICES LIMITED,CONSTRUCTION INDUSTRY,Corporate & Communities,Building Rents,A22005,0
Royal Borough of Kingston,15/07/2022,70036643,"38,637.00",EQUANS SERVICES LIMITED,CONSTRUCTION INDUSTRY,Corporate & Communities,Building Rents,A22005,0
Royal Borough of Kingston,03/02/2023,70040116,"1,950.00",F H & G LIMITED,LEGAL & PROFESSIONAL SERVICES,Housing Revenue Account,Professional Fees,A44066,0
Royal Borough of Kingston,10/02/2023,70040571,650.00,F H & G LIMITED,LEGAL & PROFESSIONAL SERVICES,Housing Revenue Account,Professional Fees,A44066,0
Royal Borough of Kingston,10/02/2023,70040572,650.00,F H & G LIMITED,LEGAL & PROFESSIONAL SERVICES,Housing Revenue Account,Professional Fees,A44066,0
Royal Borough of Kingston,10/02/2023,70040573,650.00,F H & G LIMITED,LEGAL & PROFESSIONAL SERVICES,Housing Revenue Account,Professional Fees,A44066,0
Royal Borough of Kingston,17/02/2023,70040867,650.00,F H & G LIMITED,LEGAL & PROFESSIONAL SERVICES,Housing Revenue Account,Professional Fees,A44066,0
Royal Borough of Kingston,17/02/2023,70040953,650.00,F H & G LIMITED,LEGAL & PROFESSIONAL SERVICES,Housing Revenue Account,Professional Fees,A44066,0
Royal Borough of Kingston,17/02/2023,70040954,"1,300.00",F H & G LIMITED,LEGAL & PROFESSIONAL SERVICES,Housing Revenue Account,Professional Fees,A44066,0
Royal Borough of Kingston,24/02/2023,70041509,"1,300.00",F H & G LIMITED,LEGAL & PROFESSIONAL SERVICES,Housing Revenue Account,Professional Fees,A44066,0
Royal Borough of Kingston,03/03/2023,70041851,"1,300.00",F H & G LIMITED,LEGAL & PROFESSIONAL SERVICES,Housing Revenue Account,Professional Fees,A44066,0
Royal Borough of Kingston,03/03/2023,70041852,"1,300.00",F H & G LIMITED,LEGAL & PROFESSIONAL SERVICES,Housing Revenue Account,Professional Fees,A44066,0
Royal Borough of Kingston,24/03/2023,70043273,"1,300.00",F H & G LIMITED,LEGAL & PROFESSIONAL SERVICES,Housing Revenue Account,Professional Fees,A44066,0
Royal Borough of Kingston,24/03/2023,70043274,650.00,F H & G LIMITED,LEGAL & PROFESSIONAL SERVICES,Housing Revenue Account,Professional Fees,A44066,0
Royal Borough of Kingston,24/03/2023,70043275,"1,250.00",F H & G LIMITED,LEGAL & PROFESSIONAL SERVICES,Housing Revenue Account,Professional Fees,A44066,0
Royal Borough of Kingston,31/01/2023,70040120,"11,753.62",F.M. CONWAY LTD,CONSTRUCTION INDUSTRY,Corporate & Communities,Vehicle Crossings,A56043,0
Royal Borough of Kingston,26/01/2022,70041541,"10,007.21",F.M. CONWAY LTD,CONSTRUCTION INDUSTRY,Corporate & Communities,Bridge Repairs & Maintenance,A56035,0
Royal Borough of Kingston,26/01/2022,70041542,"1,288.49",F.M. CONWAY LTD,CONSTRUCTION INDUSTRY,Corporate & Communities,Bridge Repairs & Maintenance,A56035,0
Royal Borough of Kingston,28/02/2023,70041637,"4,386.90",F.M. CONWAY LTD,CONSTRUCTION INDUSTRY,Corporate & Communities,TMS - General,A56085,0
Royal Borough of Kingston,03/03/2023,70041846,"11,479.92",F.M. CONWAY LTD,CONSTRUCTION INDUSTRY,Capital Programme,Infrastructure Assets - Project Management,C12000,0
Royal Borough of Kingston,03/03/2023,70041846,"2,776.73",F.M. CONWAY LTD,CONSTRUCTION INDUSTRY,Capital Programme,Infrastructure Assets - Project Management,C12000,0
Royal Borough of Kingston,03/03/2023,70041847,"29,532.65",F.M. CONWAY LTD,CONSTRUCTION INDUSTRY,Corporate & Communities,Vehicle Crossings,A56043,0
Royal Borough of Kingston,14/03/2023,70042616,"9,520.87",F.M. CONWAY LTD,CONSTRUCTION INDUSTRY,Corporate & Communities,Vehicle Crossings,A56043,0
Royal Borough of Kingston,28/02/2023,70041925,"1,211.47",facultatieve technologies,FM SERVICES,Place,Property Repairs & Maintenance & Alterations - Responsive,A20011,0
Royal Borough of Kingston,09/03/2023,90213562,"4,525.98",FAIRFIELD PLAYBOX PLAYGROUP,ACADEMIC INSTNS - OTHER,Schools,2 Yr Old Place Funding,A60000,0
Royal Borough of Kingston,01/02/2023,90216840,"4,502.12",FAMILY INVESTMENT (THREE) LIMITED,SOCIAL SERVICES RESIDENTIAL,Adult Social Care & Health,Independent Placements,A56006,0
Royal Borough of Kingston,09/03/2023,90213501,"1,581.12",REDACTED - PERSONAL DATA,CHILDMINDERS START UP GRANT,Schools,PVI Providers,A60014,0
Royal Borough of Kingston,31/01/2023,70039896,"11,200.00",FAULKNERBROWNS LLP,LEGAL & PROFESSIONAL SERVICES,Capital Programme,External Fees and Consultants,C20000,0
Royal Borough of Kingston,08/03/2023,70042347,"9,000.00",FERN CONSULTING SERVICES LIMITED,TEMP STAFF & CONSULTANCY,Capital Programme,Infrastructure Assets - Project Management,C12000,0
Royal Borough of Kingston,09/03/2023,70042442,"5,000.00",FERN CONSULTING SERVICES LIMITED,TEMP STAFF & CONSULTANCY,Place,Consultancy Services,A56007,0
Royal Borough of Kingston,09/03/2023,90213522,"13,202.35",Fern Hill Primary School,SCHOOL FUNDS,Schools,Miscellaneous Expenses,A49000,0
Royal Borough of Kingston,20/02/2023,90213076,673.76,FIRST CHOICE SOCIAL CARE & SHELTERED HOUSING LTD,SOCIAL SERVICES-HOME CARE,Adult Social Care & Health,Homecare - new framework,A56127,0
Royal Borough of Kingston,27/02/2023,70041500,"3,366.00",First Light Electrical Services Ltd,FM SERVICES,Place,Property Repairs & Maintenance & Alterations - Responsive,A20011,0
Royal Borough of Kingston,01/03/2023,90216847,"7,617.36",FitzRoy Support,SOCIAL SERVICES - OTHER,Adult Social Care & Health,Independent Placements,A56006,0
Royal Borough of Kingston,28/02/2023,70041638,"8,500.00",FLEXRM LIMITED,OPERATIONAL EQUIPMENT/MATERIAL,Corporate & Communities,IT Software Maintenance,A45045,0
Royal Borough of Kingston,28/02/2023,70042509,"3,594.00",For Carbon Architecture Ltd,GRANTS & EX GRATIA PAYMENTS,Place,Consultancy Services,A56007,0
Royal Borough of Kingston,09/03/2023,90213526,"1,976.40",Fountain Nursery Limited,CHILDMINDERS START UP GRANT,Schools,PVI Providers,A60014,0
Royal Borough of Kingston,21/03/2023,90215176,"1,621.82",FOUR SEASONS HEALTHCARE,SOCIAL SERVICES RESIDENTIAL,Adult Social Care & Health,Personal Budget - Third Party,A61019,0
Royal Borough of Kingston,21/03/2023,90215185,"21,256.37",FOUR SEASONS HEALTHCARE,SOCIAL SERVICES RESIDENTIAL,Adult Social Care & Health,Personal Budget - Third Party,A61019,0
Royal Borough of Kingston,01/03/2023,90216391,"-3,668.23",FOUR SEASONS HEALTHCARE,SOCIAL SERVICES RESIDENTIAL,Adult Social Care & Health,Independent Placements,A56006,0
Royal Borough of Kingston,01/03/2023,90216407,"3,200.00",FOUR SEASONS HEALTHCARE,SOCIAL SERVICES RESIDENTIAL,Adult Social Care & Health,Independent Placements,A56006,0
Royal Borough of Kingston,01/03/2023,90216408,"-3,950.40",FOUR SEASONS HEALTHCARE,SOCIAL SERVICES RESIDENTIAL,Adult Social Care & Health,Independent Placements,A56006,0
Royal Borough of Kingston,01/03/2023,90216409,"3,542.86",FOUR SEASONS HEALTHCARE,SOCIAL SERVICES RESIDENTIAL,Adult Social Care & Health,Independent Placements,A56006,0
Royal Borough of Kingston,01/03/2023,90216410,"-4,373.66",FOUR SEASONS HEALTHCARE,SOCIAL SERVICES RESIDENTIAL,Adult Social Care & Health,Independent Placements,A56006,0
Royal Borough of Kingston,01/03/2023,90216411,"3,542.86",FOUR SEASONS HEALTHCARE,SOCIAL SERVICES RESIDENTIAL,Adult Social Care & Health,Independent Placements,A56006,0
Royal Borough of Kingston,01/03/2023,90216412,"-4,373.66",FOUR SEASONS HEALTHCARE,SOCIAL SERVICES RESIDENTIAL,Adult Social Care & Health,Independent Placements,A56006,0
Royal Borough of Kingston,01/03/2023,90216413,"3,428.57",FOUR SEASONS HEALTHCARE,SOCIAL SERVICES RESIDENTIAL,Adult Social Care & Health,Independent Placements,A56006,0
Royal Borough of Kingston,01/03/2023,90216414,"-4,232.57",FOUR SEASONS HEALTHCARE,SOCIAL SERVICES RESIDENTIAL,Adult Social Care & Health,Independent Placements,A56006,0
Royal Borough of Kingston,01/03/2023,90216415,"3,542.86",FOUR SEASONS HEALTHCARE,SOCIAL SERVICES RESIDENTIAL,Adult Social Care & Health,Independent Placements,A56006,0
Royal Borough of Kingston,01/03/2023,90216416,"-4,373.66",FOUR SEASONS HEALTHCARE,SOCIAL SERVICES RESIDENTIAL,Adult Social Care & Health,Independent Placements,A56006,0
Royal Borough of Kingston,01/03/2023,90216417,"3,428.57",FOUR SEASONS HEALTHCARE,SOCIAL SERVICES RESIDENTIAL,Adult Social Care & Health,Independent Placements,A56006,0
Royal Borough of Kingston,01/03/2023,90216418,"-4,232.57",FOUR SEASONS HEALTHCARE,SOCIAL SERVICES RESIDENTIAL,Adult Social Care & Health,Independent Placements,A56006,0
Royal Borough of Kingston,01/03/2023,90216419,"3,542.86",FOUR SEASONS HEALTHCARE,SOCIAL SERVICES RESIDENTIAL,Adult Social Care & Health,Independent Placements,A56006,0
Royal Borough of Kingston,01/03/2023,90216420,"-4,373.66",FOUR SEASONS HEALTHCARE,SOCIAL SERVICES RESIDENTIAL,Adult Social Care & Health,Independent Placements,A56006,0
Royal Borough of Kingston,01/03/2023,90216421,"3,542.86",FOUR SEASONS HEALTHCARE,SOCIAL SERVICES RESIDENTIAL,Adult Social Care & Health,Independent Placements,A56006,0
Royal Borough of Kingston,01/03/2023,90216422,"-4,373.66",FOUR SEASONS HEALTHCARE,SOCIAL SERVICES RESIDENTIAL,Adult Social Care & Health,Independent Placements,A56006,0
Royal Borough of Kingston,01/03/2023,90216423,"3,200.00",FOUR SEASONS HEALTHCARE,SOCIAL SERVICES RESIDENTIAL,Adult Social Care & Health,Independent Placements,A56006,0
Royal Borough of Kingston,01/03/2023,90216424,"-3,950.40",FOUR SEASONS HEALTHCARE,SOCIAL SERVICES RESIDENTIAL,Adult Social Care & Health,Independent Placements,A56006,0
Royal Borough of Kingston,01/03/2023,90216425,"3,542.86",FOUR SEASONS HEALTHCARE,SOCIAL SERVICES RESIDENTIAL,Adult Social Care & Health,Independent Placements,A56006,0
Royal Borough of Kingston,01/03/2023,90216426,"3,520.01",FOUR SEASONS HEALTHCARE,SOCIAL SERVICES RESIDENTIAL,Adult Social Care & Health,Independent Placements,A56006,0
Royal Borough of Kingston,01/03/2023,90216431,"3,335.95",FOUR SEASONS HEALTHCARE,SOCIAL SERVICES RESIDENTIAL,Adult Social Care & Health,Independent Placements,A56006,0
Royal Borough of Kingston,01/03/2023,90216433,"3,542.86",FOUR SEASONS HEALTHCARE,SOCIAL SERVICES RESIDENTIAL,Adult Social Care & Health,Independent Placements,A56006,0
Royal Borough of Kingston,01/03/2023,90216439,-828.57,FOUR SEASONS HEALTHCARE,SOCIAL SERVICES RESIDENTIAL,Adult Social Care & Health,Independent Placements,A56006,0
Royal Borough of Kingston,01/03/2023,90216440,"-4,971.43",FOUR SEASONS HEALTHCARE,SOCIAL SERVICES RESIDENTIAL,Adult Social Care & Health,Independent Placements,A56006,0
Royal Borough of Kingston,01/03/2023,90216441,"-5,137.14",FOUR SEASONS HEALTHCARE,SOCIAL SERVICES RESIDENTIAL,Adult Social Care & Health,Independent Placements,A56006,0
Royal Borough of Kingston,01/03/2023,90216442,"-4,971.43",FOUR SEASONS HEALTHCARE,SOCIAL SERVICES RESIDENTIAL,Adult Social Care & Health,Independent Placements,A56006,0
Royal Borough of Kingston,01/03/2023,90216443,"-5,137.14",FOUR SEASONS HEALTHCARE,SOCIAL SERVICES RESIDENTIAL,Adult Social Care & Health,Independent Placements,A56006,0
Royal Borough of Kingston,01/03/2023,90216444,"-5,137.14",FOUR SEASONS HEALTHCARE,SOCIAL SERVICES RESIDENTIAL,Adult Social Care & Health,Independent Placements,A56006,0
Royal Borough of Kingston,01/03/2023,90216445,"2,057.14",FOUR SEASONS HEALTHCARE,SOCIAL SERVICES RESIDENTIAL,Adult Social Care & Health,Independent Placements,A56006,0
Royal Borough of Kingston,01/03/2023,90216446,"-4,640.00",FOUR SEASONS HEALTHCARE,SOCIAL SERVICES RESIDENTIAL,Adult Social Care & Health,Independent Placements,A56006,0
Royal Borough of Kingston,01/03/2023,90216447,"3,542.86",FOUR SEASONS HEALTHCARE,SOCIAL SERVICES RESIDENTIAL,Adult Social Care & Health,Independent Placements,A56006,0
Royal Borough of Kingston,01/03/2023,90216455,"3,434.40",FOUR SEASONS HEALTHCARE,SOCIAL SERVICES RESIDENTIAL,Adult Social Care & Health,Independent Placements,A56006,0
Royal Borough of Kingston,01/03/2023,90216471,"3,335.95",FOUR SEASONS HEALTHCARE,SOCIAL SERVICES RESIDENTIAL,Adult Social Care & Health,Independent Placements,A56006,0
Royal Borough of Kingston,01/03/2023,90216477,"3,520.01",FOUR SEASONS HEALTHCARE,SOCIAL SERVICES RESIDENTIAL,Adult Social Care & Health,Independent Placements,A56006,0
Royal Borough of Kingston,01/03/2023,90216479,968.50,FOUR SEASONS HEALTHCARE,SOCIAL SERVICES RESIDENTIAL,Adult Social Care & Health,Independent Placements,A56006,0
Royal Borough of Kingston,01/03/2023,90216491,"3,985.71",FOUR SEASONS HEALTHCARE,SOCIAL SERVICES RESIDENTIAL,Adult Social Care & Health,Independent Placements,A56006,0
Royal Borough of Kingston,01/03/2023,90216500,"3,335.95",FOUR SEASONS HEALTHCARE,SOCIAL SERVICES RESIDENTIAL,Adult Social Care & Health,Independent Placements,A56006,0
Royal Borough of Kingston,01/03/2023,90216506,"3,335.95",FOUR SEASONS HEALTHCARE,SOCIAL SERVICES RESIDENTIAL,Adult Social Care & Health,Independent Placements,A56006,0
Royal Borough of Kingston,01/03/2023,90216528,968.14,FOUR SEASONS HEALTHCARE,SOCIAL SERVICES RESIDENTIAL,Adult Social Care & Health,Independent Placements,A56006,0
Royal Borough of Kingston,01/03/2023,90216529,"3,012.00",FOUR SEASONS HEALTHCARE,SOCIAL SERVICES RESIDENTIAL,Adult Social Care & Health,Independent Placements,A56006,0
Royal Borough of Kingston,01/03/2023,90216530,"3,334.71",FOUR SEASONS HEALTHCARE,SOCIAL SERVICES RESIDENTIAL,Adult Social Care & Health,Independent Placements,A56006,0
Royal Borough of Kingston,01/03/2023,90216536,"3,335.95",FOUR SEASONS HEALTHCARE,SOCIAL SERVICES RESIDENTIAL,Adult Social Care & Health,Independent Placements,A56006,0
Royal Borough of Kingston,01/03/2023,90216542,860.89,FOUR SEASONS HEALTHCARE,SOCIAL SERVICES RESIDENTIAL,Adult Social Care & Health,Independent Placements,A56006,0
Royal Borough of Kingston,01/03/2023,90216543,"3,228.34",FOUR SEASONS HEALTHCARE,SOCIAL SERVICES RESIDENTIAL,Adult Social Care & Health,Independent Placements,A56006,0
Royal Borough of Kingston,01/03/2023,90216544,"-2,044.62",FOUR SEASONS HEALTHCARE,SOCIAL SERVICES RESIDENTIAL,Adult Social Care & Health,Independent Placements,A56006,0
Royal Borough of Kingston,01/03/2023,90216546,753.28,FOUR SEASONS HEALTHCARE,SOCIAL SERVICES RESIDENTIAL,Adult Social Care & Health,Independent Placements,A56006,0
Royal Borough of Kingston,01/03/2023,90216589,"3,321.43",FOUR SEASONS HEALTHCARE,SOCIAL SERVICES RESIDENTIAL,Adult Social Care & Health,Independent Placements,A56006,0
Royal Borough of Kingston,01/03/2023,90216667,"3,216.29",FOUR SEASONS HEALTHCARE,SOCIAL SERVICES RESIDENTIAL,Adult Social Care & Health,Independent Placements,A56006,0
Royal Borough of Kingston,01/03/2023,90216671,"3,985.71",FOUR SEASONS HEALTHCARE,SOCIAL SERVICES RESIDENTIAL,Adult Social Care & Health,Independent Placements,A56006,0
Royal Borough of Kingston,01/03/2023,90216676,"3,358.94",FOUR SEASONS HEALTHCARE,SOCIAL SERVICES RESIDENTIAL,Adult Social Care & Health,Independent Placements,A56006,0
Royal Borough of Kingston,01/03/2023,90216693,"3,229.62",FOUR SEASONS HEALTHCARE,SOCIAL SERVICES RESIDENTIAL,Adult Social Care & Health,Independent Placements,A56006,0
Royal Borough of Kingston,01/03/2023,90216759,"2,971.43",FOUR SEASONS HEALTHCARE,SOCIAL SERVICES RESIDENTIAL,Adult Social Care & Health,Independent Placements,A56006,0
Royal Borough of Kingston,01/03/2023,90216762,860.57,FOUR SEASONS HEALTHCARE,SOCIAL SERVICES RESIDENTIAL,Adult Social Care & Health,Independent Placements,A56006,0
Royal Borough of Kingston,01/03/2023,90216879,"2,474.14",FOUR SEASONS HEALTHCARE,SOCIAL SERVICES RESIDENTIAL,Adult Social Care & Health,Independent Placements,A56006,0
Royal Borough of Kingston,01/03/2023,90216880,537.86,FOUR SEASONS HEALTHCARE,SOCIAL SERVICES RESIDENTIAL,Adult Social Care & Health,Independent Placements,A56006,0
Royal Borough of Kingston,01/03/2023,90216881,"2,057.14",FOUR SEASONS HEALTHCARE,SOCIAL SERVICES RESIDENTIAL,Adult Social Care & Health,Independent Placements,A56006,0
Royal Borough of Kingston,01/03/2023,90218299,"17,629.17",Freshstart Care Solutions Ltd,ACCOMMODATION - OTHER,Adult Social Care & Health,Personal Budget - Third Party,A61019,0
Royal Borough of Kingston,22/02/2023,70042902,599.44,FRIENDS OF KINGSTON MUSIC SERVICE,CHARITIES & VOLUNTARY ORGNS,Corporate & Communities,Miscellaneous Expenses,A49000,0
Royal Borough of Kingston,09/03/2023,90213514,"3,162.24",FUN EXPLORERS CHILDCARE,CHILDMINDERS START UP GRANT,Schools,PVI Providers,A60014,0
Royal Borough of Kingston,09/03/2023,90213464,790.56,REDACTED - PERSONAL DATA,SOCIAL SERVICES - OTHER,Schools,PVI Providers,A60014,0
Royal Borough of Kingston,13/03/2023,70043000,796.00,GAMBLING COMMISSION,SUBSCRIPTIONS & PUBLICATIONS,Corporate & Communities,Registration & Licence Fees Payable,A44267,0
Royal Borough of Kingston,28/02/2023,70041823,"1,153.00",GAS CONTRACT SERVICES LTD,LEGAL & PROFESSIONAL SERVICES,Housing Revenue Account,Gas Servicing & Heating Repairs,A20005,0
Royal Borough of Kingston,02/03/2023,70041819,"16,105.00",GATENBYSANDERSON LTD,TEMP STAFF & CONSULTANCY,Chief Executives,Recruitment Expenses,A15026,0
Royal Borough of Kingston,16/11/2022,70035744,"5,000.00",KINGSTON HOSPITAL NHS FT,CENTRAL & LOCAL GOVERNMENT,Adult Social Care & Health,Agency Staff - Other,A10505,0
Royal Borough of Kingston,10/02/2023,70042476,"348,565.00",KINGSTON HOSPITAL NHS FT,CENTRAL & LOCAL GOVERNMENT,Adult Social Care & Health,Other Private Contractors - Third Party,A56080,0
Royal Borough of Kingston,22/02/2023,70042488,"5,000.00",KINGSTON HOSPITAL NHS FT,CENTRAL & LOCAL GOVERNMENT,Adult Social Care & Health,Agency Staff - Other,A10505,0
Royal Borough of Kingston,09/03/2023,90213457,"13,834.80",KINGSTON HOSPITAL NHS FT,SOCIAL SERVICES DAY CARE,Schools,PVI Providers,A60014,0
Royal Borough of Kingston,06/02/2023,90213401,559.16,GENEVA ROAD LIMITED,SOCIAL SERVICES RESIDENTIAL,Adult Social Care & Health,Supported Living - new framework,A56126,0
Royal Borough of Kingston,06/02/2023,90213406,"1,437.84",GENEVA ROAD LIMITED,SOCIAL SERVICES RESIDENTIAL,Adult Social Care & Health,Supported Living - new framework,A56126,0
Royal Borough of Kingston,06/03/2023,90217044,519.22,GENEVA ROAD LIMITED,SOCIAL SERVICES RESIDENTIAL,Adult Social Care & Health,Supported Living - new framework,A56126,0
Royal Borough of Kingston,06/03/2023,90217054,"1,335.14",GENEVA ROAD LIMITED,SOCIAL SERVICES RESIDENTIAL,Adult Social Care & Health,Supported Living - new framework,A56126,0
Royal Borough of Kingston,01/03/2023,90217833,693.51,GENEVA ROAD LIMITED,SOCIAL SERVICES RESIDENTIAL,Adult Social Care & Health,Personal Budget - Third Party,A61019,0
Royal Borough of Kingston,01/03/2023,90217834,775.00,GENEVA ROAD LIMITED,SOCIAL SERVICES RESIDENTIAL,Adult Social Care & Health,Personal Budget - Third Party,A61019,0
Royal Borough of Kingston,01/03/2023,90217835,"1,992.86",GENEVA ROAD LIMITED,SOCIAL SERVICES RESIDENTIAL,Adult Social Care & Health,Personal Budget - Third Party,A61019,0
Royal Borough of Kingston,01/03/2023,90217849,"1,107.14",GENEVA ROAD LIMITED,SOCIAL SERVICES RESIDENTIAL,Adult Social Care & Health,Personal Budget - Third Party,A61019,0
Royal Borough of Kingston,01/03/2023,90217850,"1,107.14",GENEVA ROAD LIMITED,SOCIAL SERVICES RESIDENTIAL,Adult Social Care & Health,Personal Budget - Third Party,A61019,0
Royal Borough of Kingston,01/03/2023,90217865,"1,271.44",GENEVA ROAD LIMITED,SOCIAL SERVICES RESIDENTIAL,Adult Social Care & Health,Personal Budget - Third Party,A61019,0
Royal Borough of Kingston,01/03/2023,90217866,"1,107.14",GENEVA ROAD LIMITED,SOCIAL SERVICES RESIDENTIAL,Adult Social Care & Health,Personal Budget - Third Party,A61019,0
Royal Borough of Kingston,01/03/2023,90217872,442.86,GENEVA ROAD LIMITED,SOCIAL SERVICES RESIDENTIAL,Adult Social Care & Health,Personal Budget - Third Party,A61019,0
Royal Borough of Kingston,01/03/2023,90217873,442.86,GENEVA ROAD LIMITED,SOCIAL SERVICES RESIDENTIAL,Adult Social Care & Health,Personal Budget - Third Party,A61019,0
Royal Borough of Kingston,01/03/2023,90217875,664.29,GENEVA ROAD LIMITED,SOCIAL SERVICES RESIDENTIAL,Adult Social Care & Health,Personal Budget - Third Party,A61019,0
Royal Borough of Kingston,01/03/2023,90217876,664.29,GENEVA ROAD LIMITED,SOCIAL SERVICES RESIDENTIAL,Adult Social Care & Health,Personal Budget - Third Party,A61019,0
Royal Borough of Kingston,01/03/2023,90217877,"1,155.86",GENEVA ROAD LIMITED,SOCIAL SERVICES RESIDENTIAL,Adult Social Care & Health,Personal Budget - Third Party,A61019,0
Royal Borough of Kingston,01/03/2023,90217878,"1,107.14",GENEVA ROAD LIMITED,SOCIAL SERVICES RESIDENTIAL,Adult Social Care & Health,Personal Budget - Third Party,A61019,0
Royal Borough of Kingston,01/03/2023,90217879,"1,107.14",GENEVA ROAD LIMITED,SOCIAL SERVICES RESIDENTIAL,Adult Social Care & Health,Personal Budget - Third Party,A61019,0
Royal Borough of Kingston,01/03/2023,90217883,442.86,GENEVA ROAD LIMITED,SOCIAL SERVICES RESIDENTIAL,Adult Social Care & Health,Personal Budget - Third Party,A61019,0
Royal Borough of Kingston,01/03/2023,90217886,663.78,GENEVA ROAD LIMITED,SOCIAL SERVICES RESIDENTIAL,Adult Social Care & Health,Personal Budget - Third Party,A61019,0
Royal Borough of Kingston,01/03/2023,90217893,"2,190.41",GENEVA ROAD LIMITED,SOCIAL SERVICES RESIDENTIAL,Adult Social Care & Health,Personal Budget - Third Party,A61019,0
Royal Borough of Kingston,01/03/2023,90217894,"2,114.88",GENEVA ROAD LIMITED,SOCIAL SERVICES RESIDENTIAL,Adult Social Care & Health,Personal Budget - Third Party,A61019,0
Royal Borough of Kingston,01/03/2023,90217895,"2,341.47",GENEVA ROAD LIMITED,SOCIAL SERVICES RESIDENTIAL,Adult Social Care & Health,Personal Budget - Third Party,A61019,0
Royal Borough of Kingston,01/03/2023,90217913,885.71,GENEVA ROAD LIMITED,SOCIAL SERVICES RESIDENTIAL,Adult Social Care & Health,Personal Budget - Third Party,A61019,0
Royal Borough of Kingston,01/03/2023,90217928,506.89,GENEVA ROAD LIMITED,SOCIAL SERVICES RESIDENTIAL,Adult Social Care & Health,Personal Budget - Third Party,A61019,0
Royal Borough of Kingston,01/03/2023,90217947,553.57,GENEVA ROAD LIMITED,SOCIAL SERVICES RESIDENTIAL,Adult Social Care & Health,Personal Budget - Third Party,A61019,0
Royal Borough of Kingston,01/03/2023,90217949,664.29,GENEVA ROAD LIMITED,SOCIAL SERVICES RESIDENTIAL,Adult Social Care & Health,Personal Budget - Third Party,A61019,0
Royal Borough of Kingston,06/03/2023,70041992,"1,400.40",REDACTED - PERSONAL DATA,PLS LANDLORDS,Place,PSL Payments To Landlords,A22031,0
Royal Borough of Kingston,01/03/2023,90216674,"3,450.96",GEORGIAN HOUSE NURSING HOME,SOCIAL SERVICES RESIDENTIAL,Adult Social Care & Health,Independent Placements,A56006,0
Royal Borough of Kingston,23/02/2023,70041488,"10,000.00",Glendale Countryside Ltd,CONSTRUCTION INDUSTRY,Corporate & Communities,Grounds Maintenance Contract,A28000,0
Royal Borough of Kingston,23/02/2023,70041489,"10,000.00",Glendale Countryside Ltd,CONSTRUCTION INDUSTRY,Corporate & Communities,Grounds Maintenance Contract,A28000,0
Royal Borough of Kingston,27/02/2023,70041490,"136,287.34",Glendale Countryside Ltd,CONSTRUCTION INDUSTRY,Corporate & Communities,Grounds Maintenance Contract,A28000,0
Royal Borough of Kingston,03/03/2023,70041872,"72,987.34",Glendale Countryside Ltd,CONSTRUCTION INDUSTRY,Corporate & Communities,Grounds Maintenance Contract,A28000,0
Royal Borough of Kingston,20/02/2023,90212736,612.50,Global Homecare,SOCIAL SERVICES-HOME CARE,Adult Social Care & Health,Homecare - new framework,A56127,0
Royal Borough of Kingston,20/02/2023,90212807,735.01,Global Homecare,SOCIAL SERVICES-HOME CARE,Adult Social Care & Health,Homecare - new framework,A56127,0
Royal Borough of Kingston,20/02/2023,90212939,"2,861.90",Global Homecare,SOCIAL SERVICES-HOME CARE,Adult Social Care & Health,Homecare - new framework,A56127,0
Royal Borough of Kingston,27/02/2023,90213751,735.01,Global Homecare,SOCIAL SERVICES-HOME CARE,Adult Social Care & Health,Homecare - new framework,A56127,0
Royal Borough of Kingston,27/02/2023,90213881,"2,861.90",Global Homecare,SOCIAL SERVICES-HOME CARE,Adult Social Care & Health,Homecare - new framework,A56127,0
Royal Borough of Kingston,01/03/2023,90211405,"3,714.29",Gold Care Homes,SOCIAL SERVICES RESIDENTIAL,Adult Social Care & Health,Independent Placements,A56006,0
Royal Borough of Kingston,01/03/2023,90211406,"5,571.43",Gold Care Homes,SOCIAL SERVICES RESIDENTIAL,Adult Social Care & Health,Independent Placements,A56006,0
Royal Borough of Kingston,01/03/2023,90211407,"5,757.14",Gold Care Homes,SOCIAL SERVICES RESIDENTIAL,Adult Social Care & Health,Independent Placements,A56006,0
Royal Borough of Kingston,01/03/2023,90211408,"5,757.14",Gold Care Homes,SOCIAL SERVICES RESIDENTIAL,Adult Social Care & Health,Independent Placements,A56006,0
Royal Borough of Kingston,01/03/2023,90211409,"5,200.00",Gold Care Homes,SOCIAL SERVICES RESIDENTIAL,Adult Social Care & Health,Independent Placements,A56006,0
Royal Borough of Kingston,21/03/2023,90215180,"7,061.81",Gold Care Homes,SOCIAL SERVICES RESIDENTIAL,Adult Social Care & Health,Personal Budget - Third Party,A61019,0
Royal Borough of Kingston,01/03/2023,90216396,"1,992.86",Gold Care Homes,SOCIAL SERVICES RESIDENTIAL,Adult Social Care & Health,Independent Placements,A56006,0
Royal Borough of Kingston,01/03/2023,90216397,"1,992.86",Gold Care Homes,SOCIAL SERVICES RESIDENTIAL,Adult Social Care & Health,Independent Placements,A56006,0
Royal Borough of Kingston,01/03/2023,90216561,"4,207.14",Gold Care Homes,SOCIAL SERVICES RESIDENTIAL,Adult Social Care & Health,Independent Placements,A56006,0
Royal Borough of Kingston,01/03/2023,90216603,"5,757.14",Gold Care Homes,SOCIAL SERVICES RESIDENTIAL,Adult Social Care & Health,Independent Placements,A56006,0
Royal Borough of Kingston,01/03/2023,90216605,"3,985.71",Gold Care Homes,SOCIAL SERVICES RESIDENTIAL,Adult Social Care & Health,Independent Placements,A56006,0
Royal Borough of Kingston,01/03/2023,90216612,"4,207.14",Gold Care Homes,SOCIAL SERVICES RESIDENTIAL,Adult Social Care & Health,Independent Placements,A56006,0
Royal Borough of Kingston,01/03/2023,90216619,"4,762.35",Gold Care Homes,SOCIAL SERVICES RESIDENTIAL,Adult Social Care & Health,Independent Placements,A56006,0
Royal Borough of Kingston,01/03/2023,90216621,"3,450.96",Gold Care Homes,SOCIAL SERVICES RESIDENTIAL,Adult Social Care & Health,Independent Placements,A56006,0
Royal Borough of Kingston,01/03/2023,90216716,"4,462.23",Gold Care Homes,SOCIAL SERVICES RESIDENTIAL,Adult Social Care & Health,Independent Placements,A56006,0
Royal Borough of Kingston,01/03/2023,90216731,"4,162.50",Gold Care Homes,SOCIAL SERVICES RESIDENTIAL,Adult Social Care & Health,Independent Placements,A56006,0
Royal Borough of Kingston,01/03/2023,90216732,"4,462.23",Gold Care Homes,SOCIAL SERVICES RESIDENTIAL,Adult Social Care & Health,Independent Placements,A56006,0
Royal Borough of Kingston,01/03/2023,90216733,"4,762.35",Gold Care Homes,SOCIAL SERVICES RESIDENTIAL,Adult Social Care & Health,Independent Placements,A56006,0
Royal Borough of Kingston,01/03/2023,90216741,"4,462.23",Gold Care Homes,SOCIAL SERVICES RESIDENTIAL,Adult Social Care & Health,Independent Placements,A56006,0
Royal Borough of Kingston,01/03/2023,90216743,"4,762.35",Gold Care Homes,SOCIAL SERVICES RESIDENTIAL,Adult Social Care & Health,Independent Placements,A56006,0
Royal Borough of Kingston,01/03/2023,90216744,"4,162.50",Gold Care Homes,SOCIAL SERVICES RESIDENTIAL,Adult Social Care & Health,Independent Placements,A56006,0
Royal Borough of Kingston,01/03/2023,90216751,"4,762.35",Gold Care Homes,SOCIAL SERVICES RESIDENTIAL,Adult Social Care & Health,Independent Placements,A56006,0
Royal Borough of Kingston,01/03/2023,90216752,"4,762.35",Gold Care Homes,SOCIAL SERVICES RESIDENTIAL,Adult Social Care & Health,Independent Placements,A56006,0
Royal Borough of Kingston,01/03/2023,90216768,"4,207.14",Gold Care Homes,SOCIAL SERVICES RESIDENTIAL,Adult Social Care & Health,Independent Placements,A56006,0
Royal Borough of Kingston,01/03/2023,90216891,"1,992.86",Gold Care Homes,SOCIAL SERVICES RESIDENTIAL,Adult Social Care & Health,Other Private Contractors - Third Party,A56080,0
Royal Borough of Kingston,01/03/2023,90216892,"1,992.86",Gold Care Homes,SOCIAL SERVICES RESIDENTIAL,Adult Social Care & Health,Other Private Contractors - Third Party,A56080,0
Royal Borough of Kingston,01/03/2023,90216893,"1,992.86",Gold Care Homes,SOCIAL SERVICES RESIDENTIAL,Adult Social Care & Health,Other Private Contractors - Third Party,A56080,0
Royal Borough of Kingston,01/03/2023,90216894,"1,992.86",Gold Care Homes,SOCIAL SERVICES RESIDENTIAL,Adult Social Care & Health,Other Private Contractors - Third Party,A56080,0
Royal Borough of Kingston,01/03/2023,90216906,"2,103.57",Gold Care Homes,SOCIAL SERVICES RESIDENTIAL,Adult Social Care & Health,Other Private Contractors - Third Party,A56080,0
Royal Borough of Kingston,01/03/2023,90216907,"2,103.57",Gold Care Homes,SOCIAL SERVICES RESIDENTIAL,Adult Social Care & Health,Other Private Contractors - Third Party,A56080,0
Royal Borough of Kingston,01/03/2023,90216908,"12,621.43",Gold Care Homes,SOCIAL SERVICES RESIDENTIAL,Adult Social Care & Health,Other Private Contractors - Third Party,A56080,0
Royal Borough of Kingston,01/03/2023,90217784,"1,494.82",Gold Care Homes,SOCIAL SERVICES RESIDENTIAL,Adult Social Care & Health,Personal Budget - Third Party,A61019,0
Royal Borough of Kingston,01/03/2023,90217788,675.08,Gold Care Homes,SOCIAL SERVICES RESIDENTIAL,Adult Social Care & Health,Personal Budget - Third Party,A61019,0
Royal Borough of Kingston,01/03/2023,90217793,599.31,Gold Care Homes,SOCIAL SERVICES RESIDENTIAL,Adult Social Care & Health,Personal Budget - Third Party,A61019,0
Royal Borough of Kingston,01/03/2023,90217794,"1,033.29",Gold Care Homes,SOCIAL SERVICES RESIDENTIAL,Adult Social Care & Health,Personal Budget - Third Party,A61019,0
Royal Borough of Kingston,01/03/2023,90217795,"1,033.29",Gold Care Homes,SOCIAL SERVICES RESIDENTIAL,Adult Social Care & Health,Personal Budget - Third Party,A61019,0
Royal Borough of Kingston,01/03/2023,90217796,"1,067.73",Gold Care Homes,SOCIAL SERVICES RESIDENTIAL,Adult Social Care & Health,Personal Budget - Third Party,A61019,0
Royal Borough of Kingston,01/03/2023,90217797,"1,067.73",Gold Care Homes,SOCIAL SERVICES RESIDENTIAL,Adult Social Care & Health,Personal Budget - Third Party,A61019,0
Royal Borough of Kingston,01/03/2023,90217798,"1,033.29",Gold Care Homes,SOCIAL SERVICES RESIDENTIAL,Adult Social Care & Health,Personal Budget - Third Party,A61019,0
Royal Borough of Kingston,01/03/2023,90217799,"1,067.73",Gold Care Homes,SOCIAL SERVICES RESIDENTIAL,Adult Social Care & Health,Personal Budget - Third Party,A61019,0
Royal Borough of Kingston,01/03/2023,90217800,"1,033.29",Gold Care Homes,SOCIAL SERVICES RESIDENTIAL,Adult Social Care & Health,Personal Budget - Third Party,A61019,0
Royal Borough of Kingston,01/03/2023,90217801,"1,067.73",Gold Care Homes,SOCIAL SERVICES RESIDENTIAL,Adult Social Care & Health,Personal Budget - Third Party,A61019,0
Royal Borough of Kingston,01/03/2023,90217802,"1,067.73",Gold Care Homes,SOCIAL SERVICES RESIDENTIAL,Adult Social Care & Health,Personal Budget - Third Party,A61019,0
Royal Borough of Kingston,01/03/2023,90217803,964.40,Gold Care Homes,SOCIAL SERVICES RESIDENTIAL,Adult Social Care & Health,Personal Budget - Third Party,A61019,0
Royal Borough of Kingston,01/03/2023,90217804,"1,067.73",Gold Care Homes,SOCIAL SERVICES RESIDENTIAL,Adult Social Care & Health,Personal Budget - Third Party,A61019,0
Royal Borough of Kingston,01/03/2023,90217809,"3,720.00",Gold Care Homes,SOCIAL SERVICES RESIDENTIAL,Adult Social Care & Health,Personal Budget - Third Party,A61019,0
Royal Borough of Kingston,01/03/2023,90217813,964.40,Gold Care Homes,SOCIAL SERVICES RESIDENTIAL,Adult Social Care & Health,Personal Budget - Third Party,A61019,0
Royal Borough of Kingston,01/03/2023,90217814,-964.40,Gold Care Homes,SOCIAL SERVICES RESIDENTIAL,Adult Social Care & Health,Personal Budget - Third Party,A61019,0
Royal Borough of Kingston,01/03/2023,90217819,"1,109.06",Gold Care Homes,SOCIAL SERVICES RESIDENTIAL,Adult Social Care & Health,Personal Budget - Third Party,A61019,0
Royal Borough of Kingston,21/03/2023,90215159,650.00,Goldsmith Personnel Ltd,SOCIAL SERVICES - OTHER,Adult Social Care & Health,Personal Budget - Third Party,A61019,0
Royal Borough of Kingston,09/03/2023,70042274,"1,498.00",GOLFRATE PROPERTY MANAGEMENT LIMITED,ACCOMMODATION BED & BREAKFAST,Place,Bed & Breakfast,A56000,0
Royal Borough of Kingston,09/03/2023,70042275,"1,456.00",GOLFRATE PROPERTY MANAGEMENT LIMITED,ACCOMMODATION BED & BREAKFAST,Place,Bed & Breakfast,A56000,0
Royal Borough of Kingston,09/03/2023,70042181,"1,142.43",GRAND AVENUE PRIMARY AND NURSERY SCHOOL,SCHOOL FUNDS,Childrens Services,MSF Claims Support Staff - Internal Trading,A46108,0
Royal Borough of Kingston,09/03/2023,70042249,"3,000.00",GRAND AVENUE PRIMARY AND NURSERY SCHOOL,SCHOOL FUNDS,Childrens Services,MSF Claims Teaching Staff - Internal Trading,A46107,0
Royal Borough of Kingston,09/03/2023,70042282,"1,650.00",GRAND AVENUE PRIMARY AND NURSERY SCHOOL,SCHOOL FUNDS,Childrens Services,MSF Claims Support Staff - Internal Trading,A46108,0
Royal Borough of Kingston,15/03/2023,70042528,"3,000.00",GRAND AVENUE PRIMARY AND NURSERY SCHOOL,SCHOOL FUNDS,Childrens Services,MSF Claims Teaching Staff - Internal Trading,A46107,0
Royal Borough of Kingston,24/11/2022,70043544,"1,400.00",GRAND AVENUE PRIMARY AND NURSERY SCHOOL,SCHOOL FUNDS,Capital Programme,Payments to Contractors,C14000,0
Royal Borough of Kingston,07/03/2023,90211450,"220,043.01",GRAND AVENUE PRIMARY AND NURSERY SCHOOL,SCHOOL FUNDS,Schools,Miscellaneous Expenses,A49000,0
Royal Borough of Kingston,07/03/2023,90213346,576.76,GRAND AVENUE PRIMARY AND NURSERY SCHOOL,SCHOOL FUNDS,Schools,Miscellaneous Expenses,A49000,0
Royal Borough of Kingston,09/03/2023,90213358,"23,227.56",GRAND AVENUE PRIMARY AND NURSERY SCHOOL,SCHOOL FUNDS,Capital Programme,Payments to Contractors,C14000,0
Royal Borough of Kingston,09/03/2023,90213468,"31,622.40",GRAND AVENUE PRIMARY AND NURSERY SCHOOL,SCHOOL FUNDS,Schools,Miscellaneous Expenses,A49000,0
Royal Borough of Kingston,21/03/2023,90215202,"7,194.00",GRAND AVENUE PRIMARY AND NURSERY SCHOOL,SCHOOL FUNDS,Schools,Miscellaneous Expenses,A49000,0
Royal Borough of Kingston,28/03/2023,90216347,"27,353.75",GRAND AVENUE PRIMARY AND NURSERY SCHOOL,SCHOOL FUNDS,Schools,Miscellaneous Expenses,A49000,0
Royal Borough of Kingston,28/03/2023,90216348,"4,820.00",GRAND AVENUE PRIMARY AND NURSERY SCHOOL,SCHOOL FUNDS,Schools,Miscellaneous Expenses,A49000,0
Royal Borough of Kingston,30/03/2023,90218443,"2,854.57",GRAND AVENUE PRIMARY AND NURSERY SCHOOL,SCHOOL FUNDS,Capital Programme,Payments to Contractors,C14000,0
Royal Borough of Kingston,28/02/2023,70041972,"86,000.00",GRANT THORNTON UK LLP,LEGAL & PROFESSIONAL SERVICES,Corporate & Communities,Audit Fees,A44270,0
Royal Borough of Kingston,09/03/2023,90213484,"17,840.30",GREEN LANE PRIMARY & NURSERY SCHOOL,SCHOOL FUNDS,Schools,Miscellaneous Expenses,A49000,0
Royal Borough of Kingston,14/02/2023,70040999,"22,405.25",GROUNDWORK LONDON,CHARITIES & VOLUNTARY ORGNS,Adult Social Care & Health,Payments to Voluntary Organisations,A54005,0
Royal Borough of Kingston,01/03/2023,90216777,"4,021.59",Grove Care Partnership Limited,SOCIAL SERVICES RESIDENTIAL,Adult Social Care & Health,Independent Placements,A56006,0
Royal Borough of Kingston,01/03/2023,90216794,"10,341.16",Grove Care Partnership Limited,SOCIAL SERVICES RESIDENTIAL,Adult Social Care & Health,Independent Placements,A56006,0
Royal Borough of Kingston,01/03/2023,90216813,"15,173.39",Grove Care Partnership Limited,SOCIAL SERVICES RESIDENTIAL,Adult Social Care & Health,Independent Placements,A56006,0
Royal Borough of Kingston,01/03/2023,90216816,"10,055.65",Grove Care Partnership Limited,SOCIAL SERVICES RESIDENTIAL,Adult Social Care & Health,Independent Placements,A56006,0
Royal Borough of Kingston,01/03/2023,90216839,"15,021.01",Grove Care Partnership Limited,SOCIAL SERVICES RESIDENTIAL,Adult Social Care & Health,Independent Placements,A56006,0
Royal Borough of Kingston,01/03/2023,90216849,"11,721.68",Grove Care Partnership Limited,SOCIAL SERVICES RESIDENTIAL,Adult Social Care & Health,Independent Placements,A56006,0
Royal Borough of Kingston,01/03/2023,90216852,"9,628.60",Grove Care Partnership Limited,SOCIAL SERVICES RESIDENTIAL,Adult Social Care & Health,Independent Placements,A56006,0
Royal Borough of Kingston,01/03/2023,90216865,"7,753.19",Grove Care Partnership Limited,SOCIAL SERVICES RESIDENTIAL,Adult Social Care & Health,Independent Placements,A56006,0
Royal Borough of Kingston,01/03/2023,90216874,"11,534.52",Grove Care Partnership Limited,SOCIAL SERVICES RESIDENTIAL,Adult Social Care & Health,Independent Placements,A56006,0
Royal Borough of Kingston,01/03/2023,90216875,"11,525.36",Grove Care Partnership Limited,SOCIAL SERVICES RESIDENTIAL,Adult Social Care & Health,Independent Placements,A56006,0
Royal Borough of Kingston,08/02/2023,70041569,"1,188.93",GURE LORATEGIA LTD,AGRICULTURAL & ESTATE SERVICES,Adult Social Care & Health,Grounds Maintenance Supplies,A28001,0
Royal Borough of Kingston,06/02/2023,70041532,"3,548.25",Gurkha Security Services Ltd,FM SERVICES,Place,Security Services,A44080,0
Royal Borough of Kingston,16/01/2023,70041533,"1,689.52",Gurkha Security Services Ltd,FM SERVICES,Place,Security Services,A44080,0
Royal Borough of Kingston,12/12/2022,70041534,"13,455.85",Gurkha Security Services Ltd,FM SERVICES,Place,Security Services,A44080,0
Royal Borough of Kingston,16/01/2023,70041535,"6,232.80",Gurkha Security Services Ltd,FM SERVICES,Place,Security Services,A44080,0
Royal Borough of Kingston,12/12/2022,70041536,"5,250.60",Gurkha Security Services Ltd,FM SERVICES,Place,Security Services,A44080,0
Royal Borough of Kingston,06/02/2023,70041558,790.23,Gurkha Security Services Ltd,FM SERVICES,Place,Security Services,A44080,0
Royal Borough of Kingston,16/01/2023,70041561,"61,970.66",Gurkha Security Services Ltd,FM SERVICES,Place,Security Services,A44080,0
Royal Borough of Kingston,16/01/2023,70041562,"10,046.61",Gurkha Security Services Ltd,FM SERVICES,Place,Security Services,A44080,0
Royal Borough of Kingston,16/01/2023,70041590,"3,245.43",Gurkha Security Services Ltd,FM SERVICES,Place,Security Services,A44080,0
Royal Borough of Kingston,01/03/2023,70041615,"61,970.66",Gurkha Security Services Ltd,FM SERVICES,Place,Security Services,A44080,0
Royal Borough of Kingston,01/03/2023,70041616,"6,232.80",Gurkha Security Services Ltd,FM SERVICES,Place,Security Services,A44080,0
Royal Borough of Kingston,01/03/2023,70041617,"10,137.12",Gurkha Security Services Ltd,FM SERVICES,Place,Security Services,A44080,0
Royal Borough of Kingston,01/03/2023,70041618,"3,103.20",Gurkha Security Services Ltd,FM SERVICES,Place,Security Services,A44080,0
Royal Borough of Kingston,06/02/2023,70041752,"3,413.52",Gurkha Security Services Ltd,FM SERVICES,Place,Security Services,A44080,0
Royal Borough of Kingston,06/02/2023,70041753,"10,525.02",Gurkha Security Services Ltd,FM SERVICES,Place,Security Services,A44080,0
Royal Borough of Kingston,06/02/2023,70041754,"61,970.66",Gurkha Security Services Ltd,FM SERVICES,Place,Security Services,A44080,0
Royal Borough of Kingston,06/02/2023,70041755,"7,123.20",Gurkha Security Services Ltd,FM SERVICES,Place,Security Services,A44080,0
Royal Borough of Kingston,03/03/2023,70042004,"109,332.50",GUTTERIDGE HASKINS AND DAVEY LTD,LEGAL & PROFESSIONAL SERVICES,Corporate & Communities,Professional Fees,A44066,0
Royal Borough of Kingston,01/03/2023,90216699,"4,601.29",HAMPTON CARE LIMITED,SOCIAL SERVICES RESIDENTIAL,Adult Social Care & Health,Independent Placements,A56006,0
Royal Borough of Kingston,01/03/2023,90217922,947.85,HAZELDENE UK LTD,SOCIAL SERVICES RESIDENTIAL,Adult Social Care & Health,Personal Budget - Third Party,A61019,0
Royal Borough of Kingston,01/03/2023,90216700,"1,764.29",Hazelgrove Nursing Home,SOCIAL SERVICES RESIDENTIAL,Adult Social Care & Health,Independent Placements,A56006,0
Royal Borough of Kingston,01/03/2023,90216701,"4,750.00",Hazelgrove Nursing Home,SOCIAL SERVICES RESIDENTIAL,Adult Social Care & Health,Independent Placements,A56006,0
Royal Borough of Kingston,01/03/2023,90216702,"4,207.14",Hazelgrove Nursing Home,SOCIAL SERVICES RESIDENTIAL,Adult Social Care & Health,Independent Placements,A56006,0
Royal Borough of Kingston,01/03/2023,90216764,"3,935.71",Hazelgrove Nursing Home,SOCIAL SERVICES RESIDENTIAL,Adult Social Care & Health,Independent Placements,A56006,0
Royal Borough of Kingston,01/03/2023,90216736,"5,061.41",HAZELWOOD HOUSE,SOCIAL SERVICES RESIDENTIAL,Adult Social Care & Health,Independent Placements,A56006,0
Royal Borough of Kingston,01/03/2023,90216463,"3,813.31",HC-1 LIMITED,SOCIAL SERVICES RESIDENTIAL,Adult Social Care & Health,Independent Placements,A56006,0
Royal Borough of Kingston,01/03/2023,90216784,"13,586.81",HEATHCOTES (SOUTHERN) LTD,SOCIAL SERVICES RESIDENTIAL,Adult Social Care & Health,Independent Placements,A56006,0
Royal Borough of Kingston,01/03/2023,90216810,"10,122.83",HEATHCOTES (SOUTHERN) LTD,SOCIAL SERVICES RESIDENTIAL,Adult Social Care & Health,Independent Placements,A56006,0
Royal Borough of Kingston,01/03/2023,90216812,"12,015.02",HEATHCOTES (SOUTHERN) LTD,SOCIAL SERVICES RESIDENTIAL,Adult Social Care & Health,Independent Placements,A56006,0
Royal Borough of Kingston,31/01/2023,70042630,"1,736.00",Heathrow Link Limited,ACCOMMODATION BED & BREAKFAST,Place,Bed & Breakfast,A56000,0
Royal Borough of Kingston,28/02/2023,70042631,"1,428.00",Heathrow Link Limited,ACCOMMODATION BED & BREAKFAST,Place,Bed & Breakfast,A56000,0
Royal Borough of Kingston,31/12/2022,70042632,"1,581.00",Heathrow Link Limited,ACCOMMODATION BED & BREAKFAST,Place,Bed & Breakfast,A56000,0
Royal Borough of Kingston,28/02/2023,70042633,"1,568.00",Heathrow Link Limited,ACCOMMODATION BED & BREAKFAST,Place,Bed & Breakfast,A56000,0
Royal Borough of Kingston,31/12/2022,70042634,"1,736.00",Heathrow Link Limited,ACCOMMODATION BED & BREAKFAST,Place,Bed & Breakfast,A56000,0
Royal Borough of Kingston,31/01/2023,70042635,"1,581.00",Heathrow Link Limited,ACCOMMODATION BED & BREAKFAST,Place,Bed & Breakfast,A56000,0
Royal Borough of Kingston,31/01/2023,70040162,"3,100.00",HEBRON TRUST,SOCIAL SERVICES RESIDENTIAL,Adult Social Care & Health,Independent Placements,A56006,0
Royal Borough of Kingston,28/02/2023,70041818,"2,800.00",HEBRON TRUST,SOCIAL SERVICES RESIDENTIAL,Adult Social Care & Health,Independent Placements,A56006,0
Royal Borough of Kingston,20/02/2023,90213228,630.00,HELMAR CARE AND COMMUNITY SERVICES LTD,SOCIAL SERVICES DAY CARE,Adult Social Care & Health,Homecare - new framework,A56127,0
Royal Borough of Kingston,20/02/2023,90213229,550.73,HELMAR CARE AND COMMUNITY SERVICES LTD,SOCIAL SERVICES DAY CARE,Adult Social Care & Health,Homecare - new framework,A56127,0
Royal Borough of Kingston,20/02/2023,90213281,"8,585.71",HELMAR CARE AND COMMUNITY SERVICES LTD,SOCIAL SERVICES DAY CARE,Adult Social Care & Health,Personal Budget - Third Party,A61019,0
Royal Borough of Kingston,20/02/2023,90213307,"1,673.93",HELMAR CARE AND COMMUNITY SERVICES LTD,SOCIAL SERVICES DAY CARE,Adult Social Care & Health,Personal Budget - Third Party,A61019,0
Royal Borough of Kingston,27/02/2023,90214173,630.00,HELMAR CARE AND COMMUNITY SERVICES LTD,SOCIAL SERVICES DAY CARE,Adult Social Care & Health,Homecare - new framework,A56127,0
Royal Borough of Kingston,27/02/2023,90214174,550.73,HELMAR CARE AND COMMUNITY SERVICES LTD,SOCIAL SERVICES DAY CARE,Adult Social Care & Health,Homecare - new framework,A56127,0
Royal Borough of Kingston,27/02/2023,90215036,"8,585.71",HELMAR CARE AND COMMUNITY SERVICES LTD,SOCIAL SERVICES DAY CARE,Adult Social Care & Health,Personal Budget - Third Party,A61019,0
Royal Borough of Kingston,27/02/2023,90215070,"1,673.93",HELMAR CARE AND COMMUNITY SERVICES LTD,SOCIAL SERVICES DAY CARE,Adult Social Care & Health,Personal Budget - Third Party,A61019,0
Royal Borough of Kingston,21/03/2023,90215161,741.00,HELMAR CARE AND COMMUNITY SERVICES LTD,SOCIAL SERVICES DAY CARE,Adult Social Care & Health,Personal Budget - Third Party,A61019,0
Royal Borough of Kingston,06/03/2023,90215814,630.00,HELMAR CARE AND COMMUNITY SERVICES LTD,SOCIAL SERVICES DAY CARE,Adult Social Care & Health,Homecare - new framework,A56127,0
Royal Borough of Kingston,06/03/2023,90215815,550.73,HELMAR CARE AND COMMUNITY SERVICES LTD,SOCIAL SERVICES DAY CARE,Adult Social Care & Health,Homecare - new framework,A56127,0
Royal Borough of Kingston,06/03/2023,90215870,"8,585.71",HELMAR CARE AND COMMUNITY SERVICES LTD,SOCIAL SERVICES DAY CARE,Adult Social Care & Health,Personal Budget - Third Party,A61019,0
Royal Borough of Kingston,06/03/2023,90215901,"1,673.93",HELMAR CARE AND COMMUNITY SERVICES LTD,SOCIAL SERVICES DAY CARE,Adult Social Care & Health,Personal Budget - Third Party,A61019,0
Royal Borough of Kingston,13/03/2023,90217715,630.00,HELMAR CARE AND COMMUNITY SERVICES LTD,SOCIAL SERVICES DAY CARE,Adult Social Care & Health,Homecare - new framework,A56127,0
Royal Borough of Kingston,13/03/2023,90217716,550.73,HELMAR CARE AND COMMUNITY SERVICES LTD,SOCIAL SERVICES DAY CARE,Adult Social Care & Health,Homecare - new framework,A56127,0
Royal Borough of Kingston,13/03/2023,90217829,"8,585.71",HELMAR CARE AND COMMUNITY SERVICES LTD,SOCIAL SERVICES DAY CARE,Adult Social Care & Health,Personal Budget - Third Party,A61019,0
Royal Borough of Kingston,13/03/2023,90218232,"1,673.93",HELMAR CARE AND COMMUNITY SERVICES LTD,SOCIAL SERVICES DAY CARE,Adult Social Care & Health,Personal Budget - Third Party,A61019,0
Royal Borough of Kingston,01/03/2023,90216675,"3,197.65",JESYEM MEDICARE LTD,SOCIAL SERVICES RESIDENTIAL,Adult Social Care & Health,Independent Placements,A56006,0
Royal Borough of Kingston,01/03/2023,90216679,"4,371.22",JESYEM MEDICARE LTD,SOCIAL SERVICES RESIDENTIAL,Adult Social Care & Health,Independent Placements,A56006,0
Royal Borough of Kingston,01/03/2023,90216692,"4,371.22",JESYEM MEDICARE LTD,SOCIAL SERVICES RESIDENTIAL,Adult Social Care & Health,Independent Placements,A56006,0
Royal Borough of Kingston,01/03/2023,90217863,558.09,HERTFORDSHIRE COUNTY COUNCIL,CENTRAL & LOCAL GOVERNMENT,Adult Social Care & Health,Personal Budget - Third Party,A61019,0
Royal Borough of Kingston,20/09/2022,70041228,"2,027.28",HES ESTATE MANAGEMENT LTD,LEGAL & PROFESSIONAL SERVICES,Housing Revenue Account,Miscellaneous Expenses,A49000,0
Royal Borough of Kingston,20/09/2022,70041241,"1,013.64",HES ESTATE MANAGEMENT LTD,LEGAL & PROFESSIONAL SERVICES,Housing Revenue Account,Miscellaneous Expenses,A49000,0
Royal Borough of Kingston,01/03/2023,90217830,933.38,HF TRUST LTD,SOCIAL SERVICES DAY CARE,Adult Social Care & Health,Personal Budget - Third Party,A61019,0
Royal Borough of Kingston,01/03/2023,90217831,"2,333.46",HF TRUST LTD,SOCIAL SERVICES DAY CARE,Adult Social Care & Health,Personal Budget - Third Party,A61019,0
Royal Borough of Kingston,01/03/2023,90217841,664.29,HF TRUST LTD,SOCIAL SERVICES DAY CARE,Adult Social Care & Health,Personal Budget - Third Party,A61019,0
Royal Borough of Kingston,01/03/2023,90217843,996.43,HF TRUST LTD,SOCIAL SERVICES DAY CARE,Adult Social Care & Health,Personal Budget - Third Party,A61019,0
Royal Borough of Kingston,01/03/2023,90217857,664.29,HF TRUST LTD,SOCIAL SERVICES DAY CARE,Adult Social Care & Health,Personal Budget - Third Party,A61019,0
Royal Borough of Kingston,01/03/2023,90217859,885.71,HF TRUST LTD,SOCIAL SERVICES DAY CARE,Adult Social Care & Health,Personal Budget - Third Party,A61019,0
Royal Borough of Kingston,01/03/2023,90217861,885.71,HF TRUST LTD,SOCIAL SERVICES DAY CARE,Adult Social Care & Health,Personal Budget - Third Party,A61019,0
Royal Borough of Kingston,01/03/2023,90217871,885.71,HF TRUST LTD,SOCIAL SERVICES DAY CARE,Adult Social Care & Health,Personal Budget - Third Party,A61019,0
Royal Borough of Kingston,01/03/2023,90217880,"1,107.14",HF TRUST LTD,SOCIAL SERVICES DAY CARE,Adult Social Care & Health,Personal Budget - Third Party,A61019,0
Royal Borough of Kingston,01/03/2023,90217888,"1,321.40",HF TRUST LTD,SOCIAL SERVICES DAY CARE,Adult Social Care & Health,Personal Budget - Third Party,A61019,0
Royal Borough of Kingston,01/03/2023,90217892,664.29,HF TRUST LTD,SOCIAL SERVICES DAY CARE,Adult Social Care & Health,Personal Budget - Third Party,A61019,0
Royal Borough of Kingston,01/03/2023,90217897,"1,941.84",HF TRUST LTD,SOCIAL SERVICES DAY CARE,Adult Social Care & Health,Personal Budget - Third Party,A61019,0
Royal Borough of Kingston,01/03/2023,90217898,"1,107.14",HF TRUST LTD,SOCIAL SERVICES DAY CARE,Adult Social Care & Health,Personal Budget - Third Party,A61019,0
Royal Borough of Kingston,01/03/2023,90217900,844.38,HF TRUST LTD,SOCIAL SERVICES DAY CARE,Adult Social Care & Health,Personal Budget - Third Party,A61019,0
Royal Borough of Kingston,01/03/2023,90217907,885.71,HF TRUST LTD,SOCIAL SERVICES DAY CARE,Adult Social Care & Health,Personal Budget - Third Party,A61019,0
Royal Borough of Kingston,01/03/2023,90217908,664.29,HF TRUST LTD,SOCIAL SERVICES DAY CARE,Adult Social Care & Health,Personal Budget - Third Party,A61019,0
Royal Borough of Kingston,01/03/2023,90217914,"1,107.14",HF TRUST LTD,SOCIAL SERVICES DAY CARE,Adult Social Care & Health,Personal Budget - Third Party,A61019,0
Royal Borough of Kingston,01/03/2023,90217917,885.71,HF TRUST LTD,SOCIAL SERVICES DAY CARE,Adult Social Care & Health,Personal Budget - Third Party,A61019,0
Royal Borough of Kingston,01/03/2023,90217918,664.29,HF TRUST LTD,SOCIAL SERVICES DAY CARE,Adult Social Care & Health,Personal Budget - Third Party,A61019,0
Royal Borough of Kingston,01/03/2023,90217919,664.29,HF TRUST LTD,SOCIAL SERVICES DAY CARE,Adult Social Care & Health,Personal Budget - Third Party,A61019,0
Royal Borough of Kingston,01/03/2023,90217923,664.29,HF TRUST LTD,SOCIAL SERVICES DAY CARE,Adult Social Care & Health,Personal Budget - Third Party,A61019,0
Royal Borough of Kingston,01/03/2023,90217924,885.71,HF TRUST LTD,SOCIAL SERVICES DAY CARE,Adult Social Care & Health,Personal Budget - Third Party,A61019,0
Royal Borough of Kingston,01/03/2023,90217925,"1,107.14",HF TRUST LTD,SOCIAL SERVICES DAY CARE,Adult Social Care & Health,Personal Budget - Third Party,A61019,0
Royal Borough of Kingston,01/03/2023,90217929,"1,107.14",HF TRUST LTD,SOCIAL SERVICES DAY CARE,Adult Social Care & Health,Personal Budget - Third Party,A61019,0
